{"text_format":"1","workbook":"xlsx","n_sheets":2,"sheets":["Hoja2","Consulta"],"not_rendered":{"charts":0,"images":1,"macros":1,"external_links":0,"defined_names":0,"comments":0,"pivot_tables":0},"unopened":[],"bounds":{"document_bytes":16777216,"sheet_cells":100000,"rows_first":2000,"rows_last":500,"rows_between":2000,"halvings":0,"cell_chars":16384,"cell_head_chars":4096},"cells_cut":0,"cells_raw":0,"read":"whole","date_system":"1900"}

{"sheet":"Hoja2","index":0,"n_rows":2061,"n_cols":5,"rows_kept":2061,"cut":false,"hidden":true,"merged":[]}
["IDENTIFICACION","NOMBRES","APELLIDOS","NOMBRE COMPLETO","Final"]
[76047519,"DIEGO FERNANDO","BUENO DIAZ",{"$f":"_xlfn.CONCAT(B2,\" \",C2)","v":"DIEGO FERNANDO BUENO DIAZ"},500000]
[1068386598,"JORGE ELIAS","MOLINA PEREZ",{"$f":"_xlfn.CONCAT(B3,\" \",C3)","v":"JORGE ELIAS MOLINA PEREZ"},400000]
[1007148754,"EDUIN ESTIVEN","SANCHEZ LUCUMI","EDUIN ESTIVEN SANCHEZ LUCUMI",1600000]
[85167376,"YOVILSO","MARTINEZ TORRES","YOVILSO MARTINEZ TORRES",300000]
[98357869,"VICTOR ALFONSO","USAMA ASTUR","VICTOR ALFONSO USAMA ASTUR",300000]
[1033375210,"LUIS FERNANDO","LICONA CARREAZO","LUIS FERNANDO LICONA CARREAZO",1800000]
[1003826864,"KEVIN SEBASTIAN","ALARCON LOZANO","KEVIN SEBASTIAN ALARCON LOZANO",300000]
[1073824103,"DANILO DANIEL","DORIA PASTRANA","DANILO DANIEL DORIA PASTRANA",1500000]
[1043608141,"KEVIN EDUARDO","MORALES PACHECO","KEVIN EDUARDO MORALES PACHECO",1100000]
[14476412,"ALESSI","SOLIS VIVAS","ALESSI SOLIS VIVAS",300000]
[4547649,"ADRIAN ALEXANDER","MUNERA PATIÑO","ADRIAN ALEXANDER MUNERA PATIÑO",300000]
[1111750785,"JOHN VREINER","VALLESILLA BRAVO","JOHN VREINER VALLESILLA BRAVO",1700000]
[1061805134,"CRISTIAN FERNANDO","MOSQUERA VALENCIA","CRISTIAN FERNANDO MOSQUERA VALENCIA",2000000]
[1118298527,"ANYELO RICARDO","ALVARADO HOYOS","ANYELO RICARDO ALVARADO HOYOS",2000000]
[1192780887,"FABIO ANTONIO","NUÑEZ MORELO","FABIO ANTONIO NUÑEZ MORELO",300000]
[1017151529,"JORGE ELIECER","BEDOYA SEPULVEDA","JORGE ELIECER BEDOYA SEPULVEDA",300000]
[1114892413,"CRISTHIAN ANDRES","MILLAN RENDON","CRISTHIAN ANDRES MILLAN RENDON",400000]
[1143926275,"JUAN PABLO","SOLARTE VALENCIA","JUAN PABLO SOLARTE VALENCIA",300000]
[94396123,"RODOLFO","GIRALDO GUTIERREZ","RODOLFO GIRALDO GUTIERREZ",300000]
[1060988275,"JESUS FERNANDO","PINO ZEMANATE","JESUS FERNANDO PINO ZEMANATE",800000]
[1053836516,"ROBINSON ALFREDO","LOPEZ PARDO","ROBINSON ALFREDO LOPEZ PARDO",2000000]
[6393901,"MARIO FERNANDO","PAZ MARTINEZ","MARIO FERNANDO PAZ MARTINEZ",300000]
[16282057,"JESUS ARTURO","NARVAEZ MERA","JESUS ARTURO NARVAEZ MERA",2000000]
[16917169,"DIEGO FERNANDO","ANTE ZAMBRANO","DIEGO FERNANDO ANTE ZAMBRANO",300000]
[16886202,"LUIS CARLOS","RAMIREZ BARRERA","LUIS CARLOS RAMIREZ BARRERA",1400000]
[94320640,"JHON JAIRO","MONTEALEGRE RUIZ","JHON JAIRO MONTEALEGRE RUIZ",2000000]
[14253257,"JOSE JULIAN","CRUZ CRIOLLO","JOSE JULIAN CRUZ CRIOLLO",1000000]
[77192532,"ENRIQUE","LASSO SALAZAR","ENRIQUE LASSO SALAZAR",1200000]
[14326043,"CARLOS ALFONSO","CASTILLO RIOS","CARLOS ALFONSO CASTILLO RIOS",300000]
[14894122,"ARCANGEL","RODRIGUEZ AGUDELO","ARCANGEL RODRIGUEZ AGUDELO",300000]
[1193356425,"LEISON","VALENCIA VELASQUEZ","LEISON VALENCIA VELASQUEZ",2000000]
[1077199242,"CARLOS ALBERTO","MOSQUERA MOSQUERA","CARLOS ALBERTO MOSQUERA MOSQUERA",300000]
[1113683988,"LUIS FERNANDO","PAZ FERNANDEZ","LUIS FERNANDO PAZ FERNANDEZ",2000000]
[7546631,"NORBEY","MONTOYA RODRIGUEZ","NORBEY MONTOYA RODRIGUEZ",2000000]
[93420446,"WILLIAN ALBERTO","RAMIREZ RIVERA","WILLIAN ALBERTO RAMIREZ RIVERA",2000000]
[87060771,"HAROL EDILSON","ROJAS ARCOS","HAROL EDILSON ROJAS ARCOS",1000000]
[1112484697,"CHRISTIAN ANDRES","CARDONA CAÑAS","CHRISTIAN ANDRES CARDONA CAÑAS",1800000]
[1036131654,"MANUEL ENRIQUE","MONA MONA","MANUEL ENRIQUE MONA MONA",2000000]
[37392603,"MARITZA","ORTIZ COLMENARES","MARITZA ORTIZ COLMENARES",500000]
[1096947770,"EDINSON FERLEY","HERRERA SANDOVAL","EDINSON FERLEY HERRERA SANDOVAL",300000]
[79621987,"WILLIAM","MAMANCHE VELASQUEZ","WILLIAM MAMANCHE VELASQUEZ",2000000]
[14576688,"HUGO HADID","HURTADO AGREDO","HUGO HADID HURTADO AGREDO",2000000]
[1006218142,"SEBASTIAN","MENESES ULL","SEBASTIAN MENESES ULL",1000000]
[1083555527,"FREDDY RAFAEL","YANCE MARTINEZ","FREDDY RAFAEL YANCE MARTINEZ",600000]
[1077087982,"ANGELICA MARIA","BOHORQUEZ SOTO","ANGELICA MARIA BOHORQUEZ SOTO",300000]
[1001299593,"IVAN DAVID","VALENCIA LOZANO","IVAN DAVID VALENCIA LOZANO",1000000]
[80192775,"DIEGO FERNANDO","RINCON BABATIVA","DIEGO FERNANDO RINCON BABATIVA",1000000]
[1033741610,"LEYDY YURLIE","VEGA MURCIA","LEYDY YURLIE VEGA MURCIA",300000]
[1002024652,"SAMIR ALFONSO","RUIZ PACHECO","SAMIR ALFONSO RUIZ PACHECO",300000]
[1006052251,"DANIEL STING","NUÑEZ CRUZ","DANIEL STING NUÑEZ CRUZ",2000000]
[10300470,"CIRO","JIMENEZ PAPAMIJA","CIRO JIMENEZ PAPAMIJA",300000]
[1064313822,"LUIS HERNANDO","GOMEZ GOMEZ","LUIS HERNANDO GOMEZ GOMEZ",800000]
[94526417,"DIEGO FERNANDO","RAMOS SANCHEZ","DIEGO FERNANDO RAMOS SANCHEZ",300000]
[1108929969,"LUIS ALEXANDER","RIVAS BRIÑEZ","LUIS ALEXANDER RIVAS BRIÑEZ",2000000]
[1060108210,"LUIS EDUARDO","PILCUE CAYAPU","LUIS EDUARDO PILCUE CAYAPU",800000]
[1082406564,"ENEIL ALFONSO","MONTENEGRO PACHECO","ENEIL ALFONSO MONTENEGRO PACHECO",700000]
[1083047367,"JUAN JOSE","CORREA LACERA","JUAN JOSE CORREA LACERA",300000]
[1143949493,"HUGO ALEJANDRO","PIEDRAHITA PEÑA","HUGO ALEJANDRO PIEDRAHITA PEÑA",300000]
[1090462134,"BRAYAN ALEXSANDRO","BEJAR CLARO","BRAYAN ALEXSANDRO BEJAR CLARO",300000]
[1002809411,"ALVEIRO","OSPINA OROZCO","ALVEIRO OSPINA OROZCO",1100000]
[1113646809,"JOSE EDGAR","BOLAÑOS CIFUENTES","JOSE EDGAR BOLAÑOS CIFUENTES",600000]
[80247189,"WILANDER","MENDEZ RAMIREZ","WILANDER MENDEZ RAMIREZ",600000]
[1108766518,"JHON ALEX","AYALA MARTINEZ","JHON ALEX AYALA MARTINEZ",300000]
[7380832,"ANDRES RUBEN","RHENALS FARIÑO","ANDRES RUBEN RHENALS FARIÑO",2000000]
[1064980699,"JOSE DE JESUS","PEREZ SENA","JOSE DE JESUS PEREZ SENA",800000]
[1006441155,"MADELEINIS","ORTEGA GUILLEN",{"$f":"_xlfn.CONCAT(B67,\" \",C67)","v":"MADELEINIS ORTEGA GUILLEN"},2000000]
[1130590242,"EDINSON","CUSPIAN RUIZ","EDINSON CUSPIAN RUIZ",300000]
[1235243577,"CARLOS JAVIER","BRAVO MARQUEZ","CARLOS JAVIER BRAVO MARQUEZ",1000000]
[74333295,"CARLOS HUMBERTO","LOPEZ SUAREZ","CARLOS HUMBERTO LOPEZ SUAREZ",1000000]
[1114898127,"BRANDON","ROA RAMIREZ","BRANDON ROA RAMIREZ",1600000]
[72020885,"JOSE DARIO","DE LA CRUZ MORALES","JOSE DARIO DE LA CRUZ MORALES",300000]
[16692337,"VICTOR GERMAN","BASTO ROZO","VICTOR GERMAN BASTO ROZO",2000000]
[16828923,"JUAN CARLOS","RAMIREZ GUARIN","JUAN CARLOS RAMIREZ GUARIN",300000]
[19467530,"CARLOS ALIRIO","ZAPATA PERILLA","CARLOS ALIRIO ZAPATA PERILLA",300000]
[10720185,"JOSE BOLIVAR","TROCHEZ TORRES","JOSE BOLIVAR TROCHEZ TORRES",2000000]
[16723067,"LUIS HERNANDO","ESCOBAR GOMEZ","LUIS HERNANDO ESCOBAR GOMEZ",2000000]
[94296721,"ULISES","NAVAS DOMINGUEZ","ULISES NAVAS DOMINGUEZ",800000]
[94529398,"FRANKLIN","HERRERA GARCES","FRANKLIN HERRERA GARCES",2000000]
[94529477,"EVER ALEXANDER","SOLARTE SOLARTE","EVER ALEXANDER SOLARTE SOLARTE",2000000]
[16671100,"ARNULFO","CUEVAS FERNANDEZ","ARNULFO CUEVAS FERNANDEZ",300000]
[94360815,"JEFFERSON","LOPEZ","JEFFERSON LOPEZ",2000000]
[71666320,"JOSE LUIS","PIMIENTA ARANGO","JOSE LUIS PIMIENTA ARANGO",2000000]
[73239883,"CARLOS ARTURO","GUERRERO MARTINEZ","CARLOS ARTURO GUERRERO MARTINEZ",2000000]
[1114872630,"OSCAR MAURICIO","PRECIADO SUAREZ","OSCAR MAURICIO PRECIADO SUAREZ",600000]
[94253879,"JESUS EDILSON","VIDALES VALBUENA","JESUS EDILSON VIDALES VALBUENA",2000000]
[16890364,"JOHN JAIRO","GUTIERREZ ZAMBRANO","JOHN JAIRO GUTIERREZ ZAMBRANO",2000000]
[16752320,"DIEGO FERNANDO","MONTOYA MORALES","DIEGO FERNANDO MONTOYA MORALES",2000000]
[16752541,"JORGE ALEXANDER","MINA CORTES","JORGE ALEXANDER MINA CORTES",300000]
[12918670,"VICENTE ALVIN","ARBOLEDA DELGADO","VICENTE ALVIN ARBOLEDA DELGADO",2000000]
[16451444,"CARLOS ERNESTO","MUNOZ VERANO","CARLOS ERNESTO MUNOZ VERANO",1300000]
[66902253,"MARIA DEL PILAR","VALENCIA VALLECILLA","MARIA DEL PILAR VALENCIA VALLECILLA",2000000]
[94519789,"VLADIMIR","GONZALEZ AYALA","VLADIMIR GONZALEZ AYALA",2000000]
[94431192,"JHON JAIRO","VELASQUEZ GONZALEZ","JHON JAIRO VELASQUEZ GONZALEZ",300000]
[1001881138,"MIOSOTIS CAMILA","ANGUILA RODRIGUEZ","MIOSOTIS CAMILA ANGUILA RODRIGUEZ",1000000]
[1007785221,"JHON DENNIS","HURTADO USSA","JHON DENNIS HURTADO USSA",1000000]
[1082906991,"JORGE ELIECER","PACHECO LOPEZ","JORGE ELIECER PACHECO LOPEZ",300000]
[16944963,"JHON FREDY","SANCHEZ OSORIO","JHON FREDY SANCHEZ OSORIO",2000000]
[1031154385,"LEIDY JOHANA","CARDOZO MARTINEZ","LEIDY JOHANA CARDOZO MARTINEZ",2000000]
[1001145296,"JAIBER ARLEY","JARAMILLO HOYOS","JAIBER ARLEY JARAMILLO HOYOS",1900000]
[93472227,"CESAR AUGUSTO","GOMEZ MORENO","CESAR AUGUSTO GOMEZ MORENO",2000000]
[1193237542,"EDWIN ESTIVEN","CUERO GODOY","EDWIN ESTIVEN CUERO GODOY",300000]
[1082690119,"CARLOS AUGUSTO","BEDOYA CABEZAS","CARLOS AUGUSTO BEDOYA CABEZAS",300000]
[74185486,"JUAN CARLOS","CASTRO MARTINEZ","JUAN CARLOS CASTRO MARTINEZ",1000000]
[1192908804,"CRISTIAN","RIASCOS GRUESO","CRISTIAN RIASCOS GRUESO",500000]
[1040494984,"ADRIAN DAVID","MACIAS ARRIETA","ADRIAN DAVID MACIAS ARRIETA",1500000]
[12752389,"CARLOS ALBERTO","GUERRERO JOSA","CARLOS ALBERTO GUERRERO JOSA",300000]
[1063306373,"YUBER STID","ORREGO ECHAVARRIA","YUBER STID ORREGO ECHAVARRIA",300000]
[1109841365,"JORGE HERMIDES","VIUCHE VIDAL","JORGE HERMIDES VIUCHE VIDAL",300000]
[1111774849,"IVAN STIVEN","RIVAS CAICEDO","IVAN STIVEN RIVAS CAICEDO",300000]
[1053323455,"FREDY MANUEL","RODRIGUEZ CASTELLANOS","FREDY MANUEL RODRIGUEZ CASTELLANOS",800000]
[1004486170,"JOSE FRANCISCO","GONZALEZ AVILA","JOSE FRANCISCO GONZALEZ AVILA",800000]
[1144062709,"JORDY ESTEVENS","SALAZAR GONZALEZ","JORDY ESTEVENS SALAZAR GONZALEZ",1600000]
[1078778077,"ALEXIS","GONZALEZ GONZALEZ","ALEXIS GONZALEZ GONZALEZ",2000000]
[8363288,"VICTOR SILVIO","CASTAÑEDA RICARDO","VICTOR SILVIO CASTAÑEDA RICARDO",1100000]
[1151940332,"KELLY XIOMARA","GIRALDO RUIZ","KELLY XIOMARA GIRALDO RUIZ",2000000]
[1001479940,"JUAN DAVID","VALENCIA GIRALDO","JUAN DAVID VALENCIA GIRALDO",800000]
[1070593568,"CHRISTIAN HERNANDO","LOPEZ MONTENEGRO","CHRISTIAN HERNANDO LOPEZ MONTENEGRO",400000]
[1102880894,"DEIMER ENRIQUE","ROMERO MARQUEZ","DEIMER ENRIQUE ROMERO MARQUEZ",300000]
[1072672892,"JOSE LEONARDO","IBAÑEZ GARZON","JOSE LEONARDO IBAÑEZ GARZON",500000]
[1001682410,"EDWIN MIGUEL","MARTINEZ ECHAVARRIA","EDWIN MIGUEL MARTINEZ ECHAVARRIA",600000]
[1111816661,"JOSE JACKI","MARTAN PINEDA","JOSE JACKI MARTAN PINEDA",400000]
[40217906,"HERICA ANDREA","RODRIGUEZ CHALA","HERICA ANDREA RODRIGUEZ CHALA",2000000]
[1112486238,"JOHAN GABRIEL","PASAJE CAMAYO","JOHAN GABRIEL PASAJE CAMAYO",1300000]
[1064431967,"FRANCY MILENA","PEREZ LUCUMI","FRANCY MILENA PEREZ LUCUMI",2000000]
[71051474,"GUILLERMO DE JESUS","CARTAGENA DURANGO","GUILLERMO DE JESUS CARTAGENA DURANGO",1700000]
[1079177884,"OSCAR RENE","GUTIERREZ CHAVARRO","OSCAR RENE GUTIERREZ CHAVARRO",2000000]
[1042454562,"DONALDO RAFAEL","SANTANA HERRERA","DONALDO RAFAEL SANTANA HERRERA",300000]
[78733960,"WALTER GREGORIO","MARTELO GUZMAN","WALTER GREGORIO MARTELO GUZMAN",1700000]
[1111790028,"KEVIN STEVEN","SANCHEZ VALENCIA","KEVIN STEVEN SANCHEZ VALENCIA",300000]
[1002462253,"LUIS MIGUEL","ROJAS VALBUENA",{"$f":"_xlfn.CONCAT(B131,\" \",C131)","v":"LUIS MIGUEL ROJAS VALBUENA"},800000]
[1040516434,"JAIME DAVID","GONZALEZ MONTERROSA","JAIME DAVID GONZALEZ MONTERROSA",800000]
[1114883272,"JOHNATAN","MACA AGREDO","JOHNATAN MACA AGREDO",800000]
[1013642527,"DAYANA ANDREA","BARBOSA BARBOSA","DAYANA ANDREA BARBOSA BARBOSA",300000]
[1113662804,"MIGUEL ANGEL","ZAPE CASTILLO","MIGUEL ANGEL ZAPE CASTILLO",300000]
[1193222611,"JHONATAN ALBERTO","ASPRILLA PANDALES","JHONATAN ALBERTO ASPRILLA PANDALES",300000]
[1118857083,"DAVID JOSE","ARPUSHANA IPUANA","DAVID JOSE ARPUSHANA IPUANA",2000000]
[72341898,"GLEINER ANTONIO","HERRERA PACHECO","GLEINER ANTONIO HERRERA PACHECO",1500000]
[1114893114,"IVAN DARIO","ZUÑIGA MOLINA","IVAN DARIO ZUÑIGA MOLINA",300000]
[14838290,"JOHN FREDDY","VELEZ ASCUNTAR","JOHN FREDDY VELEZ ASCUNTAR",900000]
[94419280,"CARLOS ARTURO","RAMIREZ MORENO","CARLOS ARTURO RAMIREZ MORENO",300000]
[15488202,"JOSE HERLEN","MONTOYA IBARRA","JOSE HERLEN MONTOYA IBARRA",2000000]
[94331176,"RUBEN DARIO","GAMEZ BOTERO","RUBEN DARIO GAMEZ BOTERO",1800000]
[80540783,"CARLOS ALBERTO","BOHORQUEZ MONTAÑEZ","CARLOS ALBERTO BOHORQUEZ MONTAÑEZ",300000]
[4290882,"DARIO","HUERTAS SANCHEZ","DARIO HUERTAS SANCHEZ",300000]
[16730992,"JAMES","OSPITIA ECHEVERRY","JAMES OSPITIA ECHEVERRY",300000]
[78033703,"MANUEL ANTONIO","BAUTISTA MURILLO","MANUEL ANTONIO BAUTISTA MURILLO",2000000]
[94540433,"CARLOS ALFREDO","QUINTERO CORTES","CARLOS ALFREDO QUINTERO CORTES",300000]
[79599025,"JORGE ENRIQUE","NUÑEZ PANIAGUA","JORGE ENRIQUE NUÑEZ PANIAGUA",2000000]
[1024540619,"YAMILE ANDREA","CUBILLOS GOMEZ","YAMILE ANDREA CUBILLOS GOMEZ",300000]
[1108206066,"MILTON JOANI","BUITRAGO CASTELLANOS","MILTON JOANI BUITRAGO CASTELLANOS",300000]
[82363526,"LUIS ARLEY","MOSQUERA","LUIS ARLEY MOSQUERA",300000]
[16272591,"CARLOS HERNAN","LOPEZ CARO","CARLOS HERNAN LOPEZ CARO",2000000]
[76329815,"WILFREDO HERNEY","LAME CAMPO","WILFREDO HERNEY LAME CAMPO",300000]
[94518961,"GIOVANNY","TIMOTE TOVAR","GIOVANNY TIMOTE TOVAR",300000]
[16832591,"ARMANDO","CAMARGO MEYER","ARMANDO CAMARGO MEYER",300000]
[6346608,"BERNARDO","GUTIERREZ RIVERA","BERNARDO GUTIERREZ RIVERA",2000000]
[16487423,"TEOFILO","HURTADO GARCES","TEOFILO HURTADO GARCES",2000000]
[6229007,"SERGIO ANTONIO","LONDONO SANCHEZ","SERGIO ANTONIO LONDONO SANCHEZ",2000000]
[14679638,"YINER","MENA ASPRILLA","YINER MENA ASPRILLA",2000000]
[12117406,"RODRIGO","LUGO CHARA","RODRIGO LUGO CHARA",500000]
[12276133,"FABIO HERNAN","PERDOMO BAUTISTA","FABIO HERNAN PERDOMO BAUTISTA",2000000]
[80442212,"CARLOS HERNANDO","SAENZ VARGAS","CARLOS HERNANDO SAENZ VARGAS",2000000]
[93372877,"BENJAMIN","BENITEZ SANCHEZ","BENJAMIN BENITEZ SANCHEZ",2000000]
[16281523,"JAVIER","SARRIA BLANDON","JAVIER SARRIA BLANDON",700000]
[94542538,"CARLOS ANDRES","LIZCANO ZEA","CARLOS ANDRES LIZCANO ZEA",300000]
[94250113,"ALONSO","MONTOYA MONCALEANO","ALONSO MONTOYA MONCALEANO",300000]
[71334857,"EDGAR DE JESUS","PATIÑO GUTIERREZ","EDGAR DE JESUS PATIÑO GUTIERREZ",2000000]
[6221708,"CARLOS ARTURO","VIVEROS ROMERO","CARLOS ARTURO VIVEROS ROMERO",400000]
[4611596,"JESUS ADOLFO","FINSCUE GURRUTE","JESUS ADOLFO FINSCUE GURRUTE",800000]
[1000209914,"JOHAN CAMILO","QUICENO LEZCANO","JOHAN CAMILO QUICENO LEZCANO",300000]
[1108232343,"YOHANFER","DEVIA CARDENAS","YOHANFER DEVIA CARDENAS",500000]
[1045417332,"WILLIAM ANTONIO","VALLEJO SALCEDO","WILLIAM ANTONIO VALLEJO SALCEDO",1000000]
[1010031742,"KAREN YUSBLEIDY","HINCAPIE SIERRA","KAREN YUSBLEIDY HINCAPIE SIERRA",600000]
[1023029377,"DAISSY DAYANNY","GONZALEZ BARAJAS","DAISSY DAYANNY GONZALEZ BARAJAS",1900000]
[1038108436,"JAMER DAVID","ENSUNCHO HERNANDEZ","JAMER DAVID ENSUNCHO HERNANDEZ",1300000]
[94276463,"OSCAR FABIAN","RAMIREZ PADILLA","OSCAR FABIAN RAMIREZ PADILLA",800000]
[15437594,"OSCAR HERNAN","RAMIREZ OSORIO","OSCAR HERNAN RAMIREZ OSORIO",800000]
[72337486,"WILMAN MARIO","MONROY VELASQUEZ","WILMAN MARIO MONROY VELASQUEZ",800000]
[1059785697,"RAMON ELIAS","BEDOYA BEDOYA","RAMON ELIAS BEDOYA BEDOYA",300000]
[1007697954,"DAIRO ANTONIO","VANEGAS SANCHEZ","DAIRO ANTONIO VANEGAS SANCHEZ",300000]
[1235040315,"HARRISON","PUERTA GARCIA","HARRISON PUERTA GARCIA",300000]
[1088945925,"JESUS EYVAR","DAZA","JESUS EYVAR DAZA",300000]
[1143978464,"SEBASTIAN","VILLAQUIRAN CUENCA","SEBASTIAN VILLAQUIRAN CUENCA",2000000]
[1076381671,"ELKIN","MORENO RAMIREZ","ELKIN MORENO RAMIREZ",2000000]
[1002189043,"CARLOS MARIO","JIMENEZ POLO","CARLOS MARIO JIMENEZ POLO",2000000]
[1143993917,"HARLINTON MAURICIO","ALVAREZ DIAZ","HARLINTON MAURICIO ALVAREZ DIAZ",500000]
[1130661984,"MAURICIO","LOPEZ CRUZ","MAURICIO LOPEZ CRUZ",700000]
[1001391177,"KEVIN","CATAÑO AGUDELO","KEVIN CATAÑO AGUDELO",300000]
[1107074006,"JUAN CAMILO","CERON ESPINOSA","JUAN CAMILO CERON ESPINOSA",300000]
[1095766410,"VILSON HENRY","GARAVITO LUQUE","VILSON HENRY GARAVITO LUQUE",2000000]
[94558459,"CARLOS MARIO","ENCARNACION BALANTA","CARLOS MARIO ENCARNACION BALANTA",1600000]
[1118307153,"MERCEDES","MUÑOZ RUIZ","MERCEDES MUÑOZ RUIZ",2000000]
[1127066145,"JOSE LUIS","RIVERA COTE","JOSE LUIS RIVERA COTE",600000]
[1031420087,"LAURA JULIANA","MORENO PIRA",{"$f":"_xlfn.CONCAT(B195,\" \",C195)","v":"LAURA JULIANA MORENO PIRA"},600000]
[87513272,"JOSE VICTOR","JATIVA SOTO","JOSE VICTOR JATIVA SOTO",2000000]
[78705811,"MISAEL ANTONIO","MACHADO VILORIA","MISAEL ANTONIO MACHADO VILORIA",1200000]
[1079410244,"GEFERSON","ANDRADE CHIMBACO","GEFERSON ANDRADE CHIMBACO",300000]
[1075307888,"JUAN CARLOS","CACERES PLAZA","JUAN CARLOS CACERES PLAZA",600000]
[94504559,"EDISON FERNANDO","PARRA","EDISON FERNANDO PARRA",1700000]
[1006330975,"JORGE ENRIQUE","ARANGO RODRIGUEZ","JORGE ENRIQUE ARANGO RODRIGUEZ",600000]
[6406734,"RICHARD ALEXIS","SALAZAR DONOSO","RICHARD ALEXIS SALAZAR DONOSO",2000000]
[10498771,"FRANKI ALBERTO","CARABALI SANDOVAL","FRANKI ALBERTO CARABALI SANDOVAL",300000]
[1129804207,"ANDREA ALEJANDRA","CIPRIANO FLOREZ","ANDREA ALEJANDRA CIPRIANO FLOREZ",800000]
[1192915752,"JUAN CARLOS","SANTOS VERGEL","JUAN CARLOS SANTOS VERGEL",300000]
[1003080075,"WILLIAM DAVID","ARRIETA QUINTANA","WILLIAM DAVID ARRIETA QUINTANA",1000000]
[7310775,"WILLIAM","MATALLANA LARA","WILLIAM MATALLANA LARA",400000]
[1006289267,"JUAN CAMILO","SARRIA DURAN","JUAN CAMILO SARRIA DURAN",1800000]
[1071355937,"OSCAR DAVID","JIMENEZ HERNANDEZ","OSCAR DAVID JIMENEZ HERNANDEZ",300000]
[1003837586,"CRISTHIAN CAMILO","ROCHA CRISTANCHO","CRISTHIAN CAMILO ROCHA CRISTANCHO",1100000]
[1007700095,"YEFRI SANTIAGO","SILVA MAIGUAL","YEFRI SANTIAGO SILVA MAIGUAL",300000]
[91043844,"GERARDO","CHACON MORENO","GERARDO CHACON MORENO",1200000]
[1112222636,"DUVAN","HURTADO HURTADO","DUVAN HURTADO HURTADO",300000]
[4617975,"JOSE DILIMO","CAICEDO CARABALI","JOSE DILIMO CAICEDO CARABALI",1200000]
[10776206,"MILTON CESAR","ARANGO MADARIAGA","MILTON CESAR ARANGO MADARIAGA",800000]
[80493558,"JHON JAIRO","LEYTON TAVERA","JHON JAIRO LEYTON TAVERA",300000]
[10471942,"ALBERTO","AMBUILA RODRIGUEZ","ALBERTO AMBUILA RODRIGUEZ",2000000]
[94426383,"JUAN CARLOS","GALVIS CARDENAS","JUAN CARLOS GALVIS CARDENAS",2000000]
[80258738,"FIDEL ARMANDO","GARCIA MARIN","FIDEL ARMANDO GARCIA MARIN",400000]
[94371563,"MAURICIO","GUTIERREZ DELGADO","MAURICIO GUTIERREZ DELGADO",2000000]
[9466655,"JOSE ANGEL","REINA FORERO","JOSE ANGEL REINA FORERO",2000000]
[1072255979,"ALBEIRO DE JESUS","SILVA CORREA","ALBEIRO DE JESUS SILVA CORREA",300000]
[1192908859,"WILSON ARLEY","CASTRO CASTILLO","WILSON ARLEY CASTRO CASTILLO",2000000]
[1082128470,"EDUAR ANDRES","AUDOR ORTEGA","EDUAR ANDRES AUDOR ORTEGA",300000]
[1116255717,"ANA KATHERINE","HINCAPIE NIETO","ANA KATHERINE HINCAPIE NIETO",2000000]
[79671176,"JOSE ORLANDO","NIÑO MURCIA","JOSE ORLANDO NIÑO MURCIA",2000000]
[1001173358,"JHON JAIRO","RODRIGUEZ RUEDA","JHON JAIRO RODRIGUEZ RUEDA",2000000]
[1143925939,"FREDDY ALEXANDER","VIAFARA SANCHEZ","FREDDY ALEXANDER VIAFARA SANCHEZ",300000]
[1003260266,"SAMUEL","RODRIGUEZ PINZON","SAMUEL RODRIGUEZ PINZON",400000]
[1038806688,"JHON EDINSON","MARTINEZ MOYA","JHON EDINSON MARTINEZ MOYA",600000]
[1151950535,"RODRIGO ALEXANDER","MUÑOZ SOTELO","RODRIGO ALEXANDER MUÑOZ SOTELO",300000]
[1007350911,"DAVIER MANUEL","ANAYA DAVID","DAVIER MANUEL ANAYA DAVID",1000000]
[1113656841,"BRAHIAN CAMILO","BURBANO IPIA","BRAHIAN CAMILO BURBANO IPIA",600000]
[1077647570,"JARINSON","CORDOBA ASPRILLA","JARINSON CORDOBA ASPRILLA",2000000]
[1082833242,"DARWIN ANTONIO","IBAÑEZ OROZCO","DARWIN ANTONIO IBAÑEZ OROZCO",600000]
[1069713469,"FELIX ARMANDO","DIAZ PINZON","FELIX ARMANDO DIAZ PINZON",300000]
[16858491,"GERARDO","GONZALEZ QUINONEZ","GERARDO GONZALEZ QUINONEZ",1300000]
[1003559369,"BRAYAN ESTIVEN","GUTIERREZ GARIVELLO","BRAYAN ESTIVEN GUTIERREZ GARIVELLO",700000]
[1130645600,"EDISON","TRUJILLO MIRANDA","EDISON TRUJILLO MIRANDA",2000000]
[80226042,"FREDY IVAN","GONZALEZ CONTRERAS","FREDY IVAN GONZALEZ CONTRERAS",800000]
[1109266117,"CHRISTIAN DAVID","SANCHEZ MOGOLLON","CHRISTIAN DAVID SANCHEZ MOGOLLON",1400000]
[1143931435,"VICTOR ALEJANDRO","OLAVE VARGAS","VICTOR ALEJANDRO OLAVE VARGAS",2000000]
[1130607190,"SIGIFREDO","GOMEZ MUNOZ","SIGIFREDO GOMEZ MUNOZ",300000]
[1130626430,"RUBEN ELADIO","RAMIREZ","RUBEN ELADIO RAMIREZ",1500000]
[14477438,"JARLINSON","VELEZ MORENO","JARLINSON VELEZ MORENO",300000]
[10198347,"GONZALO","SERNA VALENCIA","GONZALO SERNA VALENCIA",2000000]
[71051295,"WILFER MARIANO","RAMIREZ MONTOYA","WILFER MARIANO RAMIREZ MONTOYA",600000]
[1064487117,"EDWIN","ARAGON HERRERA","EDWIN ARAGON HERRERA",300000]
[1108931075,"HERNAN MAURICIO","PERDOMO OVIEDO","HERNAN MAURICIO PERDOMO OVIEDO",900000]
[93339147,"JUAN CARLOS","CHACON PEÑA","JUAN CARLOS CHACON PEÑA",2000000]
[85476062,"CARLOS FERNANDO","RUIZ PERALTA","CARLOS FERNANDO RUIZ PERALTA",300000]
[1143985118,"YEISON STIVEN","AYALA YUSTI","YEISON STIVEN AYALA YUSTI",2000000]
[14470646,"CHARLES","CAMPO POLOCHE","CHARLES CAMPO POLOCHE",2000000]
[1143997517,"JOSE LUIS","CAICEDO RAMOS","JOSE LUIS CAICEDO RAMOS",700000]
[1033368950,"JANER","CORONADO SOLAR","JANER CORONADO SOLAR",1500000]
[1007246833,"EVER LUIS","DAVILA TORRES","EVER LUIS DAVILA TORRES",300000]
[16892596,"OMAR ROLANDO","BERMUDEZ CAICEDO","OMAR ROLANDO BERMUDEZ CAICEDO",1900000]
[1007448497,"LUIS FERNANDO","TENORIO PABUENA","LUIS FERNANDO TENORIO PABUENA",2000000]
[6283609,"JOSE ORLANDO","DUQUE BERMUDEZ",{"$f":"_xlfn.CONCAT(B259,\" \",C259)","v":"JOSE ORLANDO DUQUE BERMUDEZ"},1700000]
[1040511836,"ISAAC MANUEL","ARAUJO GALVIS","ISAAC MANUEL ARAUJO GALVIS",2000000]
[15612880,"EDER DE JESUS","MARTINEZ GONZALEZ","EDER DE JESUS MARTINEZ GONZALEZ",2000000]
[1120358986,"JHON CARLOS","ZARATE CASTRO","JHON CARLOS ZARATE CASTRO",1300000]
[1130944879,"LEIDY JOHANNA","CAMACHO DAVID","LEIDY JOHANNA CAMACHO DAVID",1000000]
[1005831558,"JOSE BRANDON","GONZALEZ CABRERA","JOSE BRANDON GONZALEZ CABRERA",300000]
[1001643542,"YEFFERSON ALEXANDER","RIOS GARCIA","YEFFERSON ALEXANDER RIOS GARCIA",300000]
[1112881370,"FABIAN ANDRES","BLANDON MUÑOZ","FABIAN ANDRES BLANDON MUÑOZ",2000000]
[1193475298,"HECTOR DAVID","MINA BARRERA","HECTOR DAVID MINA BARRERA",2000000]
[1007201456,"DIDIER ALEXANDER","MORALES CAPOTE","DIDIER ALEXANDER MORALES CAPOTE",300000]
[1193510151,"NILSON","PANAMEÑO DIAZ","NILSON PANAMEÑO DIAZ",800000]
[80377487,"PEDRO ALEXIS","CHALA GUATEQUE","PEDRO ALEXIS CHALA GUATEQUE",2000000]
[12123592,"ALVARO","HUEPE","ALVARO HUEPE",2000000]
[1059599831,"LEONARDO","SABOGAL COBO","LEONARDO SABOGAL COBO",1200000]
[16369304,"ALEXANDER","BEDOYA CASTANO","ALEXANDER BEDOYA CASTANO",2000000]
[6646670,"HOOVER","CALVO PEREZ","HOOVER CALVO PEREZ",2000000]
[1106774167,"JOHN WILMER","TORRES","JOHN WILMER TORRES",2000000]
[10631922,"RUBEN DARIO","GIRALDO","RUBEN DARIO GIRALDO",1000000]
[71649720,"FRANCISCO JAVIER","PATIÑO GOMEZ","FRANCISCO JAVIER PATIÑO GOMEZ",1400000]
[1082953854,"JHORMAN ALBERTO","PAREJO ALVAREZ","JHORMAN ALBERTO PAREJO ALVAREZ",300000]
[94378550,"LUIS EDUARDO","MONTIEL JARAMILLO","LUIS EDUARDO MONTIEL JARAMILLO",300000]
[12984255,"NEFER LIBARDO","FERNANDEZ RAMIREZ","NEFER LIBARDO FERNANDEZ RAMIREZ",2000000]
[1082657320,"LUIS CARLOS","CASTRO ALVAREZ","LUIS CARLOS CASTRO ALVAREZ",300000]
[71689730,"JAIME DE JESUS","ZAPATA BLANDON","JAIME DE JESUS ZAPATA BLANDON",2000000]
[16282818,"LEYDER GABRIEL","SANDOVAL DEMOYA","LEYDER GABRIEL SANDOVAL DEMOYA",2000000]
[1040501379,"CARLOS FABIAN","FLOREZ HERAZO","CARLOS FABIAN FLOREZ HERAZO",600000]
[5365363,"JOSE ARISTO","VALENCIA GRANJA","JOSE ARISTO VALENCIA GRANJA",2000000]
[94456206,"SANDER","SIERRA SUAREZ","SANDER SIERRA SUAREZ",2000000]
[52172425,"YAQUELIN","DELGADILLO SALAMANCA","YAQUELIN DELGADILLO SALAMANCA",800000]
[1069266922,"YEISON JAVIER","RODRIGUEZ LOPEZ","YEISON JAVIER RODRIGUEZ LOPEZ",300000]
[1053832550,"SEBASTIAN","AGUDELO CASTAÑO","SEBASTIAN AGUDELO CASTAÑO",300000]
[6324600,"LUIS ALFONSO","REINA","LUIS ALFONSO REINA",2000000]
[93298643,"EDWIN LINER","CHICA BEDOYA","EDWIN LINER CHICA BEDOYA",1400000]
[1113595613,"JUAN CAMILO","PULGARIN RAMIREZ","JUAN CAMILO PULGARIN RAMIREZ",900000]
[1143455125,"BRAYNER DE JESUS","SARMIENTO QUINTERO","BRAYNER DE JESUS SARMIENTO QUINTERO",400000]
[78114347,"DONAIRO RAFAEL","LUNA BENITEZ","DONAIRO RAFAEL LUNA BENITEZ",300000]
[38604423,"INGRID KATHERINE","ECHEVERRI FERNANDEZ","INGRID KATHERINE ECHEVERRI FERNANDEZ",800000]
[1003126676,"JESUALDO","DIAZ MARTINEZ","JESUALDO DIAZ MARTINEZ",700000]
[15387295,"HECTOR ADRIAN","GARCIA MORENO","HECTOR ADRIAN GARCIA MORENO",2000000]
[1061017687,"VICTOR ALFONSO","MUÑOZ ÑAÑEZ","VICTOR ALFONSO MUÑOZ ÑAÑEZ",2000000]
[1059704734,"LUIS ARMANDO","LENGUA GAÑAN","LUIS ARMANDO LENGUA GAÑAN",500000]
[16781678,"ROBERT","NUÑEZ LEON","ROBERT NUÑEZ LEON",2000000]
[1078857082,"JOSE JEFERSON","COPETE PALACIOS","JOSE JEFERSON COPETE PALACIOS",2000000]
[1067094230,"ESTEBAN ANDRES","GAVIRIA SAEZ","ESTEBAN ANDRES GAVIRIA SAEZ",500000]
[1003558702,"JHEFRIN ESMIG","GUTIERREZ GARIVELLO","JHEFRIN ESMIG GUTIERREZ GARIVELLO",1000000]
[1130948683,"JOSE MANUEL","PEREA HURTADO","JOSE MANUEL PEREA HURTADO",500000]
[1111809589,"OSCAR YESSID","MOSQUERA RIASCOS","OSCAR YESSID MOSQUERA RIASCOS",300000]
[16273424,"NESTOR RAUL","ARAMBURO TENORIO","NESTOR RAUL ARAMBURO TENORIO",800000]
[1045145602,"JOHNIER FERNEY","ESPEJO FLOREZ","JOHNIER FERNEY ESPEJO FLOREZ",600000]
[1003194838,"ANGEL ANDRES","ANACONA MUÑOZ","ANGEL ANDRES ANACONA MUÑOZ",300000]
[1133797314,"MAIDA LORENA","CRUZ BORJA","MAIDA LORENA CRUZ BORJA",600000]
[1077088449,"OSCAR FABIAN","VEGA GACHA","OSCAR FABIAN VEGA GACHA",600000]
[1010077121,"MAICOL STIVEN","HURTADO TORRES","MAICOL STIVEN HURTADO TORRES",300000]
[85370863,"TONI PAUL","CAÑATE ECHEVERRIA","TONI PAUL CAÑATE ECHEVERRIA",300000]
[92541654,"EDWIN DE JESUS","GUERRERO MENDEZ","EDWIN DE JESUS GUERRERO MENDEZ",300000]
[1113690287,"JOHAN STIVEN","PLAZA MARTINEZ","JOHAN STIVEN PLAZA MARTINEZ",300000]
[1003714939,"EDUARD YESITH","DIAZ LAGARES","EDUARD YESITH DIAZ LAGARES",300000]
[1143335133,"MARLON","MARIMON CARRIAZO","MARLON MARIMON CARRIAZO",1000000]
[85272512,"DIOFANOR","REDONDO CASTILLEJO","DIOFANOR REDONDO CASTILLEJO",2000000]
[16696258,"JESUS BOLIVAR","ZUNIGA SANDOVAL","JESUS BOLIVAR ZUNIGA SANDOVAL",1100000]
[1113302555,"VANESSA","RENDON VALENCIA","VANESSA RENDON VALENCIA",2000000]
[94535660,"YASHIN ALEXIS","ANGEL PARRA","YASHIN ALEXIS ANGEL PARRA",2000000]
[76279861,"SOFONIA","BANGUERA OCORO","SOFONIA BANGUERA OCORO",2000000]
[1143827953,"PAWER ANDRES","PRECIADO DOMINGUEZ","PAWER ANDRES PRECIADO DOMINGUEZ",300000]
[71452300,"CARLOS ANDREY","CARVAJAL GIRALDO",{"$f":"_xlfn.CONCAT(B323,\" \",C323)","v":"CARLOS ANDREY CARVAJAL GIRALDO"},1000000]
[16858544,"LUIS ALDEMAR","RIVAS ASPRILLA","LUIS ALDEMAR RIVAS ASPRILLA",700000]
[94295767,"WILSON","TROCHEZ TROCHEZ","WILSON TROCHEZ TROCHEZ",1000000]
[9955028,"HERIBERTO DE JESUS","GALLEGO RIOS","HERIBERTO DE JESUS GALLEGO RIOS",2000000]
[1110471393,"WILLIAM ALEXANDER","ESCOBAR TRUJILLO","WILLIAM ALEXANDER ESCOBAR TRUJILLO",2000000]
[94311896,"AGOBARDO","NARANJO DUQUE","AGOBARDO NARANJO DUQUE",900000]
[94266371,"SIGIFREDO","MARTINEZ GOMEZ","SIGIFREDO MARTINEZ GOMEZ",300000]
[94532254,"YEISMER","ROJAS NUNEZ","YEISMER ROJAS NUNEZ",2000000]
[1062289437,"ESNEY","ARARAT MUÑOZ","ESNEY ARARAT MUÑOZ",2000000]
[76045489,"PABLO CESAR","MINA RODRIGUEZ","PABLO CESAR MINA RODRIGUEZ",300000]
[76337117,"JOSE RAUL","CARACAS MUNOZ","JOSE RAUL CARACAS MUNOZ",300000]
[71793646,"JUAN DIEGO","CARMONA LONDONO","JUAN DIEGO CARMONA LONDONO",2000000]
[94502670,"ANGEL","VALENCIA AQUINO","ANGEL VALENCIA AQUINO",300000]
[71174378,"MILTON ARLEY","VELASQUEZ CARDENAS","MILTON ARLEY VELASQUEZ CARDENAS",2000000]
[94399100,"NELSON ALEXANDER","CADAVID ENCISO","NELSON ALEXANDER CADAVID ENCISO",2000000]
[29110611,"MARITZA","CALVO PAYAN","MARITZA CALVO PAYAN",300000]
[93154713,"JORGE FRANCO","BERMUDEZ BARRIOS","JORGE FRANCO BERMUDEZ BARRIOS",2000000]
[16842008,"DANY DANIEL","MINAYO MORCILLO","DANY DANIEL MINAYO MORCILLO",2000000]
[1113649417,"JESENIA","VINASCO ARDILA","JESENIA VINASCO ARDILA",300000]
[80310454,"JOSE EDGAR","CAÑON GONZALEZ","JOSE EDGAR CAÑON GONZALEZ",300000]
[4776794,"JOSE LEIVAR","COLLAZOS PRADO","JOSE LEIVAR COLLAZOS PRADO",300000]
[11707155,"YAMID ARLEY","QUINTO MURILLO","YAMID ARLEY QUINTO MURILLO",2000000]
[16693700,"WALTER","HENAO PIMENTEL","WALTER HENAO PIMENTEL",2000000]
[16835643,"JOHNNY SAUL","BURBANO GASPAR","JOHNNY SAUL BURBANO GASPAR",2000000]
[1144193936,"JOSE DAVID","RAMIREZ PARRA","JOSE DAVID RAMIREZ PARRA",300000]
[1114898610,"JUAN CAMILO","ARENAS MARTINEZ","JUAN CAMILO ARENAS MARTINEZ",800000]
[1038815534,"JEIMER JOSE","LOPEZ VIANA","JEIMER JOSE LOPEZ VIANA",300000]
[1073605037,"ELKIN FABIAN","BALLESTEROS PACHON","ELKIN FABIAN BALLESTEROS PACHON",600000]
[11201131,"OSCAR ALBERTO","LOPEZ PABON","OSCAR ALBERTO LOPEZ PABON",300000]
[1002809072,"JHOAN SEBASTIAN","ACEVEDO TONUZCO","JHOAN SEBASTIAN ACEVEDO TONUZCO",300000]
[1007509218,"FRANK IVERSON","CIFUENTES GRUESO","FRANK IVERSON CIFUENTES GRUESO",300000]
[1114401656,"DIDIER HERNAN","LISCANO MARULANDA","DIDIER HERNAN LISCANO MARULANDA",2000000]
[1118286396,"LUIS FERNEY","CORTES CAICEDO","LUIS FERNEY CORTES CAICEDO",400000]
[1007351248,"KEVIN DE JESUS","POSADA MEDINA","KEVIN DE JESUS POSADA MEDINA",600000]
[1054986426,"CAMILA CRISTINA","CACANTE GARCIA","CAMILA CRISTINA CACANTE GARCIA",1500000]
[1064490844,"YAMIR","VANIN HURTADO","YAMIR VANIN HURTADO",300000]
[1114455108,"FABIAN ANDRES","AGUIRRE CORREA","FABIAN ANDRES AGUIRRE CORREA",2000000]
[66987584,"LUZ ANGELICA","VILLEGAS OSORIO","LUZ ANGELICA VILLEGAS OSORIO",2000000]
[1003746463,"MILTON ESTEBAN","CIPRIAN GUZMAN","MILTON ESTEBAN CIPRIAN GUZMAN",800000]
[1126905759,"KATHERINE ANDREA","VALENCIA LOPEZ","KATHERINE ANDREA VALENCIA LOPEZ",2000000]
[1000400099,"DAVID STIVENS","GOMEZ MAZO","DAVID STIVENS GOMEZ MAZO",800000]
[1053349659,"GOMEZ VEGA","HECTOR ALFONSO","GOMEZ VEGA HECTOR ALFONSO",600000]
[1045717580,"LUIS MIGUEL","TORRES ANDRADE","LUIS MIGUEL TORRES ANDRADE",300000]
[1113779616,"LUIS GILBERTO","PARRA GARCIA","LUIS GILBERTO PARRA GARCIA",300000]
[1024467194,"MARIA ALEJANDRA","PERALTA FALLA","MARIA ALEJANDRA PERALTA FALLA",600000]
[1007609592,"JOHAN DANILO","PEREZ RENDON","JOHAN DANILO PEREZ RENDON",600000]
[1003828759,"ADNER DAVID","GONZALEZ AGUIRRE","ADNER DAVID GONZALEZ AGUIRRE",600000]
[84091484,"ELDRIN YESITH","OÑATE PIMIENTA","ELDRIN YESITH OÑATE PIMIENTA",2000000]
[16863033,"FREDDY","CAMPO VELASCO","FREDDY CAMPO VELASCO",2000000]
[1082957230,"RAUL ALFONSO","PRADA APONTE","RAUL ALFONSO PRADA APONTE",800000]
[1086196127,"CARLOS FERNEY","AGUIRRES CAMACHO","CARLOS FERNEY AGUIRRES CAMACHO",500000]
[1002424626,"RODYS EDUARDO","LAGARES CHACON","RODYS EDUARDO LAGARES CHACON",1600000]
[3086132,"NESTOR JULIO","CELIS CRUZ","NESTOR JULIO CELIS CRUZ",1300000]
[72255829,"ALEXIS","BENAVIDES DE LA ROSA","ALEXIS BENAVIDES DE LA ROSA",2000000]
[1111781964,"JUNIOR","CASTRO ANGULO","JUNIOR CASTRO ANGULO",300000]
[98716951,"EDWIN","ASPRILLA HINESTROZA","EDWIN ASPRILLA HINESTROZA",2000000]
[1006327284,"ALDAIR","RODRIGUEZ VALENCIA","ALDAIR RODRIGUEZ VALENCIA",300000]
[1007925907,"DANIEL JOSE","AHUMADA VERGARA","DANIEL JOSE AHUMADA VERGARA",1900000]
[1233893177,"JONATAN","RINCON ARDILA","JONATAN RINCON ARDILA",300000]
[1031173747,"ALEX","NEGRETE ALVAREZ","ALEX NEGRETE ALVAREZ",300000]
[1214738276,"VERONICA TATIANA","CRUZ BEDOYA","VERONICA TATIANA CRUZ BEDOYA",300000]
[1193101682,"ALEJANDRO","OSPINA TABARES","ALEJANDRO OSPINA TABARES",2000000]
[1059597061,"DEIVY ALEJANDRO","CORREA TROCHEZ","DEIVY ALEJANDRO CORREA TROCHEZ",500000]
[8051218,"ALBEIRO ANTONIO","VILLEGAS PEREIRA","ALBEIRO ANTONIO VILLEGAS PEREIRA",1000000]
[1045493638,"EMIYOHAN","BENITEZ CUESTA",{"$f":"_xlfn.CONCAT(B387,\" \",C387)","v":"EMIYOHAN BENITEZ CUESTA"},1400000]
[98073153,"FELIPE MARTIN","BENAVIDEZ TAPUE","FELIPE MARTIN BENAVIDEZ TAPUE",300000]
[1130661057,"CARLOS AUGUSTO","CASTILLO","CARLOS AUGUSTO CASTILLO",2000000]
[1005867055,"HAMILTON","BERMUDEZ OBANDO","HAMILTON BERMUDEZ OBANDO",1000000]
[1112480591,"RICARDO","CAMPO SEMANATE","RICARDO CAMPO SEMANATE",2000000]
[1143926214,"CARLOS ARBEY","LONDOÑO LOAIZA","CARLOS ARBEY LONDOÑO LOAIZA",300000]
[16892963,"LUIS EDUARDO","QUINTERO CORTES","LUIS EDUARDO QUINTERO CORTES",300000]
[1143926425,"OMAR ALFREDO","CADAVID JARAMILLO","OMAR ALFREDO CADAVID JARAMILLO",500000]
[1062312916,"KELVIN JARDANI","CAMAYO OSNAS","KELVIN JARDANI CAMAYO OSNAS",600000]
[1144146627,"DANIEL FELIPE","LUCUMI ROMERO","DANIEL FELIPE LUCUMI ROMERO",300000]
[33368115,"ROSANGELA","BARRERA PINZON","ROSANGELA BARRERA PINZON",300000]
[11189207,"JAVIER","PEREZ ANZOLA","JAVIER PEREZ ANZOLA",300000]
[87217530,"ALVARO FABIAN","SANCHEZ CULCHAC","ALVARO FABIAN SANCHEZ CULCHAC",900000]
[70542322,"NICOLAS INDULFO","BENITEZ FLOREZ","NICOLAS INDULFO BENITEZ FLOREZ",1500000]
[1112099759,"KELLY DULIANA","ALFONSO CORREA","KELLY DULIANA ALFONSO CORREA",2000000]
[4738441,"RAFAEL","GAMBOA CAICEDO","RAFAEL GAMBOA CAICEDO",1000000]
[14839370,"WILSON","PORTELA GIL","WILSON PORTELA GIL",300000]
[10779994,"FRED","RODRIGUEZ CONDE","FRED RODRIGUEZ CONDE",2000000]
[76222515,"EDGAR","GUACA CHILITO","EDGAR GUACA CHILITO",2000000]
[10471786,"GUSTAVO ANTONIO","MURILLO TREJOS","GUSTAVO ANTONIO MURILLO TREJOS",800000]
[13760981,"HIPOLITO","SANTAMARIA SANCHEZ","HIPOLITO SANTAMARIA SANCHEZ",600000]
[16759106,"JOSE DANIEL","OROZCO TABAREZ","JOSE DANIEL OROZCO TABAREZ",2000000]
[19319659,"CARLOS FELIPE","MOLINARES NAVIA","CARLOS FELIPE MOLINARES NAVIA",2000000]
[16839648,"CESAR","PENA FAJARDO","CESAR PENA FAJARDO",300000]
[8363152,"JAYSON RAFAEL","BLANCO VASQUEZ","JAYSON RAFAEL BLANCO VASQUEZ",300000]
[12120497,"JAIME","TAFUR ALAPE","JAIME TAFUR ALAPE",2000000]
[76045542,"JORGE ELIECER","CUENCA CORDOBA","JORGE ELIECER CUENCA CORDOBA",300000]
[16453639,"JAIR ALBERTO","PAGUAY DELGADO","JAIR ALBERTO PAGUAY DELGADO",300000]
[10751583,"JORGE","QUILA","JORGE QUILA",1100000]
[4752136,"JERSAIN","LOPEZ GALINDEZ","JERSAIN LOPEZ GALINDEZ",2000000]
[3128312,"EDGAR ALIRIO","MORALES GUTIERREZ","EDGAR ALIRIO MORALES GUTIERREZ",2000000]
[4446338,"FERMIN DE JESUS","DIAZ HERNANDEZ","FERMIN DE JESUS DIAZ HERNANDEZ",2000000]
[11313723,"JUAN ALBERTO","GALEANO GUZMAN","JUAN ALBERTO GALEANO GUZMAN",600000]
[16289313,"PEDRO ENRIQUE","RUIZ JOAQUI","PEDRO ENRIQUE RUIZ JOAQUI",2000000]
[15904445,"RUBEN DARIO","ALVAREZ BEDOYA","RUBEN DARIO ALVAREZ BEDOYA",1200000]
[16776672,"RUBEN DARIO","JARAMILLO CHAVEZ","RUBEN DARIO JARAMILLO CHAVEZ",1000000]
[7634337,"DARWIN DE JESUS","ECHEVERRIA MELENDEZ","DARWIN DE JESUS ECHEVERRIA MELENDEZ",2000000]
[70523921,"MIGUEL ANTONIO","UPARELA JARAMILLO","MIGUEL ANTONIO UPARELA JARAMILLO",2000000]
[80768528,"EDWIN GUILLERMO","JIMENEZ RODRIGUEZ","EDWIN GUILLERMO JIMENEZ RODRIGUEZ",300000]
[94478296,"HESMAN FABRICIO","MORA PALACIOS","HESMAN FABRICIO MORA PALACIOS",2000000]
[1054547660,"JAIME ANDRES","MONTERO TOVAR","JAIME ANDRES MONTERO TOVAR",2000000]
[1071581369,"OSCAR FERNANDO","MARROQUIN SUAREZ","OSCAR FERNANDO MARROQUIN SUAREZ",2000000]
[7632707,"SALVADOR","BERNAL VERA","SALVADOR BERNAL VERA",500000]
[1083432077,"KARELIS VANESSA","DE LEON SAYA","KARELIS VANESSA DE LEON SAYA",2000000]
[1129502930,"GREYS PAOLA","AGUILAR ALDANA","GREYS PAOLA AGUILAR ALDANA",2000000]
[1007909521,"FREDY ANDRES","MENDEZ FERIA","FREDY ANDRES MENDEZ FERIA",600000]
[1114883847,"JOSE RICARDO","LEY CAMPO","JOSE RICARDO LEY CAMPO",300000]
[1116247622,"JONATHAN","ANGULO ROJO","JONATHAN ANGULO ROJO",300000]
[66910411,"JENNY ELIANA","SANCHEZ GARCIA","JENNY ELIANA SANCHEZ GARCIA",300000]
[1050944385,"BLADIMIR","NARVAEZ PADILLA","BLADIMIR NARVAEZ PADILLA",300000]
[1044917139,"LUIS ALFONSO","CISNERO BECHARA","LUIS ALFONSO CISNERO BECHARA",300000]
[1128479409,"ANDRES FELIPE","SEPULVEDA LOAIZA","ANDRES FELIPE SEPULVEDA LOAIZA",1800000]
[1073322493,"JHON JAIRO","SUAREZ SANCHEZ","JHON JAIRO SUAREZ SANCHEZ",300000]
[94419774,"FREDY","MENESES GUEVARA","FREDY MENESES GUEVARA",2000000]
[1144195482,"ANDRES FELIPE","MARIN SATIZABAL","ANDRES FELIPE MARIN SATIZABAL",300000]
[1010140636,"JESUS ALBERTO","RAMOS REGINO","JESUS ALBERTO RAMOS REGINO",300000]
[16451952,"HUMBERTO","SARRIA ALVAREZ","HUMBERTO SARRIA ALVAREZ",2000000]
[1010123346,"CARLOS STEVEN","HOLGUIN VILLALBA","CARLOS STEVEN HOLGUIN VILLALBA",2000000]
[1017197541,"YOBERSON","ABADIA SANTOS","YOBERSON ABADIA SANTOS",300000]
[1143857920,"CARLOS ARTURO","BALLESTEROS SERNA","CARLOS ARTURO BALLESTEROS SERNA",300000]
[1020827812,"WILMER SMITH","PILLIMUE CHANTRE","WILMER SMITH PILLIMUE CHANTRE",1100000]
[10752093,"ASDRUBAL","MERA VELASCO","ASDRUBAL MERA VELASCO",2000000]
[94481434,"ANDRES MAURICIO","ORTEGA GUEVARA","ANDRES MAURICIO ORTEGA GUEVARA",2000000]
[52772945,"GIOVANNA CECILIA","CANTOR LOPEZ","GIOVANNA CECILIA CANTOR LOPEZ",600000]
[80130248,"FABIO NELSON","GOMEZ CARRILLO",{"$f":"_xlfn.CONCAT(B451,\" \",C451)","v":"FABIO NELSON GOMEZ CARRILLO"},300000]
[1006514052,"DUVAN ANTONIO","MOSQUERA ÑAÑEZ","DUVAN ANTONIO MOSQUERA ÑAÑEZ",2000000]
[7383897,"MIGUEL ANGEL","MARTINEZ NARVAEZ","MIGUEL ANGEL MARTINEZ NARVAEZ",600000]
[1041150279,"ANDRES ANTONIO","JARAMILLO RODRIGUEZ","ANDRES ANTONIO JARAMILLO RODRIGUEZ",2000000]
[1020399266,"AIDE YAMILE","LOPEZ VALENCIA","AIDE YAMILE LOPEZ VALENCIA",2000000]
[10694488,"JULIAN","RODRIGUEZ ARIAS","JULIAN RODRIGUEZ ARIAS",300000]
[76305900,"CARLOS ARTURO","PAJOY CUSPOCA","CARLOS ARTURO PAJOY CUSPOCA",2000000]
[1143981806,"JHON JAIRO","LANDAZURI HURTADO","JHON JAIRO LANDAZURI HURTADO",1400000]
[1004640292,"CARLOS JOSE","QUIÑONES QUIÑONES","CARLOS JOSE QUIÑONES QUIÑONES",2000000]
[4661184,"DUBLAS ALEXIS","DIAZ MINA","DUBLAS ALEXIS DIAZ MINA",2000000]
[41058153,"SOFIA DE LAS MERCEDES","LOPEZ GONZALEZ","SOFIA DE LAS MERCEDES LOPEZ GONZALEZ",800000]
[1114458940,"JUAN CAMILO","GARCIA PIZARRO","JUAN CAMILO GARCIA PIZARRO",300000]
[1000930345,"NEYDER ENRIQUE","DUCUARA MONTAÑO","NEYDER ENRIQUE DUCUARA MONTAÑO",2000000]
[1007761341,"JAMES","MARTOS CHALA","JAMES MARTOS CHALA",300000]
[1067920584,"JOHNATAN DARIO","GRANADA VALVERDE","JOHNATAN DARIO GRANADA VALVERDE",2000000]
[1059449293,"JULIO CESAR","BERMUDEZ DIUZA","JULIO CESAR BERMUDEZ DIUZA",800000]
[94310696,"LUIS ELADIO","MANCHABAJOY BOTINA","LUIS ELADIO MANCHABAJOY BOTINA",800000]
[72134705,"ALFONSO ENRIQUE","JIMENEZ NARVAEZ","ALFONSO ENRIQUE JIMENEZ NARVAEZ",2000000]
[1115067000,"WILLIAM ALEXANDER","LOPEZ GALLEGO","WILLIAM ALEXANDER LOPEZ GALLEGO",1400000]
[1059046824,"JOSE EDINSON","CASTILLO GARCES","JOSE EDINSON CASTILLO GARCES",300000]
[73185807,"JAIME","DIAZ MEZA","JAIME DIAZ MEZA",2000000]
[14607597,"JHON FREDDY","BANGUERA","JHON FREDDY BANGUERA",2000000]
[16893562,"YOINER","TONGUINO GONZALEZ","YOINER TONGUINO GONZALEZ",500000]
[1010077020,"ANDRES MAURICIO","GAMBOA HERNANDEZ","ANDRES MAURICIO GAMBOA HERNANDEZ",2000000]
[53074492,"PAULA MILENA","SERRANO BELTRAN","PAULA MILENA SERRANO BELTRAN",2000000]
[1001532996,"JOSE ANGEL","ROMERO CAPACHERO","JOSE ANGEL ROMERO CAPACHERO",700000]
[1022930545,"EDINSON","ESTUPIÑAN CACERES","EDINSON ESTUPIÑAN CACERES",2000000]
[1046909738,"JUAN DAVID","GARCIA RODRIGUEZ","JUAN DAVID GARCIA RODRIGUEZ",300000]
[1007578460,"WILKIN DONEI","MENA GARCIA","WILKIN DONEI MENA GARCIA",1000000]
[72020564,"RICHARD DE JESUS","PERTUZ ESCOBAR","RICHARD DE JESUS PERTUZ ESCOBAR",800000]
[1114894864,"MILTON BREILER","QUIÑONES IBARRA","MILTON BREILER QUIÑONES IBARRA",800000]
[94327239,"GERARDO EDINSON","COBO GOMEZ","GERARDO EDINSON COBO GOMEZ",300000]
[94298971,"EDWAR","RAMOS PEÑARANDA","EDWAR RAMOS PEÑARANDA",1000000]
[94451660,"MAURICIO","OBANDO CASTAÑEDA","MAURICIO OBANDO CASTAÑEDA",300000]
[80728113,"JONATHAN EDWIN","PEÑA CENDALES","JONATHAN EDWIN PEÑA CENDALES",2000000]
[1047497825,"HECTOR JOSE","PEREZ FIGUEROA","HECTOR JOSE PEREZ FIGUEROA",1400000]
[16927811,"ALEXANDER","GARZON CANTICUA","ALEXANDER GARZON CANTICUA",2000000]
[16770650,"JUAN CARLOS","CASTAÑO MOLINA","JUAN CARLOS CASTAÑO MOLINA",2000000]
[38461474,"LORENA","MERA LOPEZ","LORENA MERA LOPEZ",2000000]
[98532140,"NICOLAS","SANMARTIN BOLIVAR","NICOLAS SANMARTIN BOLIVAR",2000000]
[94063146,"JUAN CARLOS","MONTOYA AGUDELO","JUAN CARLOS MONTOYA AGUDELO",300000]
[16867051,"JOSE GILDARDO","CORREA GIRALDO","JOSE GILDARDO CORREA GIRALDO",2000000]
[1113634892,"LINA MARCELA","SANCLEMENTE ESCOBAR","LINA MARCELA SANCLEMENTE ESCOBAR",1200000]
[1061111291,"JHON EDINSON","BANGUERA CASTRO","JHON EDINSON BANGUERA CASTRO",400000]
[16535469,"VICTOR MANUEL","LUGO BAÑOL","VICTOR MANUEL LUGO BAÑOL",1300000]
[16893775,"JOHN JAIRO","MOSQUERA LANDAZURI","JOHN JAIRO MOSQUERA LANDAZURI",300000]
[4840184,"YOBANNI UMBERTO","ASPRILLA MURILLO","YOBANNI UMBERTO ASPRILLA MURILLO",2000000]
[9023436,"DARIO VICENTE","HERRERA POLANCO","DARIO VICENTE HERRERA POLANCO",2000000]
[1087109004,"PABLO MARINO","QUIÑONES CORTES","PABLO MARINO QUIÑONES CORTES",2000000]
[1006235425,"JHON BRANDON","DELGADO MUÑOZ","JHON BRANDON DELGADO MUÑOZ",600000]
[1100013077,"LUIS ENRIQUE","VILLAMIZAR DE LA ROSA","LUIS ENRIQUE VILLAMIZAR DE LA ROSA",300000]
[80145204,"HELVER ALEXANDER","GALVIS VERA","HELVER ALEXANDER GALVIS VERA",2000000]
[91446407,"ALEXANDER","GUARIN OCHOA","ALEXANDER GUARIN OCHOA",400000]
[16187051,"ABIMELEC","FLOREZ NIETO","ABIMELEC FLOREZ NIETO",2000000]
[10473966,"OSCAR MAURICIO","TRUJILLO GOMEZ","OSCAR MAURICIO TRUJILLO GOMEZ",300000]
[1087194042,"JEFERSON","LOPEZ VIVEROS","JEFERSON LOPEZ VIVEROS",300000]
[1005850265,"IVAN","TORRES RINCON","IVAN TORRES RINCON",800000]
[16271068,"AURELIO","MADROÑERO GALINDO","AURELIO MADROÑERO GALINDO",1800000]
[79751400,"JIMMY ALDEMAR","ROZO OSORIO","JIMMY ALDEMAR ROZO OSORIO",400000]
[16270425,"JOSE JAIR","NAVAS","JOSE JAIR NAVAS",2000000]
[94469488,"JOSE MANUEL","GIRON DIAZ","JOSE MANUEL GIRON DIAZ",300000]
[1012319946,"SERGIO ANDRES","BARRIGA CLAVIJO","SERGIO ANDRES BARRIGA CLAVIJO",300000]
[94378046,"JOSE LUIS","MONTERROSA VARGAS","JOSE LUIS MONTERROSA VARGAS",300000]
[16830882,"ISMAEL","MOSQUERA VILLEGAS","ISMAEL MOSQUERA VILLEGAS",300000]
[1038101019,"YURI","RAMOS ARAUJO",{"$f":"_xlfn.CONCAT(B515,\" \",C515)","v":"YURI RAMOS ARAUJO"},1000000]
[94375224,"VICTOR HUGO","BELTRAN CUELLAR","VICTOR HUGO BELTRAN CUELLAR",300000]
[1006031214,"RUBEN ANCIZAR","RODRIGUEZ ALONSO","RUBEN ANCIZAR RODRIGUEZ ALONSO",1100000]
[8534034,"JOSE LUIS","NAVARRO AGUILAR","JOSE LUIS NAVARRO AGUILAR",2000000]
[11851233,"ENDRIS OSVALDO","QUINTERO RINCON","ENDRIS OSVALDO QUINTERO RINCON",300000]
[5252113,"JORGE ELI","PASUY RIASCOS","JORGE ELI PASUY RIASCOS",2000000]
[11308672,"ENRIQUE","ROJAS MEDINA","ENRIQUE ROJAS MEDINA",300000]
[11808409,"LEYSER YEZIC","MONTAÑO MENA","LEYSER YEZIC MONTAÑO MENA",2000000]
[98476096,"SILFREDO","ATENCIA BALDOVINO","SILFREDO ATENCIA BALDOVINO",300000]
[1022964423,"KATHERINE","RAMOS SARRIA","KATHERINE RAMOS SARRIA",600000]
[94514205,"JORGE ELIECER","ROJAS MARIN","JORGE ELIECER ROJAS MARIN",700000]
[94449383,"ALEXIS","GONGORA VANEGAS","ALEXIS GONGORA VANEGAS",2000000]
[94537186,"DIEGO FERNANDO","CEPEDA SANCHEZ","DIEGO FERNANDO CEPEDA SANCHEZ",2000000]
[98074106,"LUIS CARLOS","NASTUL BENAVIDES","LUIS CARLOS NASTUL BENAVIDES",300000]
[16356169,"JAVIER","CARDONA HURTADO","JAVIER CARDONA HURTADO",300000]
[31446110,"ADRIANA","BONILLA","ADRIANA BONILLA",2000000]
[10346323,"ROBIN NELSON","FERNANDEZ BOLAÑOS","ROBIN NELSON FERNANDEZ BOLAÑOS",300000]
[6334390,"OIBER EMILIO","JURADO MONTILLA","OIBER EMILIO JURADO MONTILLA",800000]
[1063649414,"JAIRO","MESTRA MISAT","JAIRO MESTRA MISAT",600000]
[1144149569,"JOHN MARIO","GALINDO ROJAS","JOHN MARIO GALINDO ROJAS",300000]
[1133599072,"EMERSON ENRIQUE","RUMBO MAESTRE","EMERSON ENRIQUE RUMBO MAESTRE",600000]
[1081417476,"JUAN CARLOS","DIAZ PENNA","JUAN CARLOS DIAZ PENNA",600000]
[71768166,"JOHN JAIRO","VALLEJO RIASCOS","JOHN JAIRO VALLEJO RIASCOS",300000]
[72435493,"RAFAEL ANTONIO","REDONDO REDONDO","RAFAEL ANTONIO REDONDO REDONDO",300000]
[1130645232,"LESLIE","RODRIGUEZ","LESLIE RODRIGUEZ",1000000]
[1060806334,"DISON YAIR","VELASCO FLOR","DISON YAIR VELASCO FLOR",300000]
[8522029,"JOSE LUIS","CASTRO GONZALEZ","JOSE LUIS CASTRO GONZALEZ",2000000]
[1065097404,"HUBER ALEJANDRO","ROMERO CRUZ","HUBER ALEJANDRO ROMERO CRUZ",1000000]
[1007847748,"JUAN ESTEBAN","JULIO CORDOBA","JUAN ESTEBAN JULIO CORDOBA",300000]
[1067813653,"ALDO ENRIQUE","SERNA ZEQUEIRA","ALDO ENRIQUE SERNA ZEQUEIRA",800000]
[1193152369,"JUAN DAVID","MORILLO BELTRAN","JUAN DAVID MORILLO BELTRAN",800000]
[8526198,"CEFERINO","ANGULO MELGAREJO","CEFERINO ANGULO MELGAREJO",400000]
[1105685884,"DANIEL MAURICIO","MEJIA TORRES","DANIEL MAURICIO MEJIA TORRES",800000]
[10347533,"JOSE MELKIS","APONZA LUCUMI","JOSE MELKIS APONZA LUCUMI",600000]
[1022970248,"JOSE JAIR","RAMIREZ MORENO","JOSE JAIR RAMIREZ MORENO",300000]
[52284358,"MAYDIVE","OVIEDO MOSQUERA","MAYDIVE OVIEDO MOSQUERA",300000]
[1102850645,"KEILY GISSEL","PALENCIA OZUNA","KEILY GISSEL PALENCIA OZUNA",600000]
[1024501134,"LINO","YARA BOTACHE","LINO YARA BOTACHE",2000000]
[1144195230,"LAURA GERALDINE","GOMEZ HURTADO","LAURA GERALDINE GOMEZ HURTADO",500000]
[1052973483,"CRISTIAN CAMILO","FIERRO ALVAREZ","CRISTIAN CAMILO FIERRO ALVAREZ",800000]
[1114901144,"CRISTIAN DAVID","MOSQUERA GARCIA","CRISTIAN DAVID MOSQUERA GARCIA",900000]
[1007363649,"LIBARDO","AROCA YAIMA","LIBARDO AROCA YAIMA",300000]
[93131249,"DANIEL","GOMEZ GONZALEZ","DANIEL GOMEZ GONZALEZ",600000]
[1040496522,"JOSE DAVID","MORENO ATENCIO","JOSE DAVID MORENO ATENCIO",600000]
[1143981573,"JOHN WAYNER","TORIJANO CARABALI","JOHN WAYNER TORIJANO CARABALI",2000000]
[1113699486,"ADOLFO","TAMAYO HERNANDEZ","ADOLFO TAMAYO HERNANDEZ",300000]
[80396091,"RIGOBERTO","RODRIGUEZ BARRERO","RIGOBERTO RODRIGUEZ BARRERO",300000]
[1082953307,"JOSE ALFREDO","GALINDO JIMENEZ","JOSE ALFREDO GALINDO JIMENEZ",300000]
[16707418,"ROGELIO","RIVILLAS AGUDELO","ROGELIO RIVILLAS AGUDELO",2000000]
[1088304142,"LUIS ALBERTO","SANCHEZ BEDOYA","LUIS ALBERTO SANCHEZ BEDOYA",2000000]
[77158366,"EDWIN","ACOSTA GIL","EDWIN ACOSTA GIL",2000000]
[79346753,"ROMAN","CAMACHO COBOS","ROMAN CAMACHO COBOS",2000000]
[10487275,"LUIS ALBERTO","RAMIREZ","LUIS ALBERTO RAMIREZ",1700000]
[1129518980,"BRAYAN JOSE","RIVERA LEAL","BRAYAN JOSE RIVERA LEAL",300000]
[1059903715,"JULIAN","ÑAÑEZ CRUZ","JULIAN ÑAÑEZ CRUZ",300000]
[1130663437,"JOSE EDIER","TORRES RENTERIA","JOSE EDIER TORRES RENTERIA",1500000]
[1001778232,"ROMAN ANTONIO","MADERA QUINTERO","ROMAN ANTONIO MADERA QUINTERO",2000000]
[16666216,"JAIR","VIDAL VELEZ","JAIR VIDAL VELEZ",300000]
[1113528870,"DIEGO FERNANDO","RUIZ AGUIRRE","DIEGO FERNANDO RUIZ AGUIRRE",1200000]
[16459637,"HERMAN","ESPITIA GUEVARA","HERMAN ESPITIA GUEVARA",300000]
[4668610,"LUIS ERNOBER","VALDEZ PEREZ","LUIS ERNOBER VALDEZ PEREZ",300000]
[16547935,"ELISEO","RUIZ CAMPO","ELISEO RUIZ CAMPO",700000]
[94384982,"CARLOS ORLANDO","CHAVEZ MUNOZ","CARLOS ORLANDO CHAVEZ MUNOZ",1300000]
[94302578,"JOSE EDINSON","GUTIERREZ CARVAJAL","JOSE EDINSON GUTIERREZ CARVAJAL",1800000]
[98339693,"FREDDY ANTONIO","GUERRA VILLOTA",{"$f":"_xlfn.CONCAT(B579,\" \",C579)","v":"FREDDY ANTONIO GUERRA VILLOTA"},2000000]
[14636524,"GUSTAVO ADOLFO","VILLOTA RAMIREZ","GUSTAVO ADOLFO VILLOTA RAMIREZ",300000]
[1502168,"CESAR BOLIVAR","MANQUILLO","CESAR BOLIVAR MANQUILLO",300000]
[6405210,"JAIME ANDRES","APARICIO ALVEAR","JAIME ANDRES APARICIO ALVEAR",300000]
[94469628,"JOSE JULIAN","LOPEZ MARTINEZ","JOSE JULIAN LOPEZ MARTINEZ",300000]
[6261343,"LUIS FERNANDO","RIVERA JURADO","LUIS FERNANDO RIVERA JURADO",2000000]
[13958545,"HUMBERTO","FORERO OSMA","HUMBERTO FORERO OSMA",2000000]
[10783909,"JORGE ELIECER","ESPITIA JARAMILLO","JORGE ELIECER ESPITIA JARAMILLO",600000]
[8203806,"LUIS FRANCISCO","RAMOS MORALES","LUIS FRANCISCO RAMOS MORALES",300000]
[70853534,"JULIAN ALONSO","SALAZAR SANCHEZ","JULIAN ALONSO SALAZAR SANCHEZ",2000000]
[76314481,"ESEQUIEL","CAICEDO GUTIERREZ","ESEQUIEL CAICEDO GUTIERREZ",2000000]
[1067898955,"FRANCISCO JOSE","BRAVO RAMOS","FRANCISCO JOSE BRAVO RAMOS",2000000]
[1101454479,"LEONEL ANDRES","MELENDEZ MERCADO","LEONEL ANDRES MELENDEZ MERCADO",300000]
[16799706,"HECTOR FABIO","ANDRADE OCAMPO","HECTOR FABIO ANDRADE OCAMPO",300000]
[79448192,"ISIDRO","MENDEZ OSPITIA","ISIDRO MENDEZ OSPITIA",2000000]
[16985224,"RAUL","ALVAREZ RESTREPO","RAUL ALVAREZ RESTREPO",2000000]
[4759630,"PABLO ANDRES","BERMUDEZ LOPEZ","PABLO ANDRES BERMUDEZ LOPEZ",300000]
[16795872,"JOSUE","BOLAÑOS LUGO","JOSUE BOLAÑOS LUGO",2000000]
[16832162,"DIEGO FERNANDO","BLANDON MUNOZ","DIEGO FERNANDO BLANDON MUNOZ",300000]
[16549561,"DORLEY DE JESUS","ROJAS VILLADA","DORLEY DE JESUS ROJAS VILLADA",2000000]
[16887658,"RUSBEL ORLANDO","QUICENO HERRERA","RUSBEL ORLANDO QUICENO HERRERA",1500000]
[18413257,"LUIS ALBERTO","RAMIREZ VELASQUEZ","LUIS ALBERTO RAMIREZ VELASQUEZ",2000000]
[11441373,"PASTOR","CALDERON HUERTAS","PASTOR CALDERON HUERTAS",300000]
[16939024,"JOHN HADER","MUNOZ CAMACHO","JOHN HADER MUNOZ CAMACHO",300000]
[16944960,"DANIEL","SANDOVAL PEREZ","DANIEL SANDOVAL PEREZ",300000]
[8129728,"JHONATAN LEANDRO","VELASQUEZ LEGARDA","JHONATAN LEANDRO VELASQUEZ LEGARDA",2000000]
[14635980,"JAMES","SANTANA ORTIZ","JAMES SANTANA ORTIZ",300000]
[1028182096,"CARLOS CENEN","GARCES ZAMORA","CARLOS CENEN GARCES ZAMORA",300000]
[1065829929,"JORGE MARIO","MONTERO CASTILLO","JORGE MARIO MONTERO CASTILLO",300000]
[66994640,"PAOLA ANDREA","DIAZ BETANCOURT","PAOLA ANDREA DIAZ BETANCOURT",2000000]
[94518543,"ALVARO HERNAN","PLAZA QUINTERO","ALVARO HERNAN PLAZA QUINTERO",300000]
[1003465971,"JAMIR JOSE","SANCHEZ ROMAN","JAMIR JOSE SANCHEZ ROMAN",2000000]
[1004819126,"YOJAN YAID","DAZA ROJAS","YOJAN YAID DAZA ROJAS",2000000]
[16376567,"CESAR JOHAN","SUAREZ DELGADO","CESAR JOHAN SUAREZ DELGADO",2000000]
[98681557,"GILDARDO","JIMENEZ TUBERQUIA","GILDARDO JIMENEZ TUBERQUIA",2000000]
[1105062309,"LUIS FERNANDO","MADRIGAL SOGAMOSO","LUIS FERNANDO MADRIGAL SOGAMOSO",2000000]
[1148441769,"LEIDY CATERINE","ROJAS ARTEAGA","LEIDY CATERINE ROJAS ARTEAGA",1000000]
[1093747822,"WILLIAM ALFONSO","LEAL GARCIA","WILLIAM ALFONSO LEAL GARCIA",800000]
[1067840086,"ANGELY ESTHER","VIDAL ALARCON","ANGELY ESTHER VIDAL ALARCON",300000]
[1004375590,"JOSE MANUEL","GOMEZ MACIAS","JOSE MANUEL GOMEZ MACIAS",600000]
[1000973886,"ESTEBAN DAVID","GARZON AVENDAÑO","ESTEBAN DAVID GARZON AVENDAÑO",600000]
[94460331,"NELSON ENRIQUE","SAAVEDRA","NELSON ENRIQUE SAAVEDRA",2000000]
[1130613695,"JULIAN DAVID","PEÑA MACA","JULIAN DAVID PEÑA MACA",1600000]
[1002926153,"LISANDRO","RODRIGUEZ ORTIZ","LISANDRO RODRIGUEZ ORTIZ",2000000]
[1108207207,"CAMACHO ZAPATA","WILDER FABIAN","CAMACHO ZAPATA WILDER FABIAN",800000]
[80546569,"OSCAR FERNEY","GOMEZ TRIVIÑO","OSCAR FERNEY GOMEZ TRIVIÑO",800000]
[1002499327,"EDINSON LEONARDO","OVIEDO GORDON","EDINSON LEONARDO OVIEDO GORDON",600000]
[1005682684,"FRANCISCO FABIAN","CORTES JARABA","FRANCISCO FABIAN CORTES JARABA",600000]
[1059982667,"JHON FREDDY","CASTILLO GONZALEZ","JHON FREDDY CASTILLO GONZALEZ",1900000]
[5889367,"JESUS EMILIO","BOTERO RAYO","JESUS EMILIO BOTERO RAYO",2000000]
[79750624,"DAIRON STID","VANEGAS D ALEMAN","DAIRON STID VANEGAS D ALEMAN",800000]
[1068656153,"ARNALDO ANDRES","MONTES SANTANA","ARNALDO ANDRES MONTES SANTANA",800000]
[1007635012,"ALVARO MANUEL","MENDEZ MEJIA","ALVARO MANUEL MENDEZ MEJIA",1800000]
[1048020714,"LUIS ADRIAN","LARREA HERNANDEZ","LUIS ADRIAN LARREA HERNANDEZ",900000]
[70418320,"LUIS OVIDIO","JARAMILLO TABORDA","LUIS OVIDIO JARAMILLO TABORDA",2000000]
[1143927940,"BRAYAN LEONARDO","CARDENAS CASTILLO","BRAYAN LEONARDO CARDENAS CASTILLO",800000]
[1143977777,"LEONEL","BERMUDEZ CASTAÑO","LEONEL BERMUDEZ CASTAÑO",2000000]
[1151962071,"DAVID STEVEN","PERDOMO JARAMILLO","DAVID STEVEN PERDOMO JARAMILLO",1200000]
[1102832669,"DESLIN","JULIO RUIZ","DESLIN JULIO RUIZ",1000000]
[43917629,"GUIYOLA DEL CARMEN","VASQUEZ PARRA","GUIYOLA DEL CARMEN VASQUEZ PARRA",600000]
[14838501,"PEDRO LUIS","JAMIOY","PEDRO LUIS JAMIOY",300000]
[1066508659,"AIDE LUZ","HERRERA DELGADO","AIDE LUZ HERRERA DELGADO",2000000]
[1000646081,"JUANFERH","LONDOÑO SALAZAR","JUANFERH LONDOÑO SALAZAR",2000000]
[1003046201,"CARLOS MARIO","CORRALES PEREZ","CARLOS MARIO CORRALES PEREZ",1100000]
[1061530089,"DIEGO ORLANDO","MUÑOZ CAJIAO",{"$f":"_xlfn.CONCAT(B643,\" \",C643)","v":"DIEGO ORLANDO MUÑOZ CAJIAO"},600000]
[43826836,"ALBA LUCIA","ARANGO ORTEGA","ALBA LUCIA ARANGO ORTEGA",300000]
[1019140290,"JANER ANDRES","MINA DIAZ","JANER ANDRES MINA DIAZ",800000]
[1006843353,"BRANDON EMILIO","ROA COLLAZOS","BRANDON EMILIO ROA COLLAZOS",500000]
[1073986573,"KEIMER ALBERTO","MONTES MARTINEZ","KEIMER ALBERTO MONTES MARTINEZ",400000]
[1006097899,"HAMILTON","CORTES TOVAR","HAMILTON CORTES TOVAR",300000]
[86072750,"LUIS ALEJANDRO","PORTELA NAVARRETE","LUIS ALEJANDRO PORTELA NAVARRETE",300000]
[1111790830,"JULIAN ARLENIS","GRANJA DOMINGUEZ","JULIAN ARLENIS GRANJA DOMINGUEZ",2000000]
[94502511,"JORGE ENRIQUE","VARGAS VELASCO","JORGE ENRIQUE VARGAS VELASCO",400000]
[4913050,"JAIME","CORDOBA OSPITIA","JAIME CORDOBA OSPITIA",2000000]
[14473616,"JAMES","SANCHEZ TORRES","JAMES SANCHEZ TORRES",600000]
[1102817914,"NERVIS ANTONIO","PEREZ THERAN","NERVIS ANTONIO PEREZ THERAN",2000000]
[31996103,"MARICEL","CASTRO OROZCO","MARICEL CASTRO OROZCO",2000000]
[1067934375,"EMIRO JOSE","GUEVARA RAMOS","EMIRO JOSE GUEVARA RAMOS",600000]
[79978886,"FABIO ANDRES","SUAREZ","FABIO ANDRES SUAREZ",2000000]
[94330377,"RODRIGO","MORALES HERRERA","RODRIGO MORALES HERRERA",1000000]
[1015477958,"ANTHONY STIVEN","MARTINEZ ARCINIEGAS","ANTHONY STIVEN MARTINEZ ARCINIEGAS",2000000]
[10345925,"ALEXANDER","DELGADO SOLARTE","ALEXANDER DELGADO SOLARTE",300000]
[6497535,"FRANCISCO","LOZANO MARTINEZ","FRANCISCO LOZANO MARTINEZ",2000000]
[6223766,"OSCAR ORLANDO","ORTEGA AMAYA","OSCAR ORLANDO ORTEGA AMAYA",1400000]
[76042288,"EDUAR ENRIQUE","CARABALI VALENCIA","EDUAR ENRIQUE CARABALI VALENCIA",2000000]
[73317601,"ELIO EMANUEL","PANIZA OTALVAREZ","ELIO EMANUEL PANIZA OTALVAREZ",2000000]
[1065592804,"OSCAR ALFONSO","HERNANDEZ MANJARRES","OSCAR ALFONSO HERNANDEZ MANJARRES",2000000]
[3103938,"MAURICIO","AUCENON YUCO","MAURICIO AUCENON YUCO",300000]
[6388902,"IRNE","BELTRAN TENORIO","IRNE BELTRAN TENORIO",2000000]
[4523761,"GERMAN ALBERTO","RUBIO AVELLANEDA","GERMAN ALBERTO RUBIO AVELLANEDA",300000]
[8644576,"ALVARO DE JESUS","SANTIAGO URUETA","ALVARO DE JESUS SANTIAGO URUETA",2000000]
[1193336464,"WILMER","PALACIOS PALOMINO","WILMER PALACIOS PALOMINO",800000]
[16272745,"HECTOR FABIO","RODRIGUEZ FLOREZ","HECTOR FABIO RODRIGUEZ FLOREZ",300000]
[10784960,"LUIS MANUEL","CORDERO ALVAREZ","LUIS MANUEL CORDERO ALVAREZ",400000]
[10199286,"ENRIQUE","GONZALO LOAIZA","ENRIQUE GONZALO LOAIZA",300000]
[94424556,"VICTOR","QUINTANA BETANCOURT","VICTOR QUINTANA BETANCOURT",1800000]
[94469086,"ISRAEL ALEXANDER","PEREZ VALLEJO","ISRAEL ALEXANDER PEREZ VALLEJO",2000000]
[1014291626,"JUAN MANUEL","CASTILLO CORREDOR","JUAN MANUEL CASTILLO CORREDOR",300000]
[91209591,"GUSTAVO ELEUTERIO","GOMEZ HERNANDEZ","GUSTAVO ELEUTERIO GOMEZ HERNANDEZ",2000000]
[66970331,"MARIA VICTORIA","VALENCIA CANDELO","MARIA VICTORIA VALENCIA CANDELO",2000000]
[1144170814,"JUAN DAVID","HERNANDEZ ABAHONZA","JUAN DAVID HERNANDEZ ABAHONZA",2000000]
[8324236,"JHON JADER","ZAMBRANO PADILLA","JHON JADER ZAMBRANO PADILLA",1600000]
[16273241,"OLMEDO","RAMIREZ PALOMINO","OLMEDO RAMIREZ PALOMINO",2000000]
[1059064835,"ARNOLD SMITH","CUSPIAN MAYOR","ARNOLD SMITH CUSPIAN MAYOR",1600000]
[73243467,"PEDRO ELIAS","TORRES GARCIA","PEDRO ELIAS TORRES GARCIA",2000000]
[94496260,"FERLEY","ALDANA","FERLEY ALDANA",2000000]
[1148956019,"JOHN ALEJANDRO","CORREA HENAO","JOHN ALEJANDRO CORREA HENAO",1600000]
[94433499,"YHON FREDY","PATICHOY PORTILLA","YHON FREDY PATICHOY PORTILLA",300000]
[1130634338,"JHONSON GIOVANNI","GALLEGO TORO","JHONSON GIOVANNI GALLEGO TORO",400000]
[1089540159,"EDWAR JESUS","VALENCIA HURTADO","EDWAR JESUS VALENCIA HURTADO",800000]
[1037632682,"KEVIN SNEIDER","GARCIA VALENCIA","KEVIN SNEIDER GARCIA VALENCIA",2000000]
[1087408588,"EDUAR IVAN","ASMAZA","EDUAR IVAN ASMAZA",300000]
[1115080735,"DARWIN STIK","HENAO ARIAS","DARWIN STIK HENAO ARIAS",300000]
[94427509,"JORGE ELIECER","BEDOYA RENGIFO","JORGE ELIECER BEDOYA RENGIFO",1600000]
[88199716,"FREDY MARTIN","ORTEGA HEREDIA","FREDY MARTIN ORTEGA HEREDIA",1000000]
[1103099352,"YONNYS RAFAEL","TOVAR PALACIO","YONNYS RAFAEL TOVAR PALACIO",300000]
[1103218387,"LUIS DAVID","MONTERROZA SALGADO","LUIS DAVID MONTERROZA SALGADO",2000000]
[1113538837,"CESAR AUGUSTO","VICTORIA ACALO","CESAR AUGUSTO VICTORIA ACALO",300000]
[1114735520,"DIEGO MATEO","BURBANO DURAN","DIEGO MATEO BURBANO DURAN",2000000]
[16849819,"JEAN PAIL","PINZON ALAPE","JEAN PAIL PINZON ALAPE",2000000]
[1058969432,"OSMAN ALEXANDER","IMBACHI PIAMBA","OSMAN ALEXANDER IMBACHI PIAMBA",2000000]
[1006771699,"JEISSON ESTIVEN","ARREDONDO MONTIEL","JEISSON ESTIVEN ARREDONDO MONTIEL",300000]
[1114874536,"ANDRES FELIPE","ALVAREZ CICACHA","ANDRES FELIPE ALVAREZ CICACHA",1200000]
[1007758823,"JERSSON YAIR","HURTADO ARBOLEDA","JERSSON YAIR HURTADO ARBOLEDA",2000000]
[1118286282,"JORGE ANDRES","CARVAJAL RUDA","JORGE ANDRES CARVAJAL RUDA",300000]
[1090365110,"YULIAN ALFREDO","MORENO PALENCIA","YULIAN ALFREDO MORENO PALENCIA",300000]
[76027846,"JAIRO EDINSON","MELENJE","JAIRO EDINSON MELENJE",1700000]
[1000625612,"BRAYAN STEE","ROJAS DIAZ","BRAYAN STEE ROJAS DIAZ",600000]
[7255646,"JOHN FREDDY","BEJARANO TRUJILLO",{"$f":"_xlfn.CONCAT(B707,\" \",C707)","v":"JOHN FREDDY BEJARANO TRUJILLO"},600000]
[1114489704,"DANIEL","PINO DOSA","DANIEL PINO DOSA",300000]
[1059046322,"RENE","GUTIERREZ ORTIZ","RENE GUTIERREZ ORTIZ",400000]
[1059844350,"DIEGO ALEJANDRO","GOMEZ DURAN","DIEGO ALEJANDRO GOMEZ DURAN",300000]
[1143463706,"GREGGORY JESUS","DIAGO CASTELLANOS","GREGGORY JESUS DIAGO CASTELLANOS",2000000]
[1072253505,"SEBASTIAN","VASQUEZ BANDA","SEBASTIAN VASQUEZ BANDA",600000]
[73168637,"FERNANDO","MARTINEZ OLIVERA","FERNANDO MARTINEZ OLIVERA",600000]
[1128327777,"DARIO JOSE","BENAVIDES GONZALEZ","DARIO JOSE BENAVIDES GONZALEZ",300000]
[1103103832,"KELLY JOHANA","VERGARA SOTO","KELLY JOHANA VERGARA SOTO",300000]
[1059043752,"JONATHAN LEIVI","URBANO HERNANDEZ","JONATHAN LEIVI URBANO HERNANDEZ",300000]
[6598067,"CESAR MAURICIO","TORRES","CESAR MAURICIO TORRES",1100000]
[1041264963,"JEIDER MANUEL","TIRADO PASTRANA","JEIDER MANUEL TIRADO PASTRANA",2000000]
[1045695229,"ALAN DARIO","ESPAÑA RODELO","ALAN DARIO ESPAÑA RODELO",1200000]
[8417725,"NILVAR ANTONIO","GUISAO HIGUITA","NILVAR ANTONIO GUISAO HIGUITA",600000]
[72277892,"DALGIO DE JESUS","OSPINO CABARCAS","DALGIO DE JESUS OSPINO CABARCAS",300000]
[1003261509,"EMIRO ENRIQUE","CAUSIL MERCADO","EMIRO ENRIQUE CAUSIL MERCADO",1300000]
[1143878896,"VALERIA","COBO GUERRERO","VALERIA COBO GUERRERO",2000000]
[2984773,"JUAN CARLOS","RINCON PACHON","JUAN CARLOS RINCON PACHON",2000000]
[1059447814,"JENNER ALFONSO","VELES REBOLLEDO","JENNER ALFONSO VELES REBOLLEDO",1900000]
[14679443,"SAMIR ANDRES","BELALCAZAR VEGA","SAMIR ANDRES BELALCAZAR VEGA",2000000]
[24551475,"FANNY","DUQUE VILLADA","FANNY DUQUE VILLADA",2000000]
[16941299,"GERMAN ALONSO","RODRIGUEZ BONILLA","GERMAN ALONSO RODRIGUEZ BONILLA",300000]
[1063077763,"WILMER ANTONIO","MENDOZA AVILA","WILMER ANTONIO MENDOZA AVILA",1200000]
[1103096863,"ROBERTO CARLOS","PATERNINA MARTINEZ","ROBERTO CARLOS PATERNINA MARTINEZ",800000]
[1090425554,"RAFAEL RICARDO","SANCHEZ RENGIFO","RAFAEL RICARDO SANCHEZ RENGIFO",300000]
[1143135297,"CESAR AUGUSTO","TORRES VERGARA","CESAR AUGUSTO TORRES VERGARA",300000]
[10499933,"JOSE ELVIS","AGRONO BALANTA","JOSE ELVIS AGRONO BALANTA",300000]
[1144138759,"GUILLERMO","PINEDA ANGEL","GUILLERMO PINEDA ANGEL",500000]
[98529481,"OMAR DARIO","HERNANDEZ FLOREZ","OMAR DARIO HERNANDEZ FLOREZ",300000]
[1114730572,"ANDRES FERNANDO","JARAMILLO LONDOÑO","ANDRES FERNANDO JARAMILLO LONDOÑO",300000]
[72314809,"ALEXANDER JOSE","PEREZ PARDO","ALEXANDER JOSE PEREZ PARDO",2000000]
[9159978,"JOSE ANGEL","TERAN POLO","JOSE ANGEL TERAN POLO",2000000]
[1043587102,"GABRIEL ALFONSO","ARAUJO DITA","GABRIEL ALFONSO ARAUJO DITA",300000]
[1062280299,"JOSE ALEJANDRO","OSNAS ULCUE","JOSE ALEJANDRO OSNAS ULCUE",2000000]
[7720101,"JUAN ANGELO","HERRERA ANGARITA","JUAN ANGELO HERRERA ANGARITA",300000]
[80069841,"GILDARDO","GALLEGO BERMUDEZ","GILDARDO GALLEGO BERMUDEZ",2000000]
[1005861941,"DIEGO FERNANDO","MUÑOZ MUÑOZ","DIEGO FERNANDO MUÑOZ MUÑOZ",300000]
[1143853921,"DIEGO FERNANDO","QUIÑONES SEVILLANO","DIEGO FERNANDO QUIÑONES SEVILLANO",1400000]
[1007637914,"RAMIRO","OCHOA VILLA","RAMIRO OCHOA VILLA",2000000]
[1005785730,"JULIAN ENRIQUE","TAFUR LOPEZ","JULIAN ENRIQUE TAFUR LOPEZ",2000000]
[6097888,"NORTON ARIEL","SEVILLANO CORTES","NORTON ARIEL SEVILLANO CORTES",1400000]
[1023934586,"DANIEL ALFONSO","PEÑA SANTAMARIA","DANIEL ALFONSO PEÑA SANTAMARIA",1500000]
[1003396821,"JUAN SEBASTIAN","MENDOZA HUMANEZ","JUAN SEBASTIAN MENDOZA HUMANEZ",300000]
[1061020136,"LUIS ALBERTO","CHAVEZ SANTACRUZ","LUIS ALBERTO CHAVEZ SANTACRUZ",300000]
[1143930719,"AULIO FRANCISCO","QUIÑONES VILLOTA","AULIO FRANCISCO QUIÑONES VILLOTA",300000]
[4751807,"SEGUNDO RAFAEL","NARVAEZ ÑAÑEZ","SEGUNDO RAFAEL NARVAEZ ÑAÑEZ",2000000]
[76259724,"HEINER ROLANDO","DELGADO ORTIZ","HEINER ROLANDO DELGADO ORTIZ",300000]
[1007533013,"OBETH ISAID","BETIN MEJIA","OBETH ISAID BETIN MEJIA",300000]
[52958604,"JENNY ANGELA","FERNANDEZ AGUIRRE","JENNY ANGELA FERNANDEZ AGUIRRE",700000]
[1144088377,"ALEXANDER","RODRIGUEZ CAICEDO","ALEXANDER RODRIGUEZ CAICEDO",2000000]
[1143861695,"ANDRES FELIPE","GIL RODRIGUEZ","ANDRES FELIPE GIL RODRIGUEZ",2000000]
[1114882461,"JHON JARRY","PEQUI PAVI","JHON JARRY PEQUI PAVI",2000000]
[93286288,"HENRY","LOPEZ VILLAMIL","HENRY LOPEZ VILLAMIL",2000000]
[80746431,"JOSE ABDONIAS","TAPIERO ALAPE","JOSE ABDONIAS TAPIERO ALAPE",300000]
[31574544,"OLGA LUCIA","VARGAS GALLEGO","OLGA LUCIA VARGAS GALLEGO",300000]
[1000393357,"GEYDI YUBELLI","MOSQUERA SANTANA","GEYDI YUBELLI MOSQUERA SANTANA",1800000]
[1066742244,"SAUL ENRIQUE","CABALLERO OTERO","SAUL ENRIQUE CABALLERO OTERO",700000]
[1071350676,"ANDRES DE JESUS","ARGUMEDO MONTES","ANDRES DE JESUS ARGUMEDO MONTES",1400000]
[1086924473,"YOHAN ALDAIR","OJEDA RODRIGUEZ","YOHAN ALDAIR OJEDA RODRIGUEZ",400000]
[53004619,"MARYCRUZ","GARCIA GOMEZ","MARYCRUZ GARCIA GOMEZ",2000000]
[1076323384,"JOSE RAFAEL","CAICEDO QUIÑONEZ","JOSE RAFAEL CAICEDO QUIÑONEZ",2000000]
[1010116352,"WILLIAM ANDRES","IBARRA SALGADO","WILLIAM ANDRES IBARRA SALGADO",2000000]
[1143865847,"CRISTIAN DAVID","SERNA RAMIREZ","CRISTIAN DAVID SERNA RAMIREZ",2000000]
[1000937314,"JEIVER SANTIAGO","CHIVATA CORDOBA","JEIVER SANTIAGO CHIVATA CORDOBA",600000]
[1038418387,"CARLOS ERNEY","SOSA GOMEZ",{"$f":"_xlfn.CONCAT(B771,\" \",C771)","v":"CARLOS ERNEY SOSA GOMEZ"},400000]
[1143942665,"PAOLA ANDREA","DIAZ ORTIZ","PAOLA ANDREA DIAZ ORTIZ",800000]
[1114489584,"DIEGO ARMANDO","AUDOR GONZALEZ","DIEGO ARMANDO AUDOR GONZALEZ",2000000]
[6549989,"JOSE ANTONIO","ESCOBAR BUCHELI","JOSE ANTONIO ESCOBAR BUCHELI",300000]
[1006219631,"PAOLA ANDREA","CASTRO CARABALI","PAOLA ANDREA CASTRO CARABALI",300000]
[1082689500,"YERSON DAVID","CASTILLO VALLECILLA","YERSON DAVID CASTILLO VALLECILLA",400000]
[83222330,"MIGUEL RICARDO","OTALORA MANRIQUE","MIGUEL RICARDO OTALORA MANRIQUE",1100000]
[9024131,"JOSE FERNANDO","FALS GUTIERREZ","JOSE FERNANDO FALS GUTIERREZ",2000000]
[16274793,"VICTOR ORLANDO","VINASCO USSA","VICTOR ORLANDO VINASCO USSA",300000]
[11432602,"MAURICIO","CARDENAS LEON","MAURICIO CARDENAS LEON",2000000]
[1130587973,"JULIAN FERNANDO","CERON GUTIERREZ","JULIAN FERNANDO CERON GUTIERREZ",700000]
[13570523,"JHON HENRY","VILLAMIZAR LOPEZ","JHON HENRY VILLAMIZAR LOPEZ",2000000]
[8364486,"HAROLD ESNEIRDER","RIVAS RIOS","HAROLD ESNEIRDER RIVAS RIOS",600000]
[1052982949,"DIEGO JOSE","OSORIO JULIO","DIEGO JOSE OSORIO JULIO",300000]
[16195293,"SEGUNDO ARCESIO","VELASQUEZ MONTILLA","SEGUNDO ARCESIO VELASQUEZ MONTILLA",2000000]
[94297729,"VICTOR GERARDO","RIOS PAZ","VICTOR GERARDO RIOS PAZ",300000]
[1060359875,"DAMINSON","CHOCO CARABALI","DAMINSON CHOCO CARABALI",2000000]
[1060417487,"JONATAN","GOMEZ CAZARAN","JONATAN GOMEZ CAZARAN",400000]
[94311133,"CARLOS MARIO","BALLESTEROS FERNANDEZ","CARLOS MARIO BALLESTEROS FERNANDEZ",300000]
[1042996161,"FEDERICO","POMBO BARRAZA","FEDERICO POMBO BARRAZA",2000000]
[1066718631,"ARMANDO JOSE","REGINO PEREZ","ARMANDO JOSE REGINO PEREZ",1500000]
[12325435,"ALVARO","HERRERA OCAMPO","ALVARO HERRERA OCAMPO",300000]
[79665803,"ALFREDO","GARZON RODRIGUEZ","ALFREDO GARZON RODRIGUEZ",2000000]
[6645705,"JOSE ULDARICO","ESPADA","JOSE ULDARICO ESPADA",2000000]
[70853234,"JON JAIME","ARBOLEDA PORRAS","JON JAIME ARBOLEDA PORRAS",600000]
[15209339,"JUAN DAVID","MADRID SALGADO","JUAN DAVID MADRID SALGADO",2000000]
[16054366,"JULIO CESAR","CARDONA OTALVARO","JULIO CESAR CARDONA OTALVARO",2000000]
[16835978,"ALVARO HERNAN","VASQUEZ YUSTY","ALVARO HERNAN VASQUEZ YUSTY",300000]
[1113665451,"ISRAEL","SALAZAR CABRERA","ISRAEL SALAZAR CABRERA",600000]
[14770145,"JOSE ANGEL","HEREDIA ROMAN","JOSE ANGEL HEREDIA ROMAN",2000000]
[1131106346,"JORGE ELIECER","GUTIERREZ CARDENAS","JORGE ELIECER GUTIERREZ CARDENAS",300000]
[19475821,"HENRY EDUARDO","FRANCO TALERO","HENRY EDUARDO FRANCO TALERO",2000000]
[1143829917,"ANDRES FERNANDO","CARVAJAL VELASQUEZ","ANDRES FERNANDO CARVAJAL VELASQUEZ",2000000]
[80172133,"OLVERT ALBERTO","CLAVIJO LIEVANO","OLVERT ALBERTO CLAVIJO LIEVANO",700000]
[1144196928,"GERMAN ANDRES","SANTANDER PANTOJA","GERMAN ANDRES SANTANDER PANTOJA",2000000]
[1100395338,"RONIER ISMAEL","ACOSTA ACEVEDO","RONIER ISMAEL ACOSTA ACEVEDO",900000]
[1007217635,"CHRISTIAN WILLIAM","CARDENAS ARANGO","CHRISTIAN WILLIAM CARDENAS ARANGO",1400000]
[1042349103,"JUAN MIGUEL","BORJA BLANCO","JUAN MIGUEL BORJA BLANCO",900000]
[1193415082,"JULIO CESAR","CORTES SOSA","JULIO CESAR CORTES SOSA",600000]
[1192911205,"LEIDER YAIR","GAMBOA PERLAZA","LEIDER YAIR GAMBOA PERLAZA",1000000]
[1117549658,"YEIMER ANDRES","ZAPATA CAICEDO","YEIMER ANDRES ZAPATA CAICEDO",300000]
[1192793066,"JHONNY ALEXANDER","CORDOBA MOSQUERA","JHONNY ALEXANDER CORDOBA MOSQUERA",2000000]
[1003168858,"JHON CARLOS","RUIZ GARCIA","JHON CARLOS RUIZ GARCIA",300000]
[72282096,"GABRIEL JOSE","MARTINEZ RIVERO","GABRIEL JOSE MARTINEZ RIVERO",300000]
[1112497725,"DANIEL ESTEBAN","MENESES ERAZO","DANIEL ESTEBAN MENESES ERAZO",2000000]
[38889231,"KATHERINE","MUÑOZ ESCOBAR","KATHERINE MUÑOZ ESCOBAR",2000000]
[1007590999,"MARLON STIVEN","RESTREPO PAZMIÑO","MARLON STIVEN RESTREPO PAZMIÑO",2000000]
[43856506,"LUZ MARINA","ALZATE ALZATE","LUZ MARINA ALZATE ALZATE",2000000]
[1234189413,"JENNIFER ALEJANDRA","VILLADA CASTAÑEDA","JENNIFER ALEJANDRA VILLADA CASTAÑEDA",600000]
[14470462,"JOHNIS RITO","CIFUENTES RUIZ","JOHNIS RITO CIFUENTES RUIZ",300000]
[1067837310,"KELVIN JAIR","ARROYO JIMENEZ","KELVIN JAIR ARROYO JIMENEZ",400000]
[1081397723,"WILLIAM FERNANDO","CUELLAR PETECHE","WILLIAM FERNANDO CUELLAR PETECHE",600000]
[1007300581,"FABIAN","MUELAS PECHENE","FABIAN MUELAS PECHENE",2000000]
[1077969914,"LUIS EDUARDO","MACIAS MACIAS","LUIS EDUARDO MACIAS MACIAS",1100000]
[1005783718,"ESTEBAN ALEXIS","RAMIREZ RUIZ","ESTEBAN ALEXIS RAMIREZ RUIZ",400000]
[1087705434,"SAMUEL ANTONIO","SANCHEZ GUERRERO","SAMUEL ANTONIO SANCHEZ GUERRERO",800000]
[71695892,"USMEL DE JESUS","HENAO SALAZAR","USMEL DE JESUS HENAO SALAZAR",900000]
[1130627375,"RICARDO FELIPE","MERA CARDEÑO","RICARDO FELIPE MERA CARDEÑO",2000000]
[1002808767,"OSCAR EDUARDO","SUAREZ RODRIGUEZ","OSCAR EDUARDO SUAREZ RODRIGUEZ",700000]
[1109556166,"YILBER ANDREY","GOMEZ MONTENEGRO","YILBER ANDREY GOMEZ MONTENEGRO",300000]
[1002926637,"DANILO","AVENDAÑO JIMENEZ","DANILO AVENDAÑO JIMENEZ",300000]
[40356636,"MARDY","VARGAS GOMEZ","MARDY VARGAS GOMEZ",2000000]
[94289286,"CARLOS EDINSON","GRUESO GOMEZ","CARLOS EDINSON GRUESO GOMEZ",1100000]
[93382800,"CARLOS JULIO","VARGAS CARDONA","CARLOS JULIO VARGAS CARDONA",2000000]
[1053341015,"BAIRON YESID","LADINO SANCHEZ",{"$f":"_xlfn.CONCAT(B835,\" \",C835)","v":"BAIRON YESID LADINO SANCHEZ"},300000]
[1072963556,"MIGUEL ANGEL","RAMIREZ SABOGAL","MIGUEL ANGEL RAMIREZ SABOGAL",1500000]
[1001416088,"EDUAR","USECHE LARA","EDUAR USECHE LARA",600000]
[1116542452,"EDWIN SANTIAGO","MORENO GONZALEZ","EDWIN SANTIAGO MORENO GONZALEZ",600000]
[1053324093,"YESIKA SMITH","CHITIVA GONZALEZ","YESIKA SMITH CHITIVA GONZALEZ",800000]
[94226930,"GUSTAVO DE JESUS","GOMEZ MONCADA","GUSTAVO DE JESUS GOMEZ MONCADA",2000000]
[16696279,"ANTONIO","CASTRO RODRIGUEZ","ANTONIO CASTRO RODRIGUEZ",800000]
[76247618,"EDWIN FABIAN","HURTADO CERON","EDWIN FABIAN HURTADO CERON",2000000]
[6562993,"RICHARD ANTONIO","MANZO VIEDMAN","RICHARD ANTONIO MANZO VIEDMAN",2000000]
[6341746,"ALDEMAR","MARTINEZ HOYOS","ALDEMAR MARTINEZ HOYOS",2000000]
[16674498,"ALVEIRO","LONDONO APONTE","ALVEIRO LONDONO APONTE",1700000]
[38669271,"DIANA CECILIA","FERNANDEZ SANCHEZ","DIANA CECILIA FERNANDEZ SANCHEZ",300000]
[1116920141,"RUBEN DARIO","SABOGAL VASQUEZ","RUBEN DARIO SABOGAL VASQUEZ",300000]
[18605106,"MIGUEL ANGEL","VILLA RODRIGUEZ","MIGUEL ANGEL VILLA RODRIGUEZ",2000000]
[25634393,"ZORAIDA PAULINA","CASTILLO SALAZAR","ZORAIDA PAULINA CASTILLO SALAZAR",2000000]
[10487779,"OLIDEY","MINA PERDOMO","OLIDEY MINA PERDOMO",700000]
[16266043,"ANTONIO JOSE","VARGAS HORTA","ANTONIO JOSE VARGAS HORTA",2000000]
[1060876468,"YONEY","CAICEDO IDROBO","YONEY CAICEDO IDROBO",700000]
[13957188,"NOLBERTO","DUARTE MONTANA","NOLBERTO DUARTE MONTANA",1900000]
[1077320115,"JOSE FERNANDO","CASTRO GONZALEZ","JOSE FERNANDO CASTRO GONZALEZ",2000000]
[16512611,"JAMINSON","PALOMINO MINA","JAMINSON PALOMINO MINA",1900000]
[1067899381,"KEVIN STIVEN","CASARRUBIA SANTAMARIA","KEVIN STIVEN CASARRUBIA SANTAMARIA",2000000]
[10695357,"RICARDO","RODRIGUEZ MUÑOZ","RICARDO RODRIGUEZ MUÑOZ",300000]
[94316804,"YESID GERARDO","CARRERA NARVAEZ","YESID GERARDO CARRERA NARVAEZ",2000000]
[71531800,"LUIS FERNANDO","MUÑOZ MONSALVE","LUIS FERNANDO MUÑOZ MONSALVE",300000]
[76344573,"YINER JAIR","CASTRO COLLAZOS","YINER JAIR CASTRO COLLAZOS",1600000]
[16831600,"JAIRO ANTONIO","SUAREZ RUIZ","JAIRO ANTONIO SUAREZ RUIZ",300000]
[16722899,"HERMES ALIRIO","MOSQUERA JIMENEZ","HERMES ALIRIO MOSQUERA JIMENEZ",2000000]
[1125782263,"CRISTIAN","MORENO OLAYA","CRISTIAN MORENO OLAYA",2000000]
[16748537,"RODRIGO","MACCA MENESES","RODRIGO MACCA MENESES",300000]
[16943638,"WALTER DANIEL","HERNANDEZ MENDEZ","WALTER DANIEL HERNANDEZ MENDEZ",2000000]
[6221348,"JAVIER ARMANDO","CAJIAO ROSERO","JAVIER ARMANDO CAJIAO ROSERO",300000]
[16508192,"MALCON","FRANCO GUERRERO","MALCON FRANCO GUERRERO",600000]
[80458857,"ISRAEL","MAHECHA MAHECHA","ISRAEL MAHECHA MAHECHA",2000000]
[14250505,"HECTOR FABIO","PATINO OROZCO","HECTOR FABIO PATINO OROZCO",2000000]
[16944515,"JUAN FERNANDO","GOMEZ RODRIGUEZ","JUAN FERNANDO GOMEZ RODRIGUEZ",300000]
[94307830,"GILBERTO ANTONIO","GRACIANO DAVID","GILBERTO ANTONIO GRACIANO DAVID",300000]
[1083466278,"RONALD DE JESUS","OSPINO ELIAS","RONALD DE JESUS OSPINO ELIAS",600000]
[8782570,"JAVIER ANTONIO","GODOY SEGURA","JAVIER ANTONIO GODOY SEGURA",800000]
[1016062873,"FABIO","MANRIQUE MORENO","FABIO MANRIQUE MORENO",700000]
[94470906,"LISANDRO","RODRIGUEZ DIAZ","LISANDRO RODRIGUEZ DIAZ",300000]
[1107511748,"MICHAEL HAFFIT","OLIVA ASTAIZA","MICHAEL HAFFIT OLIVA ASTAIZA",2000000]
[1066521355,"JORGE IVAN","PASOS DOMINGUEZ","JORGE IVAN PASOS DOMINGUEZ",2000000]
[1046692111,"MALKA IRINA","QUEVEDO OLIVERA","MALKA IRINA QUEVEDO OLIVERA",2000000]
[1007824278,"WILMER","SUAREZ GONZALEZ","WILMER SUAREZ GONZALEZ",2000000]
[1114456324,"EDWIN ANTONIO","VERNAZA SUAREZ","EDWIN ANTONIO VERNAZA SUAREZ",500000]
[1095298173,"JOHAN STEVEN","MENA MACHADO","JOHAN STEVEN MENA MACHADO",600000]
[1143237324,"ALVARO ENRIQUE","MUÑOZ TOLEDO","ALVARO ENRIQUE MUÑOZ TOLEDO",300000]
[1112968784,"FAURICIO ALBERTO","RESTREPO HENAO","FAURICIO ALBERTO RESTREPO HENAO",1700000]
[1096926183,"DIANA MILENA","BLANDON LOPEZ","DIANA MILENA BLANDON LOPEZ",300000]
[1101387608,"DAMIR JESUS","PALENCIA DIAZ","DAMIR JESUS PALENCIA DIAZ",300000]
[16789988,"JAVIER","RINCON MORA","JAVIER RINCON MORA",300000]
[1067944561,"ROYMER YESID","AYALA SANTANA","ROYMER YESID AYALA SANTANA",300000]
[1126118205,"CESAR JULIO","PEREZ NAVARRO","CESAR JULIO PEREZ NAVARRO",1800000]
[22514822,"DORIS MILENA","AYALA SANTAMARIA","DORIS MILENA AYALA SANTAMARIA",2000000]
[1003823511,"YONATAN FERNEI","LOZANO PALACIOS","YONATAN FERNEI LOZANO PALACIOS",1700000]
[1126122179,"DAIMARY CAROLINA","SANCHEZ GARCIA","DAIMARY CAROLINA SANCHEZ GARCIA",1700000]
[1046403366,"DANILO","LOPEZ CARDOZA","DANILO LOPEZ CARDOZA",1400000]
[1113689347,"KEVIN MAURICIO","MARIN PUERTA","KEVIN MAURICIO MARIN PUERTA",500000]
[1101390429,"DAVINSON","PALENCIA DIAZ","DAVINSON PALENCIA DIAZ",800000]
[1022397751,"HAMILTON ANDRES","FERNANDEZ GOMEZ","HAMILTON ANDRES FERNANDEZ GOMEZ",800000]
[1005525825,"DANIEL RICARDO","PAYARES SUAREZ","DANIEL RICARDO PAYARES SUAREZ",2000000]
[1038114916,"JULIAN DARIO","SALAZAR CAÑAS","JULIAN DARIO SALAZAR CAÑAS",500000]
[1004541939,"KEVIN JOEL","ESTUPIÑAN ESTUPIÑAN","KEVIN JOEL ESTUPIÑAN ESTUPIÑAN",2000000]
[69009007,"SORLEY","JURADO BUITRON",{"$f":"_xlfn.CONCAT(B899,\" \",C899)","v":"SORLEY JURADO BUITRON"},300000]
[84096524,"PEDRO ENRIQUE","FONSECA REDONDO","PEDRO ENRIQUE FONSECA REDONDO",300000]
[1004123398,"JAVIER JOSE","GUTIERREZ TERNERA","JAVIER JOSE GUTIERREZ TERNERA",300000]
[1067292761,"NAFER EZER","MADERA MORENO","NAFER EZER MADERA MORENO",1800000]
[1014220704,"ERNEY ERNETH","HERNANDEZ TRIANA","ERNEY ERNETH HERNANDEZ TRIANA",300000]
[1040510967,"EDER LUIS","BERTEL MARTELO","EDER LUIS BERTEL MARTELO",300000]
[1192779269,"JHONIER NORBEY","HOLGUIN OLAVE","JHONIER NORBEY HOLGUIN OLAVE",2000000]
[1089196515,"EDUIN ORLANI","QUISCUALTUD BERNAL","EDUIN ORLANI QUISCUALTUD BERNAL",700000]
[1144197996,"JORDY","UREÑA MUÑOZ","JORDY UREÑA MUÑOZ",600000]
[1005978195,"CAMILO ANDRES","HENAO PARRA","CAMILO ANDRES HENAO PARRA",800000]
[1114898356,"JHAN CARLOS","TRIVIÑO CALAMBAS","JHAN CARLOS TRIVIÑO CALAMBAS",300000]
[1063292074,"HERNAN DARIO","HERNANDEZ MIRANDA","HERNAN DARIO HERNANDEZ MIRANDA",300000]
[73242540,"JOHN JAIRO","OSPINA ALEMAN","JOHN JAIRO OSPINA ALEMAN",2000000]
[1072752220,"WITIMBERT","GUAPACHO MONTIEL","WITIMBERT GUAPACHO MONTIEL",300000]
[1112230867,"JULIAN DAVID","HOYOS FIGUEROA","JULIAN DAVID HOYOS FIGUEROA",1400000]
[1049565546,"JUAN CARLOS","GOZALEZ NIETO","JUAN CARLOS GOZALEZ NIETO",300000]
[1006097953,"SEBASTIAN","ALBAN SAMBONI","SEBASTIAN ALBAN SAMBONI",1800000]
[1118123369,"NORBERTO","LOBATON CAICEDO","NORBERTO LOBATON CAICEDO",1200000]
[4696882,"JOSE NOE","CHIMUNJA","JOSE NOE CHIMUNJA",2000000]
[16670342,"JOHN IVANOV","MARMOLEJO SAENZ","JOHN IVANOV MARMOLEJO SAENZ",2000000]
[16505935,"NORBERTO NOVELIO","LOPEZ MURILLO","NORBERTO NOVELIO LOPEZ MURILLO",300000]
[16727347,"JOSE FERNANDO","MEDINA GIL","JOSE FERNANDO MEDINA GIL",2000000]
[16715925,"ELIER","MORENO VASQUEZ","ELIER MORENO VASQUEZ",2000000]
[1010197748,"HOLMAN HESNEYDER","ORJUELA CASTRO","HOLMAN HESNEYDER ORJUELA CASTRO",2000000]
[1090475057,"CAMILO ANDRES","RODRIGUEZ CHINCHILLA","CAMILO ANDRES RODRIGUEZ CHINCHILLA",1200000]
[16740391,"LUIS HENRY","MEJIA PALACIOS","LUIS HENRY MEJIA PALACIOS",1600000]
[1144173034,"CRISTIAN ALFREDO","RUIZ LLANOS","CRISTIAN ALFREDO RUIZ LLANOS",400000]
[6321055,"JAIR","ORTEGON PARRA","JAIR ORTEGON PARRA",2000000]
[16797507,"RONALD","GUTIERREZ","RONALD GUTIERREZ",300000]
[79801370,"JOSE MANUEL","QUIROS SANCHEZ","JOSE MANUEL QUIROS SANCHEZ",300000]
[16738951,"JORGE ALBERTO","PIMENTEL","JORGE ALBERTO PIMENTEL",300000]
[6249113,"LEONARDO","MOLINA","LEONARDO MOLINA",1100000]
[5844186,"RICARDO ALONSO","SUAREZ FARFAN","RICARDO ALONSO SUAREZ FARFAN",2000000]
[12273909,"RICARDO","YAQUINO FLOREZ","RICARDO YAQUINO FLOREZ",300000]
[16272291,"IVAN","RENDON RAMIREZ","IVAN RENDON RAMIREZ",600000]
[16677691,"MARCO AURELIO","GOMEZ GOMEZ","MARCO AURELIO GOMEZ GOMEZ",2000000]
[16797331,"ARCESIO","RUIZ HOYOS","ARCESIO RUIZ HOYOS",300000]
[94498114,"LUIS GABRIEL","FERNANDEZ FERLA","LUIS GABRIEL FERNANDEZ FERLA",2000000]
[1100336903,"COLINS ELIZETH","FERNANDEZ HERNANDEZ","COLINS ELIZETH FERNANDEZ HERNANDEZ",1400000]
[1098777460,"MISAEL","SOTO SOTO","MISAEL SOTO SOTO",600000]
[1087185704,"JANER YUSEP","ORTIZ CORREA","JANER YUSEP ORTIZ CORREA",2000000]
[16928208,"WILDIMAN ANDRES","MUÑOZ NOGUERA","WILDIMAN ANDRES MUÑOZ NOGUERA",1700000]
[1060418847,"JEISON JAVIER","MERA CAICEDO","JEISON JAVIER MERA CAICEDO",800000]
[1043026666,"EDILBERTO ENRIQUE","MARRIAGA MEDINA","EDILBERTO ENRIQUE MARRIAGA MEDINA",600000]
[16456506,"JAIRO ARLET","GONZALEZ ARCILA","JAIRO ARLET GONZALEZ ARCILA",1100000]
[1107093091,"LIZETH NATHALIA","SORENSEN MONGUI","LIZETH NATHALIA SORENSEN MONGUI",2000000]
[94041838,"OSCAR JAVIER","SALAZAR ORTIZ","OSCAR JAVIER SALAZAR ORTIZ",2000000]
[80357350,"EDUARDO","MUÑOZ RINCON","EDUARDO MUÑOZ RINCON",300000]
[6500096,"JESUS GUILLERMO","CORDOBA DAVILA","JESUS GUILLERMO CORDOBA DAVILA",2000000]
[1130647338,"YERSSON","SALGUERO ZAMORANO","YERSSON SALGUERO ZAMORANO",300000]
[1007734168,"LUIS EDUARDO","CARABALLO REGINO","LUIS EDUARDO CARABALLO REGINO",1500000]
[91481378,"MAXIMILIANO","ARENAS VARGAS","MAXIMILIANO ARENAS VARGAS",2000000]
[5971020,"ULDARICO","MENDOZA RAMIREZ","ULDARICO MENDOZA RAMIREZ",2000000]
[8363038,"RODRIGO ANTONIO","SANCHEZ MOSQUERA","RODRIGO ANTONIO SANCHEZ MOSQUERA",2000000]
[1118871221,"JULIO RAFAEL","MARTINEZ PEÑALOZA","JULIO RAFAEL MARTINEZ PEÑALOZA",1500000]
[94413564,"PABLO CESAR","MURILLO GONZALEZ","PABLO CESAR MURILLO GONZALEZ",1500000]
[1234193101,"DORIAN STEVEN","QUINTERO HERNANDEZ","DORIAN STEVEN QUINTERO HERNANDEZ",300000]
[71193779,"WILBER ANTONIO","MENDEZ SANTERO","WILBER ANTONIO MENDEZ SANTERO",2000000]
[1000567441,"OMAIRA ALEJANDRA","AREIZA GOMEZ","OMAIRA ALEJANDRA AREIZA GOMEZ",2000000]
[1144094731,"BRIAN","VICTORIA MORENO","BRIAN VICTORIA MORENO",300000]
[1007397967,"JESUS MANUEL","PALENCIA TORRES","JESUS MANUEL PALENCIA TORRES",800000]
[1070010739,"JAVIER MAURICIO","USAQUEN MONTAÑO","JAVIER MAURICIO USAQUEN MONTAÑO",800000]
[1063076562,"EDER ANTONIO","GALVIS SOLANO","EDER ANTONIO GALVIS SOLANO",300000]
[85127799,"LUIS GREGORIO","HERNANDEZ POLO","LUIS GREGORIO HERNANDEZ POLO",1500000]
[1007291304,"HUGO FERNEY","SOSA GOMEZ",{"$f":"_xlfn.CONCAT(B963,\" \",C963)","v":"HUGO FERNEY SOSA GOMEZ"},2000000]
[16791558,"JESUS ANTONIO","GUIRAL GOMEZ","JESUS ANTONIO GUIRAL GOMEZ",1300000]
[1100337027,"SILFREDO","SIERRA SALCEDO","SILFREDO SIERRA SALCEDO",2000000]
[73230959,"WILLIAN ENRIQUE","TORRES TORRES","WILLIAN ENRIQUE TORRES TORRES",2000000]
[1012406875,"JORGE LUIS","PEREZ MEDINA","JORGE LUIS PEREZ MEDINA",1100000]
[1001270505,"WILMER ALEXIS","GOMEZ ESTUPIÑAN","WILMER ALEXIS GOMEZ ESTUPIÑAN",600000]
[1090482632,"LUIS EDUARDO","ALMANZA GUERRERO","LUIS EDUARDO ALMANZA GUERRERO",2000000]
[1234199686,"DIANA CAROLINA","CAICEDO BURGOS","DIANA CAROLINA CAICEDO BURGOS",2000000]
[1143949125,"FABIAN ALEXANDER","ARAMENDIZ BRIÑEZ","FABIAN ALEXANDER ARAMENDIZ BRIÑEZ",1300000]
[98580553,"JAIME","RODRIGUEZ TAPASCO","JAIME RODRIGUEZ TAPASCO",1400000]
[1012409913,"ELIANA BRICETH","ORTIZ ARENAS","ELIANA BRICETH ORTIZ ARENAS",2000000]
[1040517480,"LUIS MANUEL","GOMEZ FERIA","LUIS MANUEL GOMEZ FERIA",800000]
[84091273,"ISAIAS ENRIQUE","BARROS MIRANDA","ISAIAS ENRIQUE BARROS MIRANDA",1000000]
[10783232,"LUIS CARLOS","FUENTES MERCADO","LUIS CARLOS FUENTES MERCADO",300000]
[16716301,"ERNELY","CHARRY SANCHEZ","ERNELY CHARRY SANCHEZ",2000000]
[94311660,"JIMMY","PEREZ MANZANO","JIMMY PEREZ MANZANO",2000000]
[71250521,"LEON JAIMES","MAZO PEREZ","LEON JAIMES MAZO PEREZ",300000]
[1111779363,"LUIS ELOY","ARBOLEDA MOSQUERA","LUIS ELOY ARBOLEDA MOSQUERA",1900000]
[4061063,"LUIS URIEL","GARCIA PINZON","LUIS URIEL GARCIA PINZON",2000000]
[41945352,"ALBA MIRIAM","ARIZA ARANGO","ALBA MIRIAM ARIZA ARANGO",300000]
[71978375,"BENILDO","CHAVERRA MOSQUERA","BENILDO CHAVERRA MOSQUERA",600000]
[1037578984,"DIEGO","ZULUAGA RAMIREZ","DIEGO ZULUAGA RAMIREZ",800000]
[76224716,"YAIR","MARULANDA DEVIA","YAIR MARULANDA DEVIA",2000000]
[15813097,"JAIME ANTONIO","DORADO TORO","JAIME ANTONIO DORADO TORO",300000]
[1042458133,"JHON JOSE","TERAN BARRIOS","JHON JOSE TERAN BARRIOS",600000]
[1073157775,"WILSON","VASQUEZ PASTRANA","WILSON VASQUEZ PASTRANA",2000000]
[1059908368,"LUIS ANTONIO","MOSQUERA TORRES","LUIS ANTONIO MOSQUERA TORRES",2000000]
[1067469436,"CARLOS ALBERTO","ARARAT LUCUMI","CARLOS ALBERTO ARARAT LUCUMI",1200000]
[1082409983,"JANER","OROZCO LOPEZ","JANER OROZCO LOPEZ",600000]
[1004372793,"YOHON VAIRO","CARPIO CARREÑO","YOHON VAIRO CARPIO CARREÑO",600000]
[79993249,"JAIRO ALFONSO","OSORIO RODRIGUEZ","JAIRO ALFONSO OSORIO RODRIGUEZ",500000]
[1061747051,"JORGE IVAN","ARBOLEDA POLINDARA","JORGE IVAN ARBOLEDA POLINDARA",2000000]
[1130949322,"YEISON DUVAN","ALEGRIA HURTADO","YEISON DUVAN ALEGRIA HURTADO",300000]
[11800941,"PABLO","PALACIOS MENA","PABLO PALACIOS MENA",300000]
[1083554774,"FERNANDO JOSE","BLANQUILLO CHINCHILLA","FERNANDO JOSE BLANQUILLO CHINCHILLA",1900000]
[1073994030,"DANIEL ANDRES","ARCIA MARTINEZ","DANIEL ANDRES ARCIA MARTINEZ",600000]
[10559117,"JAVIER","CASTILLO BONILLA","JAVIER CASTILLO BONILLA",600000]
[1019097857,"LUIS RODRIGO","CAMERO RINCON","LUIS RODRIGO CAMERO RINCON",2000000]
[1114897733,"JOSE ANDRES","ASCUNTAR ZAMORA","JOSE ANDRES ASCUNTAR ZAMORA",2000000]
[1061529993,"WAHILER","REYES LEYTON","WAHILER REYES LEYTON",1500000]
[14326221,"JUAN CARLOS","GARCIA RUIZ","JUAN CARLOS GARCIA RUIZ",300000]
[9990923,"PEDRO PABLO","RODAS SANCHEZ","PEDRO PABLO RODAS SANCHEZ",2000000]
[72259144,"JAVIER ENRIQUE","PIEDRIS TORRES","JAVIER ENRIQUE PIEDRIS TORRES",300000]
[1069129315,"MARIA YUSED","NIETO USAQUEN","MARIA YUSED NIETO USAQUEN",700000]
[16934026,"EDUAR FERNANDO","ARIAS ARIAS","EDUAR FERNANDO ARIAS ARIAS",2000000]
[1143862064,"YEIMMY ALEXANDRA","CASTRO BUENO","YEIMMY ALEXANDRA CASTRO BUENO",2000000]
[1060419200,"JOSE EIDER","VALENCIA ZAPATA","JOSE EIDER VALENCIA ZAPATA",2000000]
[5825183,"JULIO CESAR","MAMIAN MOSQUERA","JULIO CESAR MAMIAN MOSQUERA",600000]
[15436222,"CARLOS MARIO","FRANCO OSORIO","CARLOS MARIO FRANCO OSORIO",2000000]
[1089508943,"JEFFERSON ANDRES","ANGULO TENORIO","JEFFERSON ANDRES ANGULO TENORIO",2000000]
[1059065757,"SEBASTIAN","SANCHEZ GUADIR","SEBASTIAN SANCHEZ GUADIR",2000000]
[1115192665,"ANDRES FELIPE","RESTREPO GUZMAN","ANDRES FELIPE RESTREPO GUZMAN",1500000]
[4696079,"JHON HAYMER","JIMENEZ","JHON HAYMER JIMENEZ",500000]
[1060419302,"JUAN JOSE","VIDAL PALACIO","JUAN JOSE VIDAL PALACIO",1000000]
[1073155050,"DIEGO FERNANDO","REYES TORRES","DIEGO FERNANDO REYES TORRES",600000]
[1007180796,"GUILLERMO ANDRES","CHALACAN FLORES","GUILLERMO ANDRES CHALACAN FLORES",2000000]
[1113540932,"GEORGE HAGGI","VARGAS LLANOS","GEORGE HAGGI VARGAS LLANOS",1900000]
[94060878,"EDWIN","ALVEAR SOTO","EDWIN ALVEAR SOTO",2000000]
[1108760173,"ALEX HUMBERTO","CAMPUZANO HIGGINS","ALEX HUMBERTO CAMPUZANO HIGGINS",2000000]
[79997433,"LEIBER AUSBERTO","PARDO PARRADO","LEIBER AUSBERTO PARDO PARRADO",800000]
[1113676569,"KAREN LICETH","TORRES LENIS","KAREN LICETH TORRES LENIS",800000]
[14710171,"CARLOS HERNEY","GARZON PAPAMIJA","CARLOS HERNEY GARZON PAPAMIJA",300000]
[1143841150,"NESTOR EDUAN","PECHENE PEÑA","NESTOR EDUAN PECHENE PEÑA",2000000]
[1037369447,"CRISTIAN CAMILO","MENESES HURTADO","CRISTIAN CAMILO MENESES HURTADO",500000]
[94074533,"DIEGO ALBERTO","URIBE SANCHEZ",{"$f":"_xlfn.CONCAT(B1027,\" \",C1027)","v":"DIEGO ALBERTO URIBE SANCHEZ"},1200000]
[94422295,"ERMINSON","SARRIA CALAMBAS","ERMINSON SARRIA CALAMBAS",300000]
[94510339,"CARLOS ANDRES","MELO CARMONA","CARLOS ANDRES MELO CARMONA",300000]
[16660163,"FERNANDO","CARLOSAMA DE LA CRUZ","FERNANDO CARLOSAMA DE LA CRUZ",2000000]
[16358870,"JAVIER EDUARDO","BUCHELI MORA","JAVIER EDUARDO BUCHELI MORA",300000]
[5821203,"DURLEIS","OSPINO VEGA","DURLEIS OSPINO VEGA",2000000]
[16858450,"JAIME","MALES ORTIZ","JAIME MALES ORTIZ",300000]
[16535330,"MANUEL JOSE","HERNANDEZ ARAGON","MANUEL JOSE HERNANDEZ ARAGON",300000]
[94297876,"WILSON","ACHURY MOLINA","WILSON ACHURY MOLINA",2000000]
[1080830392,"YOFER ANDRES","CORTES VILLARREAL","YOFER ANDRES CORTES VILLARREAL",300000]
[8372794,"LUIS ALBERTO","ARRIOLA VILLADIEGO","LUIS ALBERTO ARRIOLA VILLADIEGO",300000]
[16949728,"JADER GERMAN","RODRIGUEZ BANGUERA","JADER GERMAN RODRIGUEZ BANGUERA",600000]
[66849497,"MARIA YANETH","CRUZ LOAIZA","MARIA YANETH CRUZ LOAIZA",300000]
[94446332,"FAUSTO HEVER","OSORIO PEREZ","FAUSTO HEVER OSORIO PEREZ",300000]
[1041263819,"EDER LUIS","BENITEZ HUMENES","EDER LUIS BENITEZ HUMENES",2000000]
[1006190295,"FRANKLIN FERNANDO","LOBATON VALENCIA","FRANKLIN FERNANDO LOBATON VALENCIA",2000000]
[1026552593,"LUIS ANTONIO","TORO GARCIA","LUIS ANTONIO TORO GARCIA",300000]
[1016119869,"MANUEL ENRIQUE","LIMA RAAD","MANUEL ENRIQUE LIMA RAAD",300000]
[94385026,"PABLO CESAR","MUÑOZ RINCON","PABLO CESAR MUÑOZ RINCON",2000000]
[1007654733,"CESAR AUGUSTO","CAMPO YEPEZ","CESAR AUGUSTO CAMPO YEPEZ",2000000]
[1038359527,"DAMIAN ARLEY","MURILLO BAENA","DAMIAN ARLEY MURILLO BAENA",2000000]
[29675085,"DIANA PATRICIA","VALENCIA GUTIERREZ","DIANA PATRICIA VALENCIA GUTIERREZ",600000]
[1064438041,"IVAN HERNEY","CHILO MULCUE","IVAN HERNEY CHILO MULCUE",1800000]
[1101176673,"DANER YESID","RODRIGUEZ MATEUS","DANER YESID RODRIGUEZ MATEUS",2000000]
[1007533714,"JHON CARLOS","BULA MARTINEZ","JHON CARLOS BULA MARTINEZ",600000]
[1014272446,"MIGUEL ANGEL","PINEDA CEDEÑO","MIGUEL ANGEL PINEDA CEDEÑO",600000]
[1086925632,"OSCAR JAVIER","ACOSTA DE LA CRUZ","OSCAR JAVIER ACOSTA DE LA CRUZ",2000000]
[6253419,"CESAR AUGUSTO","DIAZ VERA","CESAR AUGUSTO DIAZ VERA",900000]
[1003645598,"JOSE HERNAN","RIZO MARTINEZ","JOSE HERNAN RIZO MARTINEZ",1800000]
[1006186571,"HECTOR JULIAN","RENGIFO VIAFARA","HECTOR JULIAN RENGIFO VIAFARA",1800000]
[31324190,"ALEXA YANIRA","DELGADO QUIJANO","ALEXA YANIRA DELGADO QUIJANO",500000]
[1007708538,"ROBERT ALEJANDRO","GOMEZ GOMEZ","ROBERT ALEJANDRO GOMEZ GOMEZ",1600000]
[94445830,"JHON ALEXANDER","AGUILAR LOPEZ","JHON ALEXANDER AGUILAR LOPEZ",2000000]
[79769477,"JOSE OMAR","AGUILERA CRUZ","JOSE OMAR AGUILERA CRUZ",2000000]
[1095766357,"EDINSON JHOANY","GUERRERO CEDIEL","EDINSON JHOANY GUERRERO CEDIEL",300000]
[1109293403,"EDISON FERNEY","FRANCO CARRILLO","EDISON FERNEY FRANCO CARRILLO",2000000]
[1105335229,"WILDER ALIRIO","HERNANDEZ MENDEZ","WILDER ALIRIO HERNANDEZ MENDEZ",1700000]
[1040514040,"JUAN GUILLERMO","CUADRADO MIRANDA","JUAN GUILLERMO CUADRADO MIRANDA",300000]
[1148145152,"JORGE ALBERTO","RAMOS TAMARA","JORGE ALBERTO RAMOS TAMARA",1200000]
[1113646558,"EIBAR DE JESUS","VINASCO HERNANDEZ","EIBAR DE JESUS VINASCO HERNANDEZ",500000]
[1000491720,"LEONARDO STICK","TOVAR MORALES","LEONARDO STICK TOVAR MORALES",600000]
[1047225302,"ADRIAN","NAVARRO CASTRO","ADRIAN NAVARRO CASTRO",300000]
[67015873,"MARILU","ERAZO CORDOBA","MARILU ERAZO CORDOBA",300000]
[1030601636,"CINDY PAOLA","GARCIA HERRERA","CINDY PAOLA GARCIA HERRERA",500000]
[1130645052,"JOSE","QUIJANO CABEZAS","JOSE QUIJANO CABEZAS",300000]
[1143959027,"JORGE ISAAC","AYALA CAMPAZ","JORGE ISAAC AYALA CAMPAZ",300000]
[1143979051,"CHRISTIAN","GOMEZ GOMEZ","CHRISTIAN GOMEZ GOMEZ",300000]
[1143869319,"DANIELA","CASTAÑEDA GIRALDO","DANIELA CASTAÑEDA GIRALDO",2000000]
[1118474943,"YHON FREDI","DUARTE TOMBE","YHON FREDI DUARTE TOMBE",600000]
[1118801056,"IGNACIO RAFAEL","GONZALEZ ASPUSHAINA","IGNACIO RAFAEL GONZALEZ ASPUSHAINA",300000]
[79871304,"JOSE HERIBERTO","MALDONADO MALDONADO","JOSE HERIBERTO MALDONADO MALDONADO",2000000]
[1109843517,"EDWIN","PAYANENE PERDOMO","EDWIN PAYANENE PERDOMO",1800000]
[94393085,"JAYDER JAVIER","PUERTA PLAZA","JAYDER JAVIER PUERTA PLAZA",300000]
[16828611,"MARTIN","GUENGUE SOTOMAYOR","MARTIN GUENGUE SOTOMAYOR",2000000]
[16736070,"MAURICIO","VILLEGAS MORENO","MAURICIO VILLEGAS MORENO",2000000]
[4736912,"AZAEL","LEDEZMA BERMUDEZ","AZAEL LEDEZMA BERMUDEZ",400000]
[1069478859,"JESUS DAVID","OYOLA PATERNINA","JESUS DAVID OYOLA PATERNINA",300000]
[87060033,"JOSE LUIS","NOGUERA BASTIDAS","JOSE LUIS NOGUERA BASTIDAS",600000]
[93296042,"ELVER","SANTOS","ELVER SANTOS",800000]
[94431539,"RAUL","GARCIA VICTORIA","RAUL GARCIA VICTORIA",300000]
[1019104766,"CARLOS ANDRES","LARGO VARGAS","CARLOS ANDRES LARGO VARGAS",2000000]
[16891799,"ERLEIN","ASTUDILLO GONZALEZ","ERLEIN ASTUDILLO GONZALEZ",2000000]
[1113643602,"JUAN DAVID","PIEDRAHITA ALVAREZ","JUAN DAVID PIEDRAHITA ALVAREZ",300000]
[94414471,"JHON CARLOS","BARINAS AYALA","JHON CARLOS BARINAS AYALA",300000]
[14244814,"ERWIN EDITH","ROJAS COBO",{"$f":"_xlfn.CONCAT(B1091,\" \",C1091)","v":"ERWIN EDITH ROJAS COBO"},2000000]
[1143931513,"DURLEY GIOVANNY","SOLIS ORTIZ","DURLEY GIOVANNY SOLIS ORTIZ",300000]
[79665733,"MARIO","LONDONO OROZCO","MARIO LONDONO OROZCO",1700000]
[1113635422,"OSCAR ANDRES","ACOSTA COBO","OSCAR ANDRES ACOSTA COBO",300000]
[10489903,"URIEL","VASQUEZ GOMEZ","URIEL VASQUEZ GOMEZ",1900000]
[91266279,"JHON JAIRO","LOZANO RINCON","JHON JAIRO LOZANO RINCON",300000]
[94476173,"OSCAR ARBEY","MORENO MUNOZ","OSCAR ARBEY MORENO MUNOZ",300000]
[66970369,"LORENA MARIA","OREJUELA BARRERA","LORENA MARIA OREJUELA BARRERA",600000]
[1114814456,"WILSON ANTONIO","RENDON SANCHEZ","WILSON ANTONIO RENDON SANCHEZ",300000]
[16787316,"CARLOS FERNANDO","CASTRO VALLEJO","CARLOS FERNANDO CASTRO VALLEJO",2000000]
[25364611,"SILVIA MARIA","VASQUEZ MEJIA","SILVIA MARIA VASQUEZ MEJIA",300000]
[16728545,"VICTOR MANUEL","DURAN MERA","VICTOR MANUEL DURAN MERA",300000]
[72014380,"ASCANIO DE JESUS","SARMIENTO HERRERA","ASCANIO DE JESUS SARMIENTO HERRERA",300000]
[76237511,"LUIS HERMEL","CAMILO","LUIS HERMEL CAMILO",2000000]
[76261528,"BENJAMIN","ROCHA TEJADA","BENJAMIN ROCHA TEJADA",2000000]
[76224802,"WALTER","CARABALI OCORO","WALTER CARABALI OCORO",300000]
[10756424,"YIOVANY","CAMPO MERA","YIOVANY CAMPO MERA",2000000]
[1088974129,"EIVAR FABIAN","SANCHEZ","EIVAR FABIAN SANCHEZ",2000000]
[6321048,"CARLOS EDUARDO","SALCEDO","CARLOS EDUARDO SALCEDO",300000]
[13062187,"CARLOS LIBARDO","FLOREZ MAYA","CARLOS LIBARDO FLOREZ MAYA",300000]
[94361066,"FERNANDO","DIAZ VALLEJO","FERNANDO DIAZ VALLEJO",1600000]
[16834982,"WILLIAM","FLOREZ PULICHE","WILLIAM FLOREZ PULICHE",2000000]
[1067928401,"JOSE GABRIEL","HERRERA PAEZ","JOSE GABRIEL HERRERA PAEZ",300000]
[45538806,"ELIZABETH","ZAPATA BECERRA","ELIZABETH ZAPATA BECERRA",2000000]
[1059913230,"JHON FREDY","SANDOVAL DAZA","JHON FREDY SANDOVAL DAZA",300000]
[1149187977,"FERMIN","HINESTROZA MONDRAGON","FERMIN HINESTROZA MONDRAGON",300000]
[1118309508,"LUIS FERNANDO","DIAZ CORDOBA","LUIS FERNANDO DIAZ CORDOBA",300000]
[1007295227,"JOHAN SEBASTIAN","GRAJALES AGUIRRE","JOHAN SEBASTIAN GRAJALES AGUIRRE",2000000]
[1131105477,"HILDE ALFONSO","PICOT CORREA","HILDE ALFONSO PICOT CORREA",300000]
[76141103,"WILLIAM","PEREA RAMOS","WILLIAM PEREA RAMOS",300000]
[39287740,"MARTA ESTHER","QUEVEDO ARRIETA","MARTA ESTHER QUEVEDO ARRIETA",2000000]
[1007175138,"JESID DAVID","SUAREZ MALDONADO","JESID DAVID SUAREZ MALDONADO",400000]
[7714084,"MILTON MANUEL","FIESCO CASTRO","MILTON MANUEL FIESCO CASTRO",300000]
[1192753080,"JAIDER DAVID","OSORIO SEVILLA","JAIDER DAVID OSORIO SEVILLA",300000]
[6393649,"JOSE EDUARDO","BARONA","JOSE EDUARDO BARONA",300000]
[1063163567,"OSCAR ANDRES","CANTERO NEGRETE","OSCAR ANDRES CANTERO NEGRETE",2000000]
[1084258646,"DINAY TATIANA","ASTUDILLO BENAVIDES","DINAY TATIANA ASTUDILLO BENAVIDES",800000]
[1143974603,"KEVIN ALEXIS","VIVEROS RIVERA","KEVIN ALEXIS VIVEROS RIVERA",800000]
[1003334152,"ANDRIU STIHT","LOBO ROBLES","ANDRIU STIHT LOBO ROBLES",600000]
[1070304085,"CRISTIAN CAMILO","SARMIENTO RIAÑO","CRISTIAN CAMILO SARMIENTO RIAÑO",600000]
[1065645696,"JAINER JAVID","CARRILLO URBAY","JAINER JAVID CARRILLO URBAY",400000]
[92530889,"ROGELIO CESAR","GUERRA VELILLA","ROGELIO CESAR GUERRA VELILLA",800000]
[94042417,"CARLOS ALBERTO","MARTINEZ TIGREROS","CARLOS ALBERTO MARTINEZ TIGREROS",800000]
[1060506397,"BRAHIAN ESTIVEN","NAMUNDIA GUASARABE","BRAHIAN ESTIVEN NAMUNDIA GUASARABE",2000000]
[1059062042,"DERIAN","TAQUINAS CUNDA","DERIAN TAQUINAS CUNDA",2000000]
[94454970,"JUAN CARLOS","ZAPATA COBO","JUAN CARLOS ZAPATA COBO",2000000]
[1113525914,"CARLOS EMIR","PENAGOS CORTES","CARLOS EMIR PENAGOS CORTES",2000000]
[1152191376,"JANSON","PEREZ MESA","JANSON PEREZ MESA",2000000]
[1127948793,"JOAN ALEXIS","CASTAÑO BORRERO","JOAN ALEXIS CASTAÑO BORRERO",800000]
[91429804,"JAVIER","DIAZ VELASQUEZ","JAVIER DIAZ VELASQUEZ",300000]
[1192753994,"DUBAN","CUERO RENTERIA","DUBAN CUERO RENTERIA",2000000]
[1073157695,"WILMER YURLEY","PINTO MORA","WILMER YURLEY PINTO MORA",800000]
[94409906,"DIEGO FERNANDO","RIVERA ARCE","DIEGO FERNANDO RIVERA ARCE",2000000]
[6343649,"JORGE EDUARDO","GAVIRIA CHANCHI","JORGE EDUARDO GAVIRIA CHANCHI",1100000]
[1113682354,"LUIS DAVID","IBAÑEZ CASTAÑO","LUIS DAVID IBAÑEZ CASTAÑO",300000]
[1006248699,"JHON ALEXANDER","SOLANO SANCHEZ","JHON ALEXANDER SOLANO SANCHEZ",300000]
[1143965554,"JONATAN JOSUE","CAMACHO GONZALEZ","JONATAN JOSUE CAMACHO GONZALEZ",300000]
[7917404,"ROBERTO CARLOS","FLOREZ CHAVERRA","ROBERTO CARLOS FLOREZ CHAVERRA",2000000]
[1012410499,"JESSICA MARCELA","CAMACHO CABRERA","JESSICA MARCELA CAMACHO CABRERA",300000]
[15647654,"EMIGDIO SANTOS","BENITEZ PAEZ","EMIGDIO SANTOS BENITEZ PAEZ",800000]
[1083692237,"JOSE IVAN","RIVERA OSPINO","JOSE IVAN RIVERA OSPINO",300000]
[1052068682,"LUIS FERNANDO","HERNANDEZ BARRIOS","LUIS FERNANDO HERNANDEZ BARRIOS",500000]
[1007318424,"GUSTAVO ANTONIO","MEDRANO BENITEZ","GUSTAVO ANTONIO MEDRANO BENITEZ",300000]
[1002134655,"MAICOL ANTONIO","HAYDAR BARON","MAICOL ANTONIO HAYDAR BARON",300000]
[94269546,"JHON EVER","GRISALES IBARRA",{"$f":"_xlfn.CONCAT(B1155,\" \",C1155)","v":"JHON EVER GRISALES IBARRA"},300000]
[1143949342,"JHON JAIRO","MEDINA QUIÑONES","JHON JAIRO MEDINA QUIÑONES",300000]
[1035430860,"MIGUEL ANGEL","BERRIO OCHOA","MIGUEL ANGEL BERRIO OCHOA",2000000]
[87063724,"OSCAR ANDRES","DIAZ DELGADO","OSCAR ANDRES DIAZ DELGADO",2000000]
[9299797,"YEHISON JOSE","NAVARRO ARRIETA","YEHISON JOSE NAVARRO ARRIETA",2000000]
[10031204,"ALEJANDRO","LOPEZ AGUDELO","ALEJANDRO LOPEZ AGUDELO",2000000]
[1003153536,"NABOR","VALENCIA MONTAÑO","NABOR VALENCIA MONTAÑO",2000000]
[1005866233,"MAICOL JEFERSON","CAMAYO OSNAS","MAICOL JEFERSON CAMAYO OSNAS",2000000]
[66651537,"YANET DUFAY","MENDOZA CATAMUSCAY","YANET DUFAY MENDOZA CATAMUSCAY",2000000]
[93394322,"MEDARDO","BENITEZ SANCHEZ","MEDARDO BENITEZ SANCHEZ",300000]
[94537734,"JAMES","RODRIGUEZ BOLANOS","JAMES RODRIGUEZ BOLANOS",300000]
[1113685865,"LUIS ALFREDO","CAICEDO DAZA","LUIS ALFREDO CAICEDO DAZA",700000]
[13056788,"WILLIAM","GARCES RUA","WILLIAM GARCES RUA",1700000]
[1037265248,"JUAN FERNANDO","USUGA COSSIO","JUAN FERNANDO USUGA COSSIO",300000]
[10440147,"ALBERT","VALDEZ CAICEDO","ALBERT VALDEZ CAICEDO",300000]
[16644998,"DANILO ARTURO","PALAU SOTO","DANILO ARTURO PALAU SOTO",2000000]
[94256307,"HERNAN ALONSO","LUGO SALDARRIAGA","HERNAN ALONSO LUGO SALDARRIAGA",2000000]
[16782039,"MARCELIANO","BADILLO LOAIZA","MARCELIANO BADILLO LOAIZA",300000]
[11792741,"VICTOR","RENTERIA ANDRADES","VICTOR RENTERIA ANDRADES",2000000]
[16656295,"HARVEY","JIMENEZ ANASCO","HARVEY JIMENEZ ANASCO",2000000]
[16662391,"JHON JAIRO","GIRALDO SUAREZ","JHON JAIRO GIRALDO SUAREZ",600000]
[4752290,"PEDRO ANTONIO","ROJAS LOPEZ","PEDRO ANTONIO ROJAS LOPEZ",1500000]
[94447361,"JOSE WILLIAM","VELARDE ROSERO","JOSE WILLIAM VELARDE ROSERO",2000000]
[71216138,"ALEJANDRO","SANCHEZ VASCO","ALEJANDRO SANCHEZ VASCO",300000]
[14837707,"HAROLD HENRY","TREJO CUSIS","HAROLD HENRY TREJO CUSIS",300000]
[1110520323,"JONATHAN STEVEN","TRUJILLO","JONATHAN STEVEN TRUJILLO",2000000]
[1116725982,"EDUAN SOER","GIRALDO GUTIERREZ","EDUAN SOER GIRALDO GUTIERREZ",2000000]
[79546717,"GERMAN","PULIDO MORA","GERMAN PULIDO MORA",2000000]
[1059448260,"BRYAN FERNANDO","GONZALEZ GONZALEZ","BRYAN FERNANDO GONZALEZ GONZALEZ",800000]
[1033816753,"MICHAEL STEVEN","AGUDELO RAMIREZ","MICHAEL STEVEN AGUDELO RAMIREZ",1700000]
[1221963246,"KEVIN JOSE","ESPINOSA FLORES","KEVIN JOSE ESPINOSA FLORES",600000]
[1104133561,"ELIAS DAVID","MENESES LOAIZA","ELIAS DAVID MENESES LOAIZA",1100000]
[70812188,"JOSE ORLANDO","QUIROZ RIOS","JOSE ORLANDO QUIROZ RIOS",800000]
[1143470192,"WALTER JESUS","VELEZ LEON","WALTER JESUS VELEZ LEON",800000]
[1005933970,"JUAN FERNANDO","MONCALEANO GRIJALBA","JUAN FERNANDO MONCALEANO GRIJALBA",600000]
[1040492283,"YUDY RAQUEL","PASTRANA ARENILLA","YUDY RAQUEL PASTRANA ARENILLA",600000]
[1193101756,"JEAN CARLOS","RENTERIA MONTENEGRO","JEAN CARLOS RENTERIA MONTENEGRO",300000]
[70114358,"HECTOR MARIO","OQUENDO OQUENDO","HECTOR MARIO OQUENDO OQUENDO",2000000]
[1032419481,"JOSE LUIS","RODRIGUEZ BARBOSA","JOSE LUIS RODRIGUEZ BARBOSA",2000000]
[1113679043,"WILLIAM","DUQUE DIAZ","WILLIAM DUQUE DIAZ",1800000]
[1061748096,"YOJAN DAINOVER","MUÑOZ MAYORGA","YOJAN DAINOVER MUÑOZ MAYORGA",2000000]
[1045502007,"DAMIAN","MENA RIVAS","DAMIAN MENA RIVAS",300000]
[1143935108,"DONNEY","REBELLON VALENCIA","DONNEY REBELLON VALENCIA",300000]
[1024493724,"JOSE DANIEL","ACOSTA MOLINA","JOSE DANIEL ACOSTA MOLINA",300000]
[14620669,"FRANKIN DINEY","MESTIZO TOMBE","FRANKIN DINEY MESTIZO TOMBE",300000]
[1069463509,"MARLYS MARLEY","MACEA PUENTES","MARLYS MARLEY MACEA PUENTES",300000]
[71189408,"FABIO EMILIO","GUTIERREZ CORTES","FABIO EMILIO GUTIERREZ CORTES",300000]
[1007350985,"NAFER ELIECER","CELESTINO YEPES","NAFER ELIECER CELESTINO YEPES",2000000]
[1082978790,"DIANA CAROLINA","ARVILLA GUERRA","DIANA CAROLINA ARVILLA GUERRA",1400000]
[14650956,"HOLMES ENRIQUE","HURTADO HERRERA","HOLMES ENRIQUE HURTADO HERRERA",1800000]
[1087815230,"KEVIN JAVIER","CRUZ GONGORA","KEVIN JAVIER CRUZ GONGORA",1500000]
[1040519620,"CRISTIAN EDUARDO","MAURIS VERGARA","CRISTIAN EDUARDO MAURIS VERGARA",600000]
[1110560402,"JHONATAN","ZARATE HERNANDEZ","JHONATAN ZARATE HERNANDEZ",600000]
[1077143682,"JESUS JAMIR","LOAIZA AROCA","JESUS JAMIR LOAIZA AROCA",300000]
[6408088,"IVAN MAURICIO","GALLARDO GUERRERO","IVAN MAURICIO GALLARDO GUERRERO",800000]
[1040359430,"LUIS FERNANDO","CORDOBA HINESTROZA","LUIS FERNANDO CORDOBA HINESTROZA",800000]
[91517438,"JIMMY JAVIER","TORO RODRIGUEZ","JIMMY JAVIER TORO RODRIGUEZ",300000]
[1023949289,"ANDERSON STIVEN","SANABRIA ALFONSO","ANDERSON STIVEN SANABRIA ALFONSO",1400000]
[1005864008,"DARBEY JOEL","OCAMPO TREJOS","DARBEY JOEL OCAMPO TREJOS",700000]
[12128841,"REYNEL","POLANIA VARGAS","REYNEL POLANIA VARGAS",800000]
[1062309773,"BRAYAN STIVEN","OSPINA GONZALEZ","BRAYAN STIVEN OSPINA GONZALEZ",300000]
[1111756124,"JOSE IDER","CASTILLO MINA","JOSE IDER CASTILLO MINA",2000000]
[1061436210,"ROBINSON ANDRES","PECHUCUE VELASCO","ROBINSON ANDRES PECHUCUE VELASCO",300000]
[1040491567,"EVER ANTONIO","BUSTAMANTE PEÑATES","EVER ANTONIO BUSTAMANTE PEÑATES",300000]
[1130615891,"DIDIER","ANGULO GARCES",{"$f":"_xlfn.CONCAT(B1219,\" \",C1219)","v":"DIDIER ANGULO GARCES"},1000000]
[1006096752,"KEVIN EDUARDO","SALAZAR BAONZA","KEVIN EDUARDO SALAZAR BAONZA",1300000]
[1085689083,"PEDRO NEL","ORDOÑEZ GILON","PEDRO NEL ORDOÑEZ GILON",2000000]
[1073688893,"ROBINSON ANDRES","SANABRIA ALFONSO","ROBINSON ANDRES SANABRIA ALFONSO",900000]
[1113520186,"EDUAR ORLANDO","PERNIA MACHADO","EDUAR ORLANDO PERNIA MACHADO",2000000]
[79883974,"JAYDER","AROCA GRANADOS","JAYDER AROCA GRANADOS",2000000]
[1113674933,"YEISON STEVEN","SILVA BOLAÑOS","YEISON STEVEN SILVA BOLAÑOS",2000000]
[1144030801,"JORGE LEONARDO","ORTIZ ZOLORZANO","JORGE LEONARDO ORTIZ ZOLORZANO",300000]
[1004616973,"BRAYAN ESTIVEN","PRECIADO CABEZAS","BRAYAN ESTIVEN PRECIADO CABEZAS",2000000]
[1087129969,"DIEGO FERNANDO","VALENCIA ANTE","DIEGO FERNANDO VALENCIA ANTE",2000000]
[1045142439,"ERNEY DE JESUS","BUSTAMANTE PINEDA","ERNEY DE JESUS BUSTAMANTE PINEDA",1100000]
[72282773,"GUSTAVO ADOLFO","BARROS OLIVEROS","GUSTAVO ADOLFO BARROS OLIVEROS",600000]
[94322643,"JUAN MIGUEL","SIERRA CARDENAS","JUAN MIGUEL SIERRA CARDENAS",2000000]
[1063718020,"RICARDO JOSE","DE LA ROSA CARDENAS","RICARDO JOSE DE LA ROSA CARDENAS",400000]
[29622643,"SANDRA PATRICIA","OSPINA MUNOZ","SANDRA PATRICIA OSPINA MUNOZ",2000000]
[10498264,"RODOLFO","BOLIVAR RUDA","RODOLFO BOLIVAR RUDA",300000]
[94509535,"JOSE ARBEY","PATINO MORENO","JOSE ARBEY PATINO MORENO",2000000]
[94151708,"HECTOR ALONSO","LOPEZ MUNOZ","HECTOR ALONSO LOPEZ MUNOZ",1400000]
[76293708,"EIVAR ARNOBIO","RUIZ PIPICANO","EIVAR ARNOBIO RUIZ PIPICANO",500000]
[1032420791,"JHON FREDY","VARELA VILLAMIL","JHON FREDY VARELA VILLAMIL",2000000]
[1114894385,"JUAN FELIPE","SAAVEDRA DIAZ","JUAN FELIPE SAAVEDRA DIAZ",1100000]
[1144060353,"FERNANDO","REBOLLEDO MOSQUERA","FERNANDO REBOLLEDO MOSQUERA",2000000]
[1067533360,"ROBER ANDRES","UL MEDINA","ROBER ANDRES UL MEDINA",2000000]
[1007967483,"ANDRES FELIPE","MOSQUERA GAMBOA","ANDRES FELIPE MOSQUERA GAMBOA",2000000]
[1003102908,"YIMMI FABIAN","ANAYA","YIMMI FABIAN ANAYA",1500000]
[74186827,"FREDY","LAVERDE LAVERDE","FREDY LAVERDE LAVERDE",900000]
[1037615443,"DANIEL EDUARDO","CAMARGO NORIEGA","DANIEL EDUARDO CAMARGO NORIEGA",2000000]
[1005030019,"RONALDO FABIO","MELGAREJO SANTOS","RONALDO FABIO MELGAREJO SANTOS",2000000]
[1002879444,"FABER JHONIER","CHIMUNJA CORDOBA","FABER JHONIER CHIMUNJA CORDOBA",600000]
[1006893744,"MIGUEL ANGEL","RODRIGUEZ PARRA","MIGUEL ANGEL RODRIGUEZ PARRA",600000]
[16858419,"ADOLFO LEON","BARANDICA","ADOLFO LEON BARANDICA",2000000]
[15618140,"NEVER ANTOLIANO","CARVAJAL ARROYO","NEVER ANTOLIANO CARVAJAL ARROYO",300000]
[1144189299,"CRISTIAN ALEXANDER","ROLDAN GARCIA","CRISTIAN ALEXANDER ROLDAN GARCIA",800000]
[1073811253,"VICTOR ALFONSO","BERRIO LUGO","VICTOR ALFONSO BERRIO LUGO",300000]
[1000514556,"LAURA VALENTINA","VILLAMIL PEÑA","LAURA VALENTINA VILLAMIL PEÑA",2000000]
[98146516,"JESUS LIBARDO","MELO PASOS","JESUS LIBARDO MELO PASOS",2000000]
[1081760458,"RICARDO ENRIQUE","MEDINA DE LA HOZ","RICARDO ENRIQUE MEDINA DE LA HOZ",300000]
[76295698,"VICTOR HERNANDO","GUECHE BENAVIDEZ","VICTOR HERNANDO GUECHE BENAVIDEZ",1400000]
[1035857954,"MIGUEL ARLEY","ACEVEDO","MIGUEL ARLEY ACEVEDO",2000000]
[14567729,"JOVANNI ANDRES","RUIZ TAMAYO","JOVANNI ANDRES RUIZ TAMAYO",2000000]
[16893361,"JHON JAIRO","CUERO VIAFARA","JHON JAIRO CUERO VIAFARA",2000000]
[18008531,"ANDRES FERNANDO","CEBALLOS LOPEZ","ANDRES FERNANDO CEBALLOS LOPEZ",300000]
[76299894,"CESAR","GUETIO POSCUE","CESAR GUETIO POSCUE",300000]
[1112494447,"LUIS DANIEL","ARICAPA SANCHEZ","LUIS DANIEL ARICAPA SANCHEZ",800000]
[1053327831,"ERNEY","SUA HORMAZA","ERNEY SUA HORMAZA",300000]
[14885504,"LUIS EVELIO","CANAS MONSALVE","LUIS EVELIO CANAS MONSALVE",2000000]
[1129510027,"JAIR EVANI","ARRIETA MARRIAGA","JAIR EVANI ARRIETA MARRIAGA",500000]
[1000990559,"BRYAN","MARIN CRUZ","BRYAN MARIN CRUZ",2000000]
[98700915,"MARIO ALBERTO","LEZCANO BENJUMEA","MARIO ALBERTO LEZCANO BENJUMEA",300000]
[79838268,"CESAR","MALAMBO CAPERA","CESAR MALAMBO CAPERA",1300000]
[1002065063,"OMAR GUILLERMO","MUÑOZ PALACIO","OMAR GUILLERMO MUÑOZ PALACIO",300000]
[14897678,"HECTOR FABIO","OSPINA GRANADA","HECTOR FABIO OSPINA GRANADA",2000000]
[14323037,"ALFONSO","RODRIGUEZ SUAREZ","ALFONSO RODRIGUEZ SUAREZ",2000000]
[1040738516,"GEIDY ESTEFANIA","FLOREZ VILLADA","GEIDY ESTEFANIA FLOREZ VILLADA",2000000]
[93135247,"OSCAR MAURICIO","LEYTON ALVAREZ","OSCAR MAURICIO LEYTON ALVAREZ",300000]
[94284942,"JAIME","LONDOÑO RIVERA","JAIME LONDOÑO RIVERA",400000]
[1042212577,"LUIS MIGUEL","BALDOVINO VERA","LUIS MIGUEL BALDOVINO VERA",2000000]
[79841425,"ROBERTO DE JESUS","RIVERA BURGOS","ROBERTO DE JESUS RIVERA BURGOS",2000000]
[1110551741,"JUAN CARLOS","FORERO TORRES","JUAN CARLOS FORERO TORRES",1300000]
[76042078,"DILIO ALBERTO","PONCE MORA","DILIO ALBERTO PONCE MORA",2000000]
[80872134,"LUIS ENRIQUE","SALDARRIAGA FORI","LUIS ENRIQUE SALDARRIAGA FORI",800000]
[1144077967,"LUIS FERNANDO","CARABALI CONDA","LUIS FERNANDO CARABALI CONDA",300000]
[1040490887,"JUAN GUILLERMO","COTERA RIVERA","JUAN GUILLERMO COTERA RIVERA",2000000]
[1059607287,"JORGE ANDRES","MELENJE REYES","JORGE ANDRES MELENJE REYES",700000]
[1143997310,"JOHAN ANDRES","GONZALEZ",{"$f":"_xlfn.CONCAT(B1283,\" \",C1283)","v":"JOHAN ANDRES GONZALEZ"},600000]
[19603828,"VENANCIO SEGUNDO","CABAS ROJANO","VENANCIO SEGUNDO CABAS ROJANO",2000000]
[1144163590,"INGRID LISSETH","VARGAS BECERRA","INGRID LISSETH VARGAS BECERRA",600000]
[66988076,"MARYORI","ANGULO","MARYORI ANGULO",2000000]
[1130676538,"MARCELA","GRANADO CABRERA","MARCELA GRANADO CABRERA",2000000]
[1043154163,"JESUS DAVID","SIERRA GUEVARA","JESUS DAVID SIERRA GUEVARA",1800000]
[1113594774,"ANDRES FELIPE","PULGARIN RAMIREZ","ANDRES FELIPE PULGARIN RAMIREZ",2000000]
[73139766,"GILBERTO","CUESTA CUESTA","GILBERTO CUESTA CUESTA",300000]
[12796727,"HUGO","MONTAÑO SALAZAR","HUGO MONTAÑO SALAZAR",300000]
[94397354,"LORENZO","RUBIO PRADA","LORENZO RUBIO PRADA",2000000]
[1069852797,"WILSON ENRIQUE","CALDERON UBAQUE","WILSON ENRIQUE CALDERON UBAQUE",300000]
[16839012,"ISRAEL","LANCHEROS RAMIREZ","ISRAEL LANCHEROS RAMIREZ",300000]
[10301782,"IVAN DARIO","VELASCO","IVAN DARIO VELASCO",2000000]
[94447237,"MILTON OVIDIO","CADENA CASTILLO","MILTON OVIDIO CADENA CASTILLO",2000000]
[8201760,"JOHN EIDER","SOTO BANQUET","JOHN EIDER SOTO BANQUET",1800000]
[1053337308,"JHON ALEXANDER","TORRES MURCIA","JHON ALEXANDER TORRES MURCIA",300000]
[1113640146,"CESAR AUGUSTO","OBONAGA MEDINA","CESAR AUGUSTO OBONAGA MEDINA",2000000]
[12917723,"SERGIO EUGENIO","ROSERO CASTILLO","SERGIO EUGENIO ROSERO CASTILLO",800000]
[12195523,"FIDEL","ASTUDILLO ORDOÑEZ","FIDEL ASTUDILLO ORDOÑEZ",1300000]
[1048017113,"CRISTIAN HORACIO","URREGO GAVIRIA","CRISTIAN HORACIO URREGO GAVIRIA",2000000]
[1074556863,"MIGUEL ANTONIO","CASTIBLANCO CASTIBLANCO","MIGUEL ANTONIO CASTIBLANCO CASTIBLANCO",2000000]
[16357673,"ORLANDO","ROMERO JIMENEZ","ORLANDO ROMERO JIMENEZ",2000000]
[1116435702,"OSCAR YONIER","RUIZ CUERVO","OSCAR YONIER RUIZ CUERVO",300000]
[1050065956,"JOSE EDUARDO","TOLOZA TOLOZA","JOSE EDUARDO TOLOZA TOLOZA",300000]
[16279907,"LUIS ALFREDO","MENESES GUERRON","LUIS ALFREDO MENESES GUERRON",2000000]
[1143928842,"VICTOR HUGO","FAJARDO QUINTERO","VICTOR HUGO FAJARDO QUINTERO",300000]
[1113680863,"JEAN CARLOS","MORALES MONTOYA","JEAN CARLOS MORALES MONTOYA",2000000]
[1143122531,"JOSE AGUSTIN","SANCHEZ VEGA","JOSE AGUSTIN SANCHEZ VEGA",600000]
[1115191239,"JUAN SEBASTIAN","GAONA ZULUAGA","JUAN SEBASTIAN GAONA ZULUAGA",300000]
[1089794987,"JULIO CESAR","GRUESO IBARBO","JULIO CESAR GRUESO IBARBO",2000000]
[93400798,"MANUEL IGNACIO","PARRA CEDANO","MANUEL IGNACIO PARRA CEDANO",300000]
[8866985,"CARLOS ALBERTO","GUTIERREZ GUTIERREZ","CARLOS ALBERTO GUTIERREZ GUTIERREZ",1300000]
[1070806938,"JULIO IGNACIO","CORREA OROZCO","JULIO IGNACIO CORREA OROZCO",600000]
[94369789,"FERNEY","HOYOS MAMIAN","FERNEY HOYOS MAMIAN",300000]
[1118285044,"ANDERSSEN","HOYOS JURADO","ANDERSSEN HOYOS JURADO",400000]
[4384986,"JOSE DANILO","SALAZAR RODRIGUEZ","JOSE DANILO SALAZAR RODRIGUEZ",300000]
[1063147968,"UDINEL ANTONIO","HERNANDEZ BELLO","UDINEL ANTONIO HERNANDEZ BELLO",1500000]
[1079912066,"EDWIN RAFAEL","HERNANDEZ POLO","EDWIN RAFAEL HERNANDEZ POLO",2000000]
[1113312930,"NATALIA ANDREA","ALVAREZ CASTAÑO","NATALIA ANDREA ALVAREZ CASTAÑO",2000000]
[1060801151,"EDWIN OBEIMAR","CAMPO CASTRO","EDWIN OBEIMAR CAMPO CASTRO",600000]
[1113667539,"WALTER MAURICIO","GONZALEZ RIOS","WALTER MAURICIO GONZALEZ RIOS",1500000]
[1075629201,"DIEGO ALEXANDER","CRUZ OVALLE","DIEGO ALEXANDER CRUZ OVALLE",300000]
[1060416152,"JULIAN","MINA MOSQUERA","JULIAN MINA MOSQUERA",2000000]
[1007352325,"JESUS FERNANDO","PEREZ ORTEGA","JESUS FERNANDO PEREZ ORTEGA",2000000]
[80491961,"JAIRO","ROMERO FANDIÑO","JAIRO ROMERO FANDIÑO",1500000]
[1028187255,"GILMAR","SOLIS LERMA","GILMAR SOLIS LERMA",2000000]
[94490903,"ANDRES MAURICIO","CIFUENTES BENACHI","ANDRES MAURICIO CIFUENTES BENACHI",2000000]
[1041086324,"MAYRA GISETH","IBARRA FERNANDEZ","MAYRA GISETH IBARRA FERNANDEZ",300000]
[1064440401,"CRISTIAN ANDRES","CALAMBAS TOMBE","CRISTIAN ANDRES CALAMBAS TOMBE",1600000]
[1045744881,"KARILIN CONCEPCION","RUIZ RUIZ","KARILIN CONCEPCION RUIZ RUIZ",600000]
[1002976630,"JHON WILMAR","ALVAREZ BRAVO","JHON WILMAR ALVAREZ BRAVO",300000]
[66883966,"ASTRID LORENA","PALACIOS GUERRA","ASTRID LORENA PALACIOS GUERRA",2000000]
[1033795739,"JHOAN SEBASTIAN","MARTINEZ SABOGAL","JHOAN SEBASTIAN MARTINEZ SABOGAL",400000]
[1110535330,"DIEGO FERNANDO","MONROY QUICENO","DIEGO FERNANDO MONROY QUICENO",400000]
[1116275837,"LUIZ EDUARDO","LIBREROS JIMENEZ","LUIZ EDUARDO LIBREROS JIMENEZ",1500000]
[1143123574,"LUIS ANDRES","ORDOÑEZ RICARDO","LUIS ANDRES ORDOÑEZ RICARDO",300000]
[1085179757,"ENDER","ESCOBAR FUENTES","ENDER ESCOBAR FUENTES",600000]
[71255645,"LUIS FERNEY","GOMEZ RAMIREZ","LUIS FERNEY GOMEZ RAMIREZ",2000000]
[79851978,"HECTOR FABIO","ARIAS ALVAREZ","HECTOR FABIO ARIAS ALVAREZ",1400000]
[1128191635,"NAISER NADIR","BORJA CABALLERO","NAISER NADIR BORJA CABALLERO",400000]
[1148451116,"WINDERSON ARLEY","ARBOLEDA SANCHEZ","WINDERSON ARLEY ARBOLEDA SANCHEZ",800000]
[94487177,"ANDRES","CIFUENTES NARVAEZ","ANDRES CIFUENTES NARVAEZ",300000]
[94443335,"JHON JAIRO","LOPEZ SINISTERRA","JHON JAIRO LOPEZ SINISTERRA",300000]
[1007779229,"BRAYAN ALEXIS","LOPEZ PARDO","BRAYAN ALEXIS LOPEZ PARDO",300000]
[78760079,"ELKIN DARIO","DIAZ PADILLA",{"$f":"_xlfn.CONCAT(B1347,\" \",C1347)","v":"ELKIN DARIO DIAZ PADILLA"},500000]
[7368910,"JABID JOSE","MEDELLIN OJEDA","JABID JOSE MEDELLIN OJEDA",800000]
[1010144126,"JAVIER IVAN","GOMEZ SALAS","JAVIER IVAN GOMEZ SALAS",300000]
[70418991,"HERNAN DARIO","DAVID PULGARIN","HERNAN DARIO DAVID PULGARIN",2000000]
[86052545,"JOSE EDWARD","RIOS MORENO","JOSE EDWARD RIOS MORENO",1400000]
[94322167,"JOSE EDINSON","ARCE PEÑARANDA","JOSE EDINSON ARCE PEÑARANDA",300000]
[16726887,"HARBY ALBERTO","ORTEGA NARVAEZ","HARBY ALBERTO ORTEGA NARVAEZ",2000000]
[16669451,"JOSE VITELIO","CLAROS FLOREZ","JOSE VITELIO CLAROS FLOREZ",2000000]
[15514344,"ALEXANDER","MARTINEZ ARENAS","ALEXANDER MARTINEZ ARENAS",1200000]
[10346253,"CARLOS","LEON GOMEZ","CARLOS LEON GOMEZ",1400000]
[8785776,"ERIC ALFONSO","PADILLA ANAYA","ERIC ALFONSO PADILLA ANAYA",300000]
[1112618972,"JOSE FABIAN","LOPEZ GOMEZ","JOSE FABIAN LOPEZ GOMEZ",2000000]
[98483794,"ARNOLDO EDILSON","VARGAS MARIN","ARNOLDO EDILSON VARGAS MARIN",300000]
[94508019,"CIRO ANTONIO","SOL ARROYO","CIRO ANTONIO SOL ARROYO",900000]
[76304338,"EDUAR OLIVER","MOSQUERA PAREDES","EDUAR OLIVER MOSQUERA PAREDES",500000]
[79041861,"SIMON DEL CARMEN","BOLIVAR MUNOZ","SIMON DEL CARMEN BOLIVAR MUNOZ",700000]
[94040324,"SAUL ANTONIO","RENGIFO ESCOBAR","SAUL ANTONIO RENGIFO ESCOBAR",300000]
[94413731,"JOSE EDGAR","GRIJALBA GRIJALBA","JOSE EDGAR GRIJALBA GRIJALBA",300000]
[76336149,"NORBERTO","DAZA RIASCOS","NORBERTO DAZA RIASCOS",2000000]
[1144152905,"ANDRES FELIPE","ALVAREZ HERRERA","ANDRES FELIPE ALVAREZ HERRERA",2000000]
[29401517,"AIDA LILIANA","PAZ URBANO","AIDA LILIANA PAZ URBANO",300000]
[75071672,"JHON FEDERICO","HERNANDEZ CARDONA","JHON FEDERICO HERNANDEZ CARDONA",2000000]
[17287388,"FREIMAN","MARTINEZ GUTIERREZ","FREIMAN MARTINEZ GUTIERREZ",300000]
[94380631,"NEISER WISTON","RODRIGUEZ CUERO","NEISER WISTON RODRIGUEZ CUERO",300000]
[78689782,"MANUEL MARIANO","JULIO RAMOS","MANUEL MARIANO JULIO RAMOS",2000000]
[94298466,"JOSE MARTIN","GONZALEZ REBELLON","JOSE MARTIN GONZALEZ REBELLON",2000000]
[93456005,"JOSE ERNEY","VARON ORTIZ","JOSE ERNEY VARON ORTIZ",2000000]
[16862726,"CARLOS ANDRES","ORDOÑEZ RUIZ","CARLOS ANDRES ORDOÑEZ RUIZ",1500000]
[93289908,"UBER ALIRIO","ESPEJO ESPEJO","UBER ALIRIO ESPEJO ESPEJO",2000000]
[87064770,"ELQUIN DANIEL","JOJOA SALAZAR","ELQUIN DANIEL JOJOA SALAZAR",300000]
[87472289,"EDGAR JESUS","DAVILA ORTIZ","EDGAR JESUS DAVILA ORTIZ",2000000]
[80187203,"BRAULIO DAVID","LOPEZ RECALDE","BRAULIO DAVID LOPEZ RECALDE",800000]
[39750225,"MARLENE","MORENO SALINAS","MARLENE MORENO SALINAS",300000]
[16897899,"PABLO ANDRES","ARARAT","PABLO ANDRES ARARAT",1000000]
[71699498,"CARLOS ALBERTO","GOMEZ BETANCUR","CARLOS ALBERTO GOMEZ BETANCUR",1100000]
[16884571,"JAIRO","GOMEZ PINO","JAIRO GOMEZ PINO",300000]
[16709479,"JAIME","RIOS CARVAJAL","JAIME RIOS CARVAJAL",500000]
[16748287,"JESUS ASDRUBAL","GOMEZ GOMEZ","JESUS ASDRUBAL GOMEZ GOMEZ",300000]
[39781671,"DIANA PATRICIA","MONTANO MONTANO","DIANA PATRICIA MONTANO MONTANO",300000]
[16760793,"WILLIAM","SOSA","WILLIAM SOSA",2000000]
[10486162,"ARNOLDO LEON","BOLAÑOS TROCHEZ","ARNOLDO LEON BOLAÑOS TROCHEZ",2000000]
[73214708,"KENNY MAURICIO","SABALZA CORTES","KENNY MAURICIO SABALZA CORTES",300000]
[4652903,"GUSTAVO","CASTAÑO SOTO","GUSTAVO CASTAÑO SOTO",600000]
[94552486,"CARLOS ANDRES","ACOSTA","CARLOS ANDRES ACOSTA",1400000]
[1010006745,"JHONATAN JOSE","CARBONO BASTIDAS","JHONATAN JOSE CARBONO BASTIDAS",600000]
[80282398,"JUAN CARLOS","BOHORQUEZ CARDENAS","JUAN CARLOS BOHORQUEZ CARDENAS",600000]
[1083561016,"EDUARDO LUIS","NAVAS REALES","EDUARDO LUIS NAVAS REALES",300000]
[1108936035,"MILER JHONNATAN","PEDRAZA MONROY","MILER JHONNATAN PEDRAZA MONROY",300000]
[1130636839,"JANIER ANDRES","RAMIREZ JOJOA","JANIER ANDRES RAMIREZ JOJOA",1500000]
[1023974121,"JHONATAN ESTIVEN","MADERO REYES","JHONATAN ESTIVEN MADERO REYES",800000]
[1108932786,"EDSON ANTONIO","VARGAS VILLARREAL","EDSON ANTONIO VARGAS VILLARREAL",2000000]
[1144169927,"FERNANDO","BARRERA BENITEZ","FERNANDO BARRERA BENITEZ",2000000]
[1010038256,"ERIKA","ROJAS PIÑEROS","ERIKA ROJAS PIÑEROS",800000]
[1026565655,"JEISON GIOVANY","ARIAS ACOSTA","JEISON GIOVANY ARIAS ACOSTA",1600000]
[1049028805,"MADELIS","ZAMBRANO NAVARRO","MADELIS ZAMBRANO NAVARRO",800000]
[1114812494,"JULIO CESAR","OBANDO ARBOLEDA","JULIO CESAR OBANDO ARBOLEDA",800000]
[1083469364,"YEINER JOSE","MANJARRES SUAREZ","YEINER JOSE MANJARRES SUAREZ",600000]
[1193440071,"BRANDON ANDRES","GALEANO HINCAPIE","BRANDON ANDRES GALEANO HINCAPIE",600000]
[8532749,"YEINFRE JOSE","DIAZ ROMERO","YEINFRE JOSE DIAZ ROMERO",600000]
[71225440,"JOSE JULIAN","GAVIRIA FLOREZ","JOSE JULIAN GAVIRIA FLOREZ",600000]
[1067880933,"ALEJANDRO MANUEL","ZUÑIGA MONTERROSA","ALEJANDRO MANUEL ZUÑIGA MONTERROSA",300000]
[1010213244,"YUDI YAMILE","CARRILLO RUIZ","YUDI YAMILE CARRILLO RUIZ",300000]
[14679342,"MIGUEL ANGEL","MURCIA","MIGUEL ANGEL MURCIA",300000]
[80770960,"SOLMAN","GAMEZ","SOLMAN GAMEZ",800000]
[1061987994,"JOHN EYSON","PIPICANO PEÑA",{"$f":"_xlfn.CONCAT(B1411,\" \",C1411)","v":"JOHN EYSON PIPICANO PEÑA"},2000000]
[1069493104,"NATALIA MARIA","ORTEGA UPARELA","NATALIA MARIA ORTEGA UPARELA",1000000]
[1064491041,"BRANDON","BANGUERA VALENCIA","BRANDON BANGUERA VALENCIA",1300000]
[43738954,"PAULA SOLEDAD","LOPEZ","PAULA SOLEDAD LOPEZ",2000000]
[1114884631,"GEOVANNY","MONTOYA TAQUINAS","GEOVANNY MONTOYA TAQUINAS",800000]
[1065884563,"SERGIO ANDRES","SANGUINO RICO","SERGIO ANDRES SANGUINO RICO",1200000]
[1114896356,"GUSTAVO ADOLFO","MORALES VALENCIA","GUSTAVO ADOLFO MORALES VALENCIA",1700000]
[1024539542,"JESSICA ANDREA","ALVARADO CUBILLOS","JESSICA ANDREA ALVARADO CUBILLOS",800000]
[1006325768,"SEBASTIAN","ROA LUCUMI","SEBASTIAN ROA LUCUMI",600000]
[1036642150,"LUIS ESTBAN","TABARES CORREA","LUIS ESTBAN TABARES CORREA",900000]
[84458024,"JARLYS ALBERTO","MEDINA MORALES","JARLYS ALBERTO MEDINA MORALES",800000]
[71744927,"JOHN FREDY","ALZATE CIFUENTES","JOHN FREDY ALZATE CIFUENTES",2000000]
[80192115,"DAVID ALFONSO","RODRIGUEZ GONZALEZ","DAVID ALFONSO RODRIGUEZ GONZALEZ",600000]
[94286362,"RAMON ALEXANDER","MONTERO ALVAREZ","RAMON ALEXANDER MONTERO ALVAREZ",400000]
[1118297154,"KATHERINE","ALVAREZ MORENO","KATHERINE ALVAREZ MORENO",600000]
[1144085699,"PEDRO ANTONIO","SANCHEZ RODRIGUEZ","PEDRO ANTONIO SANCHEZ RODRIGUEZ",300000]
[1005897677,"JOHANNA","MONTOYA VIDALES","JOHANNA MONTOYA VIDALES",300000]
[1084221433,"YEDISON FERNEY","DE LA CRUZ","YEDISON FERNEY DE LA CRUZ",1700000]
[94449795,"JUAN CARLOS","GARCES FRANCO","JUAN CARLOS GARCES FRANCO",300000]
[10546549,"ORLANDO ALBEIRO","ESCOBAR VALVERDE","ORLANDO ALBEIRO ESCOBAR VALVERDE",2000000]
[1113618749,"JORGE ELIECER","RENTERIA GUETIO","JORGE ELIECER RENTERIA GUETIO",800000]
[14470656,"JAMES","MINA QUINTERO","JAMES MINA QUINTERO",300000]
[94414327,"OSCAR","TRUJILLO POTOSI","OSCAR TRUJILLO POTOSI",2000000]
[66784323,"LINA MARIA","ARANA ARIAS","LINA MARIA ARANA ARIAS",1600000]
[1007792230,"JEISON","DE LA CRUZ BANQUET","JEISON DE LA CRUZ BANQUET",2000000]
[1061780688,"JHOAN ANDRES","SABOGAL COBO","JHOAN ANDRES SABOGAL COBO",2000000]
[6107862,"DIEGO FERNANDO","LEYES HENAO","DIEGO FERNANDO LEYES HENAO",2000000]
[1144154104,"MAURICIO","MONZON BIANCHA","MAURICIO MONZON BIANCHA",1400000]
[1113532631,"OSCAR EDUARDO","HERRERA LIBREROS","OSCAR EDUARDO HERRERA LIBREROS",1300000]
[11172999,"JORGE ANDRES","DE LA ROSA CARDENAS","JORGE ANDRES DE LA ROSA CARDENAS",2000000]
[1061530964,"DIDIER ALEJANDRO","QUIJANO PAJOY","DIDIER ALEJANDRO QUIJANO PAJOY",2000000]
[1022413389,"GONZALO DE JESUS","LLANOS PEÑA","GONZALO DE JESUS LLANOS PEÑA",2000000]
[1036631624,"FABIAN ANDRES","OCAMPO CANO","FABIAN ANDRES OCAMPO CANO",300000]
[94449951,"CARLOS ALBERTO","ESCOBAR LUCUMI","CARLOS ALBERTO ESCOBAR LUCUMI",2000000]
[16941833,"FABIAN ANDRES","MEDINA JIMENEZ","FABIAN ANDRES MEDINA JIMENEZ",300000]
[15683346,"ELIO ENRIQUE","ANAYA CASTRO","ELIO ENRIQUE ANAYA CASTRO",2000000]
[1003037675,"BALMES","MAZABUEL SANCHEZ","BALMES MAZABUEL SANCHEZ",300000]
[80450037,"RIVER DANILO","GARAY BARBOSA","RIVER DANILO GARAY BARBOSA",2000000]
[10722861,"FREYMAN ARMANDO","GUERRERO FERNANDEZ","FREYMAN ARMANDO GUERRERO FERNANDEZ",2000000]
[79117634,"MARCO ANTONIO","GOMEZ SORIANO","MARCO ANTONIO GOMEZ SORIANO",2000000]
[10296023,"JULIO CESAR","CASTANO CHICAIZA","JULIO CESAR CASTANO CHICAIZA",2000000]
[1022927440,"JOSE FERNEY","RIVERA AVILA","JOSE FERNEY RIVERA AVILA",2000000]
[1130600601,"DIEGO ARMANDO","LLANTEN GARZON","DIEGO ARMANDO LLANTEN GARZON",300000]
[1144144558,"CRISTIAN DUVAN","SINSAJOA POMEO","CRISTIAN DUVAN SINSAJOA POMEO",400000]
[1143141969,"STEVENSON","VASQUEZ BARRAZA","STEVENSON VASQUEZ BARRAZA",800000]
[84062873,"JANNER ANTONIO","ROMERO DUARTE","JANNER ANTONIO ROMERO DUARTE",2000000]
[1235338170,"MAURICIO JOSE","LUJAN HERNANDEZ","MAURICIO JOSE LUJAN HERNANDEZ",600000]
[1005675446,"LUIS EDUARDO","OTERO PADILLA","LUIS EDUARDO OTERO PADILLA",800000]
[1122814873,"ALEXANDER RAFAEL","PEREZ BRITO","ALEXANDER RAFAEL PEREZ BRITO",2000000]
[1028044224,"LEANDRO ANTONIO","GALIANO LOPEZ","LEANDRO ANTONIO GALIANO LOPEZ",2000000]
[1035229536,"ELKIN DARIO","GARCIA CARDONA","ELKIN DARIO GARCIA CARDONA",300000]
[76029651,"FAUSTO HERNAN","POMEO GARZON","FAUSTO HERNAN POMEO GARZON",2000000]
[1040512166,"LUIS ENRIQUE","MUÑOZ MARQUEZ","LUIS ENRIQUE MUÑOZ MARQUEZ",600000]
[1005929086,"JOSE LIZANDRO","CARDENAS LOZANO","JOSE LIZANDRO CARDENAS LOZANO",600000]
[1116245330,"LUIS ARTURO","PRASCA CARDONA","LUIS ARTURO PRASCA CARDONA",600000]
[1143975039,"JHONN EDWARD","MARTINEZ MARULANDA","JHONN EDWARD MARTINEZ MARULANDA",300000]
[1061814657,"JOHAN SEBASTIAN","GALLEGO DELGADO","JOHAN SEBASTIAN GALLEGO DELGADO",300000]
[1073811639,"YIRSON FABIAN","CARVAJAL GALVAN","YIRSON FABIAN CARVAJAL GALVAN",300000]
[1110576670,"CRISTIAN ANDRES","RESTREPO VERA","CRISTIAN ANDRES RESTREPO VERA",700000]
[1110517748,"JEISSON ENRIQUE","CASTAÑO SANCHEZ","JEISSON ENRIQUE CASTAÑO SANCHEZ",800000]
[91112192,"LEONIDAS YAIR","CASTRO AMAYA","LEONIDAS YAIR CASTRO AMAYA",800000]
[93135896,"ALEXANDER","LUGO CARVAJAL","ALEXANDER LUGO CARVAJAL",500000]
[1060989778,"OSBAR FERNEY","GIRONZA PANIQUITA","OSBAR FERNEY GIRONZA PANIQUITA",1700000]
[1102376546,"LUIS GERARDO","AGUILAR JAIMES","LUIS GERARDO AGUILAR JAIMES",2000000]
[1028181447,"ALEXIS","VERGARA",{"$f":"_xlfn.CONCAT(B1475,\" \",C1475)","v":"ALEXIS VERGARA"},1800000]
[18613715,"JONH JAIRO","SILVA MARIN","JONH JAIRO SILVA MARIN",2000000]
[1016072457,"ESLENDY ALEXANDRA","SANDOVAL MEZA","ESLENDY ALEXANDRA SANDOVAL MEZA",1400000]
[1112492955,"JOHAN STEVEN","ITER JIMENEZ","JOHAN STEVEN ITER JIMENEZ",2000000]
[1144168117,"JAIME ALEJANDRO","FLOREZ CORTES","JAIME ALEJANDRO FLOREZ CORTES",300000]
[1022934245,"OSCAR FERNANDO","SABOGAL ESPINOSA","OSCAR FERNANDO SABOGAL ESPINOSA",400000]
[94488855,"JAIME","VALENCIA VARGAS","JAIME VALENCIA VARGAS",1000000]
[1004095204,"JASSIR JUNIOR","ORTEGA JIMENEZ","JASSIR JUNIOR ORTEGA JIMENEZ",1800000]
[1040518933,"AMILGAR","ARANGO MARTINEZ","AMILGAR ARANGO MARTINEZ",300000]
[1042449808,"NESTOR ELIAS","GONZALEZ PADILLA","NESTOR ELIAS GONZALEZ PADILLA",1600000]
[1077463291,"ZAHYRIS DEL CARMEN","GARCIA MENA","ZAHYRIS DEL CARMEN GARCIA MENA",1400000]
[1006150188,"LUIS ANGEL","AROCA GUTIERREZ","LUIS ANGEL AROCA GUTIERREZ",300000]
[1031181500,"SEBASTIAN","LONDOÑO VARGAS","SEBASTIAN LONDOÑO VARGAS",2000000]
[1002953788,"SEBASTIAN ALEJANDRO","RIVERA SALAZAR","SEBASTIAN ALEJANDRO RIVERA SALAZAR",300000]
[1084220663,"WILLIAN FABIAN","NARVAEZ OVIEDO","WILLIAN FABIAN NARVAEZ OVIEDO",300000]
[78109739,"JHON JAIRO","GARCIA ATENCIA","JHON JAIRO GARCIA ATENCIA",2000000]
[1040498989,"EDWIN ENRIQUE","PADILLA HERRERA","EDWIN ENRIQUE PADILLA HERRERA",1300000]
[1007171625,"ALEXIS ISAAC","GUERRERO ESCORCIA","ALEXIS ISAAC GUERRERO ESCORCIA",800000]
[1030604979,"WILMAR ANDRES","DIAZ GOMEZ","WILMAR ANDRES DIAZ GOMEZ",300000]
[1059064459,"FRANKLIN","ZAMBRANO YONDA","FRANKLIN ZAMBRANO YONDA",2000000]
[94463275,"ALFONSO ENRIQUE","GARAVITO QUINTERO","ALFONSO ENRIQUE GARAVITO QUINTERO",2000000]
[1144125136,"ROBINSON","CAICEDO PINEDA","ROBINSON CAICEDO PINEDA",300000]
[1069729868,"DUVAN ANDRES","MARTINEZ GALINDO","DUVAN ANDRES MARTINEZ GALINDO",1000000]
[1040495416,"ANDRES ALEXANDER","RIVERA CANO","ANDRES ALEXANDER RIVERA CANO",1200000]
[1023023001,"DAYANNA PAOLA","LOPEZ SARMIENTO","DAYANNA PAOLA LOPEZ SARMIENTO",1600000]
[6408318,"VICTOR ALFONSO","CASTAÑO ESCOBAR","VICTOR ALFONSO CASTAÑO ESCOBAR",800000]
[94303991,"LUIS CARLOS","MEJIA SALAZAR","LUIS CARLOS MEJIA SALAZAR",800000]
[1005832343,"ERIKA","TROCHEZ ULCUE","ERIKA TROCHEZ ULCUE",900000]
[1087407423,"JOHN JAIRO","BOLAÑOS TOBAR","JOHN JAIRO BOLAÑOS TOBAR",2000000]
[1089543256,"PITER JALER","GODOY OCAMPO","PITER JALER GODOY OCAMPO",300000]
[1016109121,"KIMBERLI MILENA","SERRANO ARIAS","KIMBERLI MILENA SERRANO ARIAS",300000]
[16494266,"HERMES","CAMACHO RIASCOS","HERMES CAMACHO RIASCOS",300000]
[6103492,"JORGE IVAN","MONCALEANO OROZCO","JORGE IVAN MONCALEANO OROZCO",300000]
[1144154249,"JANER STEVEN","TELPIZ MENESES","JANER STEVEN TELPIZ MENESES",300000]
[1052074641,"DAYAN JOSE","MERCADO OLIVERA","DAYAN JOSE MERCADO OLIVERA",2000000]
[76090197,"ALDEMAR","BERMUDEZ LARRAHONDO","ALDEMAR BERMUDEZ LARRAHONDO",2000000]
[66852494,"ANA MARGARITA","ROSERO MANTILLA","ANA MARGARITA ROSERO MANTILLA",2000000]
[1112958181,"JAIDER","ALVAREZ REYES","JAIDER ALVAREZ REYES",2000000]
[1063813191,"YIMER ANDRES","IJAJI JIMENEZ","YIMER ANDRES IJAJI JIMENEZ",2000000]
[1006326523,"JOHN STEVEN","GARCIA ZUÑIGA","JOHN STEVEN GARCIA ZUÑIGA",1600000]
[1101449637,"JHON FERNANDO","BERRIO TERAN","JHON FERNANDO BERRIO TERAN",2000000]
[1073158868,"OMAR FERNEY","RODRIGUEZ RIAÑO","OMAR FERNEY RODRIGUEZ RIAÑO",800000]
[1129521051,"DENER ALEXANDER","VERGEL ORELLANO","DENER ALEXANDER VERGEL ORELLANO",2000000]
[1033709660,"DAVID ALEJANDRO","CORTES AVILA","DAVID ALEJANDRO CORTES AVILA",800000]
[10050502,"JAVIER ANTONIO","LASSO JIMENEZ","JAVIER ANTONIO LASSO JIMENEZ",800000]
[1061708208,"JUAN CARLOS","BENAVIDES LEBAZA","JUAN CARLOS BENAVIDES LEBAZA",300000]
[1004615644,"ELKIN STIWAR","BANGUERA ARANA","ELKIN STIWAR BANGUERA ARANA",300000]
[1010151653,"JOHANNE DAVID","CAICEDO RIASCOS","JOHANNE DAVID CAICEDO RIASCOS",300000]
[11221134,"GONZALO","LOPEZ BUENAVENTURA","GONZALO LOPEZ BUENAVENTURA",2000000]
[85152615,"IVAN DAVID","CABALLERO PERTUZ","IVAN DAVID CABALLERO PERTUZ",300000]
[1082748698,"JAMES ALEXANDER","LOPEZ VILLOTA","JAMES ALEXANDER LOPEZ VILLOTA",1700000]
[85475059,"YURY JOSE","OSORIO TORNE","YURY JOSE OSORIO TORNE",300000]
[1086924721,"CARLOS ANDRES","ERAZO MANZO","CARLOS ANDRES ERAZO MANZO",400000]
[1105304825,"OMAR ALEXANDER","PARRA QUIÑONES","OMAR ALEXANDER PARRA QUIÑONES",300000]
[15534116,"MARIO JAVIER","GIL CASTAÑEDA","MARIO JAVIER GIL CASTAÑEDA",2000000]
[1063813439,"ELIAS MAURICIO","BONILLA CORREA","ELIAS MAURICIO BONILLA CORREA",2000000]
[3651304,"CESAR AUGUSTO","VALENCIA URIBE","CESAR AUGUSTO VALENCIA URIBE",2000000]
[1108929426,"FERNEY","HERNANDEZ","FERNEY HERNANDEZ",300000]
[1119216647,"JOSE EUTIMIO","MUÑOZ ARBOLEDA","JOSE EUTIMIO MUÑOZ ARBOLEDA",2000000]
[1061598183,"EDWIN ALFREDO","VELASCO CHAVEZ","EDWIN ALFREDO VELASCO CHAVEZ",2000000]
[16847207,"LEONARDO FABIO","MUÑOZ VALDES","LEONARDO FABIO MUÑOZ VALDES",2000000]
[10498165,"ANDRES FELIPE","BALANTA","ANDRES FELIPE BALANTA",600000]
[15356495,"EDGAR JOHANNY","CASTAÑO RODRIGUEZ","EDGAR JOHANNY CASTAÑO RODRIGUEZ",300000]
[1000467188,"JULIAN","RAMOS GUARIN","JULIAN RAMOS GUARIN",900000]
[1063809090,"HOOVER ALFONSO","BOLAÑOS PEREZ",{"$f":"_xlfn.CONCAT(B1539,\" \",C1539)","v":"HOOVER ALFONSO BOLAÑOS PEREZ"},2000000]
[79734426,"ALEXANDER","MORENO BOHORQUEZ","ALEXANDER MORENO BOHORQUEZ",300000]
[40329072,"BELLANID","RODRIGUEZ BUITRAGO","BELLANID RODRIGUEZ BUITRAGO",300000]
[1028182811,"YONNY","CASTILLO ANGULO","YONNY CASTILLO ANGULO",2000000]
[8648788,"HELMUT SAUL","LLINAS PADILLA","HELMUT SAUL LLINAS PADILLA",2000000]
[1069099462,"HOLBER EDUARDO","PUERTA DIAZ","HOLBER EDUARDO PUERTA DIAZ",2000000]
[1040506061,"YEINER YESITH","RUIZ BETIN","YEINER YESITH RUIZ BETIN",2000000]
[1007905599,"CARLOS DANIEL","VILORIA BASILIO","CARLOS DANIEL VILORIA BASILIO",1700000]
[1070752994,"CRISTIAN ARLEY","RODRIGUEZ CHAVES","CRISTIAN ARLEY RODRIGUEZ CHAVES",800000]
[1005311851,"ODILBER","FLOREZ CUPITRE","ODILBER FLOREZ CUPITRE",2000000]
[1143934479,"BRIAN STEVEN","CUERO","BRIAN STEVEN CUERO",300000]
[1110178727,"JOSE EDUARDO","JARA MONTIEL","JOSE EDUARDO JARA MONTIEL",500000]
[1151960342,"WILLIAM CAMILO","URREA HIDALGO","WILLIAM CAMILO URREA HIDALGO",1400000]
[1089515206,"STIVEN","BARREIRO CUERO","STIVEN BARREIRO CUERO",1500000]
[1007425572,"RUBEN ANTONIO","HERNANDEZ LOPEZ","RUBEN ANTONIO HERNANDEZ LOPEZ",2000000]
[8569646,"PEDRO ANTONIO","CHAVEZ DE PAULIZ","PEDRO ANTONIO CHAVEZ DE PAULIZ",1600000]
[1137220685,"JUILIO CESAR","ROQUEME FLORES","JUILIO CESAR ROQUEME FLORES",400000]
[1004769392,"FABIAN ANDRES","ANGULO CUNDUMI","FABIAN ANDRES ANGULO CUNDUMI",800000]
[94365061,"GUSTAVO DE JESUS","ORTIZ ORTIZ","GUSTAVO DE JESUS ORTIZ ORTIZ",300000]
[4652901,"GERSAIN","ACEVEDO LOBOA","GERSAIN ACEVEDO LOBOA",1200000]
[79720637,"OMAR ALEXANDER","DIAZ OSPINA","OMAR ALEXANDER DIAZ OSPINA",300000]
[16740505,"FERNANDO","POVEDA NINCO","FERNANDO POVEDA NINCO",2000000]
[94423380,"ORLANDO","ESCOBAR PALACIOS","ORLANDO ESCOBAR PALACIOS",500000]
[16272505,"HELMAN HUMBERTO","ESCOBAR ZUNIGA","HELMAN HUMBERTO ESCOBAR ZUNIGA",2000000]
[1003500186,"JESUS ALBERTO","VILLALBA TAMARA","JESUS ALBERTO VILLALBA TAMARA",300000]
[6342438,"MANUEL BOLIVAR","MONTILLA YANDI","MANUEL BOLIVAR MONTILLA YANDI",300000]
[6406602,"WILLIAM YASMANY","NARVAEZ TAPIA","WILLIAM YASMANY NARVAEZ TAPIA",2000000]
[1112462689,"DIEGO ARMANDO","BASTIDAS VEGA","DIEGO ARMANDO BASTIDAS VEGA",300000]
[16671181,"EDINSON","AGUILAR RAMOS","EDINSON AGUILAR RAMOS",2000000]
[7921896,"JUAN JOSE","YANES GAMBOA","JUAN JOSE YANES GAMBOA",600000]
[1130683572,"HENRY","HERRERA COLLAZOS","HENRY HERRERA COLLAZOS",300000]
[93456921,"YIMER","GARCIA VARON","YIMER GARCIA VARON",2000000]
[71709422,"LUIS ALBERTO","OQUENDO CANO","LUIS ALBERTO OQUENDO CANO",2000000]
[16915644,"RUBEN ANTONIO","PULIDO VARGAS","RUBEN ANTONIO PULIDO VARGAS",300000]
[1026572584,"DAGOBERTO","VARGAS AVILA","DAGOBERTO VARGAS AVILA",2000000]
[29506663,"CLAUDIA PATRICIA","SOLIS MANZANO","CLAUDIA PATRICIA SOLIS MANZANO",1000000]
[1081413823,"CARLOS ANDRES","CRUZ MOLANO","CARLOS ANDRES CRUZ MOLANO",1900000]
[1058973106,"AUGUSTO","GOMEZ PIAMBA","AUGUSTO GOMEZ PIAMBA",2000000]
[1113681168,"EDWIN DUVAN","QUITUMBO","EDWIN DUVAN QUITUMBO",300000]
[94302997,"HECTOR FABIO","TAFURT QUIROGA","HECTOR FABIO TAFURT QUIROGA",300000]
[94407371,"JHON EIDER","LISCANO MARULANDA","JHON EIDER LISCANO MARULANDA",2000000]
[1110176357,"OSCAR DANIEL","AROCA TIQUE","OSCAR DANIEL AROCA TIQUE",300000]
[94367682,"HECTOR ENRIQUE","LASPRILLA MUÑOZ","HECTOR ENRIQUE LASPRILLA MUÑOZ",900000]
[1110448497,"GUILLERMO ALFONSO","VILLALOBOS GONZALEZ","GUILLERMO ALFONSO VILLALOBOS GONZALEZ",2000000]
[1007157182,"DOUGLAS ALEXIS","LICONA VERA","DOUGLAS ALEXIS LICONA VERA",2000000]
[1004188322,"HELMER","SOSA DELGADO","HELMER SOSA DELGADO",2000000]
[1004275417,"JOSE DAVID","POLO GUERRERO","JOSE DAVID POLO GUERRERO",800000]
[1070005180,"CARLOS ALBERTO","BUITRAGO GUERRERO","CARLOS ALBERTO BUITRAGO GUERRERO",800000]
[8364592,"DAVID GABRIEL","GARCIA MARQUEZ","DAVID GABRIEL GARCIA MARQUEZ",600000]
[1002523173,"LINA MANUELA","BARAJAS TORRES","LINA MANUELA BARAJAS TORRES",800000]
[1077425039,"HARWIN","PALACIOS RODRIGUEZ","HARWIN PALACIOS RODRIGUEZ",2000000]
[76329643,"DIEGO ANDRES","ENRIQUEZ ARGOTE","DIEGO ANDRES ENRIQUEZ ARGOTE",300000]
[1044602019,"JEAN CARLOS","SOBRINO SANCHEZ","JEAN CARLOS SOBRINO SANCHEZ",1400000]
[1006324070,"JOHN HASTER","TORRES PERLAZA","JOHN HASTER TORRES PERLAZA",600000]
[72293074,"AGUSTIN FABIAN","PERTUZ JULIO","AGUSTIN FABIAN PERTUZ JULIO",800000]
[1107517771,"JONATHAN","VALENCIA HURTADO","JONATHAN VALENCIA HURTADO",2000000]
[9957416,"LUIS ALBERTO","MONTOYA OSPINA","LUIS ALBERTO MONTOYA OSPINA",2000000]
[1006286690,"YORKS ALEXANDER","CANDELO MORENO","YORKS ALEXANDER CANDELO MORENO",300000]
[16948302,"ELVIS","PALACIOS GAMBOA","ELVIS PALACIOS GAMBOA",300000]
[80320691,"HERMES","CAMPOS","HERMES CAMPOS",2000000]
[16758672,"YAIRTON","ORTIZ CORREA","YAIRTON ORTIZ CORREA",300000]
[4666277,"AMILCAR","ALEGRIA CORDOBA","AMILCAR ALEGRIA CORDOBA",1200000]
[1140840084,"YULI EMMA","SANTOS MENDOZA","YULI EMMA SANTOS MENDOZA",300000]
[94315425,"WILSON","GAVIRIA GAVIRIA","WILSON GAVIRIA GAVIRIA",2000000]
[16672971,"MARINO ANTONIO","HOYOS",{"$f":"_xlfn.CONCAT(B1603,\" \",C1603)","v":"MARINO ANTONIO HOYOS"},2000000]
[11799480,"CARLOS HERNAN","MORENO PEREA","CARLOS HERNAN MORENO PEREA",300000]
[71241253,"JAMER","CUESTA ASPRILLA","JAMER CUESTA ASPRILLA",300000]
[12258695,"EDINSON","GALLO GALLO","EDINSON GALLO GALLO",2000000]
[94449295,"JAIR FERNANDO","SARASTY CERON","JAIR FERNANDO SARASTY CERON",600000]
[14236616,"GERMAN ULISES","MOLINA","GERMAN ULISES MOLINA",600000]
[87066847,"LUIS ALFREDO","JOJOA JOJOA","LUIS ALFREDO JOJOA JOJOA",300000]
[80797027,"OSCAR","GUTIERREZ MORENO","OSCAR GUTIERREZ MORENO",2000000]
[16746707,"JOSE ALEXANDER","PAZ MARTINEZ","JOSE ALEXANDER PAZ MARTINEZ",300000]
[6540659,"JAIME ARTURO","LOZANO","JAIME ARTURO LOZANO",300000]
[6024482,"MARCO AURELIO","SALAZAR GARCIA","MARCO AURELIO SALAZAR GARCIA",1400000]
[6407760,"ANDRES MAURICIO","BORRERO NUZCUE","ANDRES MAURICIO BORRERO NUZCUE",600000]
[77034168,"EVEIRO","MENDOZA","EVEIRO MENDOZA",400000]
[94450417,"PABLO ANDRES","RAMIREZ SANCHEZ","PABLO ANDRES RAMIREZ SANCHEZ",300000]
[16849404,"JHON JAIDER","VALENCIA MENESES","JHON JAIDER VALENCIA MENESES",1000000]
[70782209,"RUBEN DARIO","MORALES MAZO","RUBEN DARIO MORALES MAZO",2000000]
[71789276,"LUIS ALBERTO","RIVILLAS MEJIA","LUIS ALBERTO RIVILLAS MEJIA",2000000]
[80722817,"JOSE LUIS","OCHOA CONDE","JOSE LUIS OCHOA CONDE",2000000]
[98322896,"EMIGDIO","NOGUERA NOGUERA","EMIGDIO NOGUERA NOGUERA",2000000]
[70781703,"ALBEIRO DE JESUS","USMA USMA","ALBEIRO DE JESUS USMA USMA",2000000]
[94457142,"ALEXANDER","VOZMEDIANO RENGIFO","ALEXANDER VOZMEDIANO RENGIFO",2000000]
[79447555,"SEBASTIAN","CARDOZO CONDE","SEBASTIAN CARDOZO CONDE",2000000]
[96333857,"JHON ALBERTO","CALDERON ROJAS","JHON ALBERTO CALDERON ROJAS",2000000]
[94503866,"ALEXANDER","RODAS COLLAZOS","ALEXANDER RODAS COLLAZOS",300000]
[6220863,"JUAN FRANCISCO","OSPINA ALVAREZ","JUAN FRANCISCO OSPINA ALVAREZ",2000000]
[10698835,"RODRIGO","CAICEDO CAICEDO","RODRIGO CAICEDO CAICEDO",400000]
[16714754,"DIEGO","MAFLA FAJARDO","DIEGO MAFLA FAJARDO",2000000]
[16717074,"GENTIL","OLAVE GUTIERREZ","GENTIL OLAVE GUTIERREZ",2000000]
[1097400029,"CRISTIAN CAMILO","OBANDO NOREÑA","CRISTIAN CAMILO OBANDO NOREÑA",400000]
[76292262,"MIYER ANTONIO","MANQUILLO FERNANDEZ","MIYER ANTONIO MANQUILLO FERNANDEZ",2000000]
[94044407,"LUIS CARLOS","FIGUEROA SANCHEZ","LUIS CARLOS FIGUEROA SANCHEZ",300000]
[39725772,"ORFILIA","VALIENTE ARIAS","ORFILIA VALIENTE ARIAS",2000000]
[94466324,"JOSE LIDER","MINA PIEDRAHITA","JOSE LIDER MINA PIEDRAHITA",500000]
[1143931068,"ROBERT ALEXANDER","CHACUA MOJOMBOY","ROBERT ALEXANDER CHACUA MOJOMBOY",700000]
[4661022,"FABIO NELSON","VIDAL HERNANDEZ","FABIO NELSON VIDAL HERNANDEZ",700000]
[16715059,"HECTOR DANILO","OROZCO HURTADO","HECTOR DANILO OROZCO HURTADO",1700000]
[16715622,"YESID","LOPEZ ESCOBAR","YESID LOPEZ ESCOBAR",400000]
[16762290,"JOSE RODRIGO","CASTRO ASTUDILLO","JOSE RODRIGO CASTRO ASTUDILLO",2000000]
[15443528,"JARBYN ANDRES","TABARES ARANGO","JARBYN ANDRES TABARES ARANGO",300000]
[94300525,"SEGUNDO JAIRO","CARLOSAMA ROSERO","SEGUNDO JAIRO CARLOSAMA ROSERO",300000]
[1080181896,"LUIS ALBERTO","JARA URRIAGO","LUIS ALBERTO JARA URRIAGO",2000000]
[1003500575,"HEYNER DAVID","ARRIETA GAVIRIA","HEYNER DAVID ARRIETA GAVIRIA",800000]
[6393706,"JONATHAN","MOLINA RENDON","JONATHAN MOLINA RENDON",300000]
[1116808214,"BRANDON STIBEN","MENDOZA ROJAS","BRANDON STIBEN MENDOZA ROJAS",800000]
[1083462366,"ALEXNADER ANTONIO","RUIZ GARCIA","ALEXNADER ANTONIO RUIZ GARCIA",300000]
[1151947909,"UBERNEY","REYES BUENO","UBERNEY REYES BUENO",1100000]
[1085548330,"JOSE RUBEN","RUA BATIOJA","JOSE RUBEN RUA BATIOJA",2000000]
[1033368328,"FREDY ALBERTO","MESTRA MISAT","FREDY ALBERTO MESTRA MISAT",2000000]
[9698372,"OSCAR ANDRES","HEREDIA MARIN","OSCAR ANDRES HEREDIA MARIN",2000000]
[1001682917,"MAYCOL ANDRES","ALVAREZ ECHAVARRIA","MAYCOL ANDRES ALVAREZ ECHAVARRIA",800000]
[1040515562,"JAVIER ANDRES","ZAPATA OCHOA","JAVIER ANDRES ZAPATA OCHOA",600000]
[1073695208,"MICHELL OSWALDO","AMARILLO DUEÑAS","MICHELL OSWALDO AMARILLO DUEÑAS",600000]
[79005153,"CARLOS VICENTE","SALGUERO BUSTOS","CARLOS VICENTE SALGUERO BUSTOS",2000000]
[1221979208,"EDWIN JOSE","ZAPATA CASTILLO","EDWIN JOSE ZAPATA CASTILLO",600000]
[14607241,"EDUYN","MONTERO ORTIZ","EDUYN MONTERO ORTIZ",300000]
[1113671577,"MICHAEL ADRIAN","SIERRA RIVERA","MICHAEL ADRIAN SIERRA RIVERA",2000000]
[1107060156,"IVAN DAVID","VALENCIA HINESTROZA","IVAN DAVID VALENCIA HINESTROZA",800000]
[1193452406,"KARINA","VARGAS TOVAR","KARINA VARGAS TOVAR",300000]
[1000117298,"JULIAN DARIO","CARDENAS GOMEZ","JULIAN DARIO CARDENAS GOMEZ",300000]
[1017240642,"CRISTIAN ARLEY","CORTES GIRALDO","CRISTIAN ARLEY CORTES GIRALDO",800000]
[18009128,"RICHARD ALBERTO","HOOKER BROWN","RICHARD ALBERTO HOOKER BROWN",300000]
[1234193784,"LUIS FERNANDO","FONSECA VIERA","LUIS FERNANDO FONSECA VIERA",2000000]
[16865738,"JHON JAWER","YAGUAPAZ COLORADO","JHON JAWER YAGUAPAZ COLORADO",500000]
[1000697646,"MIGUEL ANGEL","CAMERO VARGAS","MIGUEL ANGEL CAMERO VARGAS",2000000]
[1059905107,"HECTOR MAURICIO","ANDRADE ANDRADE",{"$f":"_xlfn.CONCAT(B1667,\" \",C1667)","v":"HECTOR MAURICIO ANDRADE ANDRADE"},2000000]
[1004501836,"DANIEL DAVID","DE ORTA BLANCO","DANIEL DAVID DE ORTA BLANCO",600000]
[25290875,"ANGELA BIBIANA","OSSA CARRANZA","ANGELA BIBIANA OSSA CARRANZA",300000]
[15727174,"JORGE LUIS","MERCADO ALVAREZ","JORGE LUIS MERCADO ALVAREZ",1600000]
[94449202,"JORGE ANDRES","OLAYA ROSERO","JORGE ANDRES OLAYA ROSERO",1100000]
[1007253091,"JHON JAIRO","RESTREPO POSADA","JHON JAIRO RESTREPO POSADA",700000]
[1017171003,"YEISON ESTEBAN","VARGAS MORA","YEISON ESTEBAN VARGAS MORA",2000000]
[1060417239,"GILBERT MAURICIO","GONZALEZ BERMUDEZ","GILBERT MAURICIO GONZALEZ BERMUDEZ",800000]
[1116914846,"JOSUE","POLANIA MUÑOZ","JOSUE POLANIA MUÑOZ",500000]
[1040512493,"HELVER ARNALDO","MIRANDA PEREZ","HELVER ARNALDO MIRANDA PEREZ",2000000]
[12918393,"JOSE LITO","ESCOBAR PEREIRA","JOSE LITO ESCOBAR PEREIRA",500000]
[1054995165,"YEISI LEANDRA","GARCIA GARCIA","YEISI LEANDRA GARCIA GARCIA",600000]
[1001683090,"JADER ANTONIO","BUELVAS MOLINAS","JADER ANTONIO BUELVAS MOLINAS",300000]
[10317051,"JOSE EVELIO","PEREZ QUISOBONI","JOSE EVELIO PEREZ QUISOBONI",2000000]
[18468741,"FERNANDO","MORA OSPINA","FERNANDO MORA OSPINA",2000000]
[10486551,"ARMANDO JOSE","PINO RODRIGUEZ","ARMANDO JOSE PINO RODRIGUEZ",2000000]
[94040751,"JORGE GEOVANNY","ANGULO ORTIZ","JORGE GEOVANNY ANGULO ORTIZ",300000]
[6098661,"EMIGIDIO","AVENDAÑO JIMENEZ","EMIGIDIO AVENDAÑO JIMENEZ",2000000]
[13054989,"JAIDEN ANIBAL","LANDAZURI ORTIZ","JAIDEN ANIBAL LANDAZURI ORTIZ",2000000]
[1059063528,"FABIAN","BERMUDEZ ORDOÑEZ","FABIAN BERMUDEZ ORDOÑEZ",2000000]
[1143960078,"JHON SEBASTIAN","PANCHANA TRUJILLO","JHON SEBASTIAN PANCHANA TRUJILLO",300000]
[14795230,"WALTER FABIAN","GOMEZ SEPULVEDA","WALTER FABIAN GOMEZ SEPULVEDA",800000]
[38602316,"ANGELLY","OSORIO TAPASCO","ANGELLY OSORIO TAPASCO",300000]
[1023038154,"ANDRES FELIPE","CORREDOR BELLO","ANDRES FELIPE CORREDOR BELLO",300000]
[6253973,"JORGE ARMANDO","DAZA MORALES","JORGE ARMANDO DAZA MORALES",2000000]
[94430326,"JAMES JAIME","GUZMAN URRUTIA","JAMES JAIME GUZMAN URRUTIA",300000]
[79339221,"CARLOS ABEL","VARGAS GALLO","CARLOS ABEL VARGAS GALLO",300000]
[19602639,"JHAN LUIS","DURAN BOLAÑO","JHAN LUIS DURAN BOLAÑO",300000]
[1130618082,"JHON HAROLD","VARGAS OBANDO","JHON HAROLD VARGAS OBANDO",2000000]
[79182498,"JORGE ELIECER","VILLARRAGA MORENO","JORGE ELIECER VILLARRAGA MORENO",300000]
[82362211,"DARWIN","PEREA PEREA","DARWIN PEREA PEREA",300000]
[16835940,"LEONARDO FABIO","VELASQUEZ CASTRO","LEONARDO FABIO VELASQUEZ CASTRO",300000]
[11346439,"JOSE ALIRIO","MARTINEZ BELTRAN","JOSE ALIRIO MARTINEZ BELTRAN",300000]
[70730912,"SERGIO OSWALDO","SOTO MUÑOZ","SERGIO OSWALDO SOTO MUÑOZ",1000000]
[79385820,"GERMAN LEONEL","BARRERA BERNAL","GERMAN LEONEL BARRERA BERNAL",300000]
[16841343,"FREDY GIOVANNI","CEBALLOS BENAVIDES","FREDY GIOVANNI CEBALLOS BENAVIDES",2000000]
[86008377,"SANDRO JAVIER","LONDOÑO TANGARIFE","SANDRO JAVIER LONDOÑO TANGARIFE",300000]
[16672690,"DIEGO MARIA","CORTEZ OLIVEROS","DIEGO MARIA CORTEZ OLIVEROS",1400000]
[2995048,"CARLOS JOSE","RODRIGUEZ PENA","CARLOS JOSE RODRIGUEZ PENA",2000000]
[4662234,"JOSE EDGAR","BANGUERO","JOSE EDGAR BANGUERO",2000000]
[4664248,"BLADIMIR","RODRIGUEZ SOLARTE","BLADIMIR RODRIGUEZ SOLARTE",400000]
[1039678478,"JAIME DE JESUS","DIAZ ARIAS","JAIME DE JESUS DIAZ ARIAS",400000]
[14470581,"ANGEL","TORRES MORENO","ANGEL TORRES MORENO",2000000]
[66994913,"ADRIANA","MURCIA GOMEZ","ADRIANA MURCIA GOMEZ",2000000]
[1130644229,"JOSE GOBAR","CARABALI RODRIGUEZ","JOSE GOBAR CARABALI RODRIGUEZ",300000]
[10752671,"LEONARDO","NUÑEZ SARRIA","LEONARDO NUÑEZ SARRIA",300000]
[6225824,"FERNANDO ANTONIO","MIRANDA VALENCIA","FERNANDO ANTONIO MIRANDA VALENCIA",2000000]
[1005853890,"WILSON","SANCHEZ","WILSON SANCHEZ",2000000]
[1003072319,"LUIS FERNANDO","DE LA BARRERA GARCIA","LUIS FERNANDO DE LA BARRERA GARCIA",300000]
[1193124868,"NILO RICARDO","LANDAZURI PRECIADO","NILO RICARDO LANDAZURI PRECIADO",300000]
[1003288612,"DUVAN JOSE","VELEZ CARDOZO","DUVAN JOSE VELEZ CARDOZO",300000]
[1006956507,"ANDRES FERNEY","BRIÑEZ SUAREZ","ANDRES FERNEY BRIÑEZ SUAREZ",1000000]
[1193068417,"JOSE FABIO","BANGUERA SINISTERRA","JOSE FABIO BANGUERA SINISTERRA",600000]
[1040513129,"YESMITH ADRIANA","MERCADO BOHORQUEZ","YESMITH ADRIANA MERCADO BOHORQUEZ",2000000]
[1144158962,"ANDRES FELIPE","PECHENE JOJOA","ANDRES FELIPE PECHENE JOJOA",800000]
[15170811,"JUAN CARLOS","ROMERO NAVARRO","JUAN CARLOS ROMERO NAVARRO",600000]
[1028005873,"YEIRON ALEJANDRO","CABARCAS PRESIGA","YEIRON ALEJANDRO CABARCAS PRESIGA",300000]
[1113512026,"JEIKON DUAN","ORTIZ MONTENEGRO","JEIKON DUAN ORTIZ MONTENEGRO",300000]
[80205217,"ANDRES ALEIDER","CASTRO GONZALEZ","ANDRES ALEIDER CASTRO GONZALEZ",300000]
[1047505789,"ALEXANDER DE JESUS","NIETO GALVAN","ALEXANDER DE JESUS NIETO GALVAN",300000]
[1044214019,"GIOVANNI ENRIQUE","SIERRA MONTES","GIOVANNI ENRIQUE SIERRA MONTES",300000]
[1082692059,"JHON ALEXANDER","CABEZAS ANGULO","JHON ALEXANDER CABEZAS ANGULO",300000]
[53160449,"PAOLA ANDREA","FIGUEROA VASQUEZ","PAOLA ANDREA FIGUEROA VASQUEZ",2000000]
[1107519736,"LUIS MIGUEL","SINISTERRA SOLIS","LUIS MIGUEL SINISTERRA SOLIS",800000]
[1052993384,"EMIL FRANCISCO","MORENO POLANCO",{"$f":"_xlfn.CONCAT(B1731,\" \",C1731)","v":"EMIL FRANCISCO MORENO POLANCO"},2000000]
[94323427,"PAUBLO CESAR","GONZALEZ SANTANA","PAUBLO CESAR GONZALEZ SANTANA",2000000]
[1128444767,"JEFFERSON DUVAN","URIBE MATALLANA","JEFFERSON DUVAN URIBE MATALLANA",2000000]
[1077425207,"YEFERSON","MORENO MOSQUERA","YEFERSON MORENO MOSQUERA",2000000]
[1054565403,"CARLOS MARIO","LOMBANA MARTINEZ","CARLOS MARIO LOMBANA MARTINEZ",2000000]
[1012328660,"JESUS ANTONIO","MURILLO HERNANDEZ","JESUS ANTONIO MURILLO HERNANDEZ",1700000]
[1007172982,"YOSIMAR","RADA MORENO","YOSIMAR RADA MORENO",300000]
[1103217976,"ELVIS JOSE","FUNEZ FUNEZ","ELVIS JOSE FUNEZ FUNEZ",600000]
[93367291,"ANGEL OMAR","TORRES LENIS","ANGEL OMAR TORRES LENIS",2000000]
[14327354,"RICARDO","CHAVES GARCIA","RICARDO CHAVES GARCIA",800000]
[1143138328,"JHON ANDERSON","GOMEZ VILLAR","JHON ANDERSON GOMEZ VILLAR",300000]
[1059785031,"LEIDY MARCELA","MONTOYA RODRIGUEZ","LEIDY MARCELA MONTOYA RODRIGUEZ",300000]
[1151940048,"SERGIO ANDRES","VIVEROS VIAFARA","SERGIO ANDRES VIVEROS VIAFARA",2000000]
[1003360133,"OSNAIDER FARID","LOPEZ BAQUERO","OSNAIDER FARID LOPEZ BAQUERO",2000000]
[1114896088,"JUAN DAVID","BONILLA ESTUPIÑAN","JUAN DAVID BONILLA ESTUPIÑAN",2000000]
[1067886644,"CESAR LUIS","SOLERA SUAREZ","CESAR LUIS SOLERA SUAREZ",1500000]
[1059902008,"LUIS ALFREDO","GOMEZ MEDINA","LUIS ALFREDO GOMEZ MEDINA",300000]
[1116259696,"JAIDIBER","MENDOZA RODRIGUEZ","JAIDIBER MENDOZA RODRIGUEZ",300000]
[80742115,"OSCAR EDILSON","SALINAS GUALTEROS","OSCAR EDILSON SALINAS GUALTEROS",2000000]
[31324877,"YADIRA","RODRIGUEZ CORREA","YADIRA RODRIGUEZ CORREA",2000000]
[1059065407,"GERMAN ANDRES","LENIS VALENCIA","GERMAN ANDRES LENIS VALENCIA",2000000]
[38552045,"VIVIANA ANDREA","CASTAÑO SANCHEZ","VIVIANA ANDREA CASTAÑO SANCHEZ",400000]
[1004636619,"LUIS MIGUEL","HURTADO ESTACIO","LUIS MIGUEL HURTADO ESTACIO",2000000]
[1143981803,"WILVER ANDRES","SANTANA SEGURA","WILVER ANDRES SANTANA SEGURA",800000]
[1148457665,"YEXIRE NARLEY","PEÑARANDA RIOBO","YEXIRE NARLEY PEÑARANDA RIOBO",1700000]
[1000691245,"JORGE ALFREDO","OSORIO SIERRA","JORGE ALFREDO OSORIO SIERRA",2000000]
[16740108,"FRANS FREDDY","TABARES TAMAYO","FRANS FREDDY TABARES TAMAYO",2000000]
[6894273,"JOSE DIONISIO","CORONADO HERNANDEZ","JOSE DIONISIO CORONADO HERNANDEZ",2000000]
[66768031,"CLARA INES","GARCIA LONDONO","CLARA INES GARCIA LONDONO",2000000]
[1130615491,"JOSE ROBINSON","PATIÑO MUELAS","JOSE ROBINSON PATIÑO MUELAS",2000000]
[94330196,"RUSBELT","MUNOZ OSPINA","RUSBELT MUNOZ OSPINA",500000]
[1113672307,"JEISON ANDRES","BERRIO VILLADA","JEISON ANDRES BERRIO VILLADA",2000000]
[1086056451,"FELIPE","SALAS SALAZAR","FELIPE SALAS SALAZAR",1700000]
[1000624096,"ZHARYCK ALEJANDRA","BARAJAS MENDOZA","ZHARYCK ALEJANDRA BARAJAS MENDOZA",1600000]
[1114881018,"ISAIAS","CHAGUENDO","ISAIAS CHAGUENDO",800000]
[1060417625,"JUAN GABRIEL","TOMBE MIRANDA","JUAN GABRIEL TOMBE MIRANDA",2000000]
[1052982385,"ERIKS JOSE","CALLE MONTIEL","ERIKS JOSE CALLE MONTIEL",800000]
[1102794819,"JHON JAIRO","DIAZ NEGRETE","JHON JAIRO DIAZ NEGRETE",800000]
[1040519972,"DANIELA CAROLINA","GONZALEZ CANO","DANIELA CAROLINA GONZALEZ CANO",600000]
[94516888,"FERNANDO JAVIER","HERNANDEZ CANTERO","FERNANDO JAVIER HERNANDEZ CANTERO",400000]
[1059066694,"YIMI ALEJANDRO","COMETA","YIMI ALEJANDRO COMETA",600000]
[71371033,"JHON WALTER","LONDOÑO ARANGO","JHON WALTER LONDOÑO ARANGO",2000000]
[16769738,"GERLEY","SALDAÑA RIZO","GERLEY SALDAÑA RIZO",1000000]
[52288306,"MARYLCE","OVIEDO VELANDIA","MARYLCE OVIEDO VELANDIA",300000]
[1073813853,"LEIBER JOSE","CONTRERAS RAMOS","LEIBER JOSE CONTRERAS RAMOS",2000000]
[93419641,"JOSE ODILIO","YAFI JOYA","JOSE ODILIO YAFI JOYA",600000]
[1061539933,"CARLOS ALVEIRO","VIDAL MUELAS","CARLOS ALVEIRO VIDAL MUELAS",2000000]
[10751386,"CRISTOBAL","SOLARTE TRUJILLO","CRISTOBAL SOLARTE TRUJILLO",600000]
[1059983165,"EIDER","MINA ZAPATA","EIDER MINA ZAPATA",1000000]
[1151963059,"FERNEY ANDRES","QUIROGA ROJAS","FERNEY ANDRES QUIROGA ROJAS",2000000]
[1001162236,"LUIS ENRIQUE","MONTALVO GONZALEZ","LUIS ENRIQUE MONTALVO GONZALEZ",600000]
[1031176976,"FERNEY DARIO","QUIROZ SEPULVEDA","FERNEY DARIO QUIROZ SEPULVEDA",2000000]
[16492900,"NORMAN GUSTAVO","VALENCIA HURTADO","NORMAN GUSTAVO VALENCIA HURTADO",500000]
[1130670829,"MAYERLY AMPARO","SEGURA RAMADA","MAYERLY AMPARO SEGURA RAMADA",2000000]
[1144128103,"PEDRO ANDRES","SOLANILLA RAMIREZ","PEDRO ANDRES SOLANILLA RAMIREZ",1500000]
[1007600841,"MAICOL DUVAN","YARA SEGURA","MAICOL DUVAN YARA SEGURA",2000000]
[14622268,"OSCAR MAURICIO","GARCIA MUESES","OSCAR MAURICIO GARCIA MUESES",400000]
[72098672,"GEOVANNY","JIMENEZ ROMERO","GEOVANNY JIMENEZ ROMERO",300000]
[94539320,"JONNATHAN","MARTINEZ","JONNATHAN MARTINEZ",2000000]
[16861484,"HUGO JAVIER","RAMOS PORTILLA","HUGO JAVIER RAMOS PORTILLA",2000000]
[1031147181,"ALVARO ANTONIO","ALMENDRALES GUTIERREZ","ALVARO ANTONIO ALMENDRALES GUTIERREZ",2000000]
[52295210,"MARIBEL","AVENDAÑO MORENO","MARIBEL AVENDAÑO MORENO",300000]
[1113310059,"ANGEL DAVID","MOLINA VILLA","ANGEL DAVID MOLINA VILLA",300000]
[6361822,"HAROLD","CORRALES TRIANA","HAROLD CORRALES TRIANA",1600000]
[1094348919,"VICTOR MANUEL","BUSTAMENTE ROJAS",{"$f":"_xlfn.CONCAT(B1795,\" \",C1795)","v":"VICTOR MANUEL BUSTAMENTE ROJAS"},2000000]
[1143144286,"UBADEL JUNIOR","PEREZ IBAÑEZ","UBADEL JUNIOR PEREZ IBAÑEZ",1800000]
[1109264234,"DIEGO","SANCHEZ GUZMAN","DIEGO SANCHEZ GUZMAN",1400000]
[1061989784,"ROBER ANDRES","OMEN QUINAYAS","ROBER ANDRES OMEN QUINAYAS",2000000]
[1143945784,"LEIDY JOHANNA","MARTINEZ CUSPOCA","LEIDY JOHANNA MARTINEZ CUSPOCA",300000]
[93471996,"DANIEL AUGUSTO","ACOSTA RODRIGUEZ","DANIEL AUGUSTO ACOSTA RODRIGUEZ",1100000]
[72335199,"LUIS ALBERTO","BARRIOS AMAYA","LUIS ALBERTO BARRIOS AMAYA",400000]
[1077863314,"FRANK ARLETH","LEON ORTIZ","FRANK ARLETH LEON ORTIZ",1300000]
[1060990963,"YEISON ALEXANDER","RUALES MAMIAN","YEISON ALEXANDER RUALES MAMIAN",300000]
[94230282,"ARLENSON","VILLADA","ARLENSON VILLADA",2000000]
[1069729810,"WILLIAM","MARIN RIVERA","WILLIAM MARIN RIVERA",2000000]
[1114737014,"EDINSON RAUL","ACOSTA BECERRA","EDINSON RAUL ACOSTA BECERRA",2000000]
[1019136294,"ANDREA CAROLINA","IBAÑEZ BALLEN","ANDREA CAROLINA IBAÑEZ BALLEN",900000]
[1111786007,"DANIEL","ANCHICO MARQUEZ","DANIEL ANCHICO MARQUEZ",300000]
[1143374478,"ABEL ANDRES","TORRES CASTILLO","ABEL ANDRES TORRES CASTILLO",300000]
[1046700162,"BRAYAN STIVEN","CHAMORRO ROBLES","BRAYAN STIVEN CHAMORRO ROBLES",800000]
[1143949471,"OSCAR ALEXANDER","SOMERA ITE","OSCAR ALEXANDER SOMERA ITE",1100000]
[12830488,"SEGUNDO NICOLAS","CASTILLO MONTAÑO","SEGUNDO NICOLAS CASTILLO MONTAÑO",500000]
[14845042,"EDIER","RODRIGUEZ RODRIGUEZ","EDIER RODRIGUEZ RODRIGUEZ",2000000]
[14676719,"JOSE VALDEMAR","ESPANA SEVILLANO","JOSE VALDEMAR ESPANA SEVILLANO",300000]
[16455109,"ALEXANDER","GALINDO","ALEXANDER GALINDO",1300000]
[1114731435,"JUAN PABLO","JIMENEZ BOTERO","JUAN PABLO JIMENEZ BOTERO",300000]
[1042968935,"ENDER RAFAEL","GUERRERO ORTIZ","ENDER RAFAEL GUERRERO ORTIZ",300000]
[78290845,"PEDRO PABLO","GONZALEZ GONZALEZ","PEDRO PABLO GONZALEZ GONZALEZ",2000000]
[7712960,"LUIS JAVIER","RODRIGUEZ PERDOMO","LUIS JAVIER RODRIGUEZ PERDOMO",300000]
[94255934,"ARLEY","BURGOS DIAZ","ARLEY BURGOS DIAZ",300000]
[16930561,"CARLOS HUMBERTO","NAVARRO HENAO","CARLOS HUMBERTO NAVARRO HENAO",1400000]
[16668424,"JORGE ELIECER","PAREDES TRIANA","JORGE ELIECER PAREDES TRIANA",2000000]
[1061436834,"ALEJANDRO","LOAIZA VIVEROS","ALEJANDRO LOAIZA VIVEROS",2000000]
[1113652769,"RONAL CAMILO","CABRERA AGUDELO","RONAL CAMILO CABRERA AGUDELO",300000]
[1089543860,"REIVER DIMITER","QUINTERO ANGULO","REIVER DIMITER QUINTERO ANGULO",300000]
[16792645,"RICHARD","PAREDES GORDILLO","RICHARD PAREDES GORDILLO",2000000]
[80541058,"FRANCISCO JAVIER","LOZANO LARGO","FRANCISCO JAVIER LOZANO LARGO",2000000]
[16357232,"OTONIEL","GARCIA PRADO","OTONIEL GARCIA PRADO",1100000]
[94469669,"CARLOS EDWARD","LOURIDO TORRES","CARLOS EDWARD LOURIDO TORRES",2000000]
[18601323,"JAVIER ALEXANDER","ESPINAL RODAS","JAVIER ALEXANDER ESPINAL RODAS",1200000]
[52382863,"SONIA YANETH","CAMACHO CASTRO","SONIA YANETH CAMACHO CASTRO",2000000]
[1050945624,"JOSE GABRIEL","CASTILLO TERAN","JOSE GABRIEL CASTILLO TERAN",300000]
[1214718536,"JOHN FREDY","JIMENEZ VELASQUEZ","JOHN FREDY JIMENEZ VELASQUEZ",300000]
[6106250,"CESAR AUGUSTO","HERRERA CEBALLOS","CESAR AUGUSTO HERRERA CEBALLOS",300000]
[1144170132,"JOSE DAVID","MOLANO REYES","JOSE DAVID MOLANO REYES",300000]
[87942291,"JORGE","PALACIOS PRECIADO","JORGE PALACIOS PRECIADO",2000000]
[1144173905,"EDWIN ANDRES","CARDONA SANDOVAL","EDWIN ANDRES CARDONA SANDOVAL",2000000]
[5208678,"RONAR DIEGO","GUERRA PEREZ","RONAR DIEGO GUERRA PEREZ",300000]
[16358712,"DANILO","GOMEZ BECERRA","DANILO GOMEZ BECERRA",1900000]
[1068588031,"YAN CARLOS","HERNANDEZ MIRANDA","YAN CARLOS HERNANDEZ MIRANDA",300000]
[34675375,"MARIA ENELIA","DE LA ENCARNACION MOSQUERA","MARIA ENELIA DE LA ENCARNACION MOSQUERA",1600000]
[76143320,"DIDIER ALFONSO","ASCUE","DIDIER ALFONSO ASCUE",2000000]
[1109301020,"JHON EDIER","TABARES ARIAS","JHON EDIER TABARES ARIAS",2000000]
[1042433236,"LENIN EDUARDO","PABON REYES","LENIN EDUARDO PABON REYES",1400000]
[14697985,"JORGE ARMANDO","FRANCO GARCES","JORGE ARMANDO FRANCO GARCES",600000]
[74389781,"OSCAR","LEAL ABRIL","OSCAR LEAL ABRIL",2000000]
[8501208,"KELVINSON ENRIQUE","GUERRERO ORTIZ","KELVINSON ENRIQUE GUERRERO ORTIZ",300000]
[1087107249,"MARIO JOSE","GARCIA ESTUPIÑAN","MARIO JOSE GARCIA ESTUPIÑAN",300000]
[1144179807,"JOSE JEFERSSON","SANDOVAL CAMPO","JOSE JEFERSSON SANDOVAL CAMPO",300000]
[1004301628,"CRISTIAN ALEXIS","ARBOLEDA POTOSI","CRISTIAN ALEXIS ARBOLEDA POTOSI",2000000]
[50909941,"DARIS LUCIA","PAYARES PLAZA","DARIS LUCIA PAYARES PLAZA",600000]
[1041267106,"JHON BREY","HERNANDEZ VEGA","JHON BREY HERNANDEZ VEGA",600000]
[93435231,"EDINSON DANIEL","YALI PANTANO","EDINSON DANIEL YALI PANTANO",600000]
[16930473,"RONAL","AHUMADA MORENO","RONAL AHUMADA MORENO",1500000]
[1049373727,"EDILSON","GARCIA CORREA","EDILSON GARCIA CORREA",800000]
[1112482086,"RONAL ADRIAN","MUELAS PAJA","RONAL ADRIAN MUELAS PAJA",900000]
[1071331083,"ELKIN JAZMANI","GRANOBLES ESTERILLA","ELKIN JAZMANI GRANOBLES ESTERILLA",800000]
[1045716767,"ESNEIDER ENRIQUE","CARDONA ALVAREZ","ESNEIDER ENRIQUE CARDONA ALVAREZ",700000]
[1111780752,"BRAYAN","VALENCIA ANGULO",{"$f":"_xlfn.CONCAT(B1859,\" \",C1859)","v":"BRAYAN VALENCIA ANGULO"},600000]
[98486568,"LUIS ELKIN","MUÑOZ GIRALDO","LUIS ELKIN MUÑOZ GIRALDO",300000]
[1032481984,"JEFFERSONN SNEIDER","SOLANO PABON","JEFFERSONN SNEIDER SOLANO PABON",2000000]
[80388310,"JOSE ALEXANDER","RODRIGUEZ PRIAS","JOSE ALEXANDER RODRIGUEZ PRIAS",300000]
[1099302827,"HERNANDO","GARZON IBAÑEZ","HERNANDO GARZON IBAÑEZ",800000]
[1075264127,"JHON EIDER","MEDINA PATIÑO","JHON EIDER MEDINA PATIÑO",600000]
[1059066942,"EDINSON","CUERO BERMUDEZ","EDINSON CUERO BERMUDEZ",600000]
[16867063,"HEGNAR DAMIAN","MORA PANTOJA","HEGNAR DAMIAN MORA PANTOJA",600000]
[1023933030,"ANDREA JULIETH","PARRA CASTELBLANCO","ANDREA JULIETH PARRA CASTELBLANCO",300000]
[1007578265,"JANIS MELISSA","JULIO VILLALBA","JANIS MELISSA JULIO VILLALBA",2000000]
[72337462,"ADRIAN JOSE","MARES DE ORO","ADRIAN JOSE MARES DE ORO",600000]
[1193319880,"WAINER JAVIER","LIGARDO MONTERO","WAINER JAVIER LIGARDO MONTERO",300000]
[1144044800,"ROBER ESTIVEN","CAICEDO VALENCIA","ROBER ESTIVEN CAICEDO VALENCIA",300000]
[1007753652,"CRISTIAN ALBERTO","MARIN CEBALLOS","CRISTIAN ALBERTO MARIN CEBALLOS",300000]
[16777738,"WILSON","CONDE LOPEZ","WILSON CONDE LOPEZ",300000]
[16794143,"JESUS AURELIO","ORTEGA SANCHEZ","JESUS AURELIO ORTEGA SANCHEZ",2000000]
[79434738,"JAIRO","GOMEZ AVELLANEDA","JAIRO GOMEZ AVELLANEDA",300000]
[15438200,"HERNAN FELIPE","ARANGO OSPINA","HERNAN FELIPE ARANGO OSPINA",2000000]
[7526259,"EDIL ANTONIO","ORTEGA","EDIL ANTONIO ORTEGA",300000]
[91440736,"CARLOS ALBERTO","CALDERON BASTO","CARLOS ALBERTO CALDERON BASTO",2000000]
[1130601433,"JILMER","PACHECO RODRIGUEZ","JILMER PACHECO RODRIGUEZ",2000000]
[10174493,"JOSE ANCIZAR","GUZMAN GOMEZ","JOSE ANCIZAR GUZMAN GOMEZ",2000000]
[1064994987,"ORVEIS MIGUEL","TAPIA ARROYO","ORVEIS MIGUEL TAPIA ARROYO",300000]
[87471384,"MARTIN EDUARDO","RODRIGUEZ LOPEZ","MARTIN EDUARDO RODRIGUEZ LOPEZ",2000000]
[92541732,"JOSE HILARIO","PADILLA PADILLA","JOSE HILARIO PADILLA PADILLA",300000]
[1107058701,"DIEGO FERNANDO","TIMOTE BOTERO","DIEGO FERNANDO TIMOTE BOTERO",2000000]
[88287184,"ALEIRO","VERJEL DURAN","ALEIRO VERJEL DURAN",2000000]
[98430318,"FELIX EDUARDO","PRADO","FELIX EDUARDO PRADO",300000]
[94228791,"JOSE LUIS","RIVAS URBANO","JOSE LUIS RIVAS URBANO",2000000]
[16782570,"HOLMES","CORTES RUIZ","HOLMES CORTES RUIZ",1300000]
[26671824,"DIANA MERCEDES","TAMAYO PADILLA","DIANA MERCEDES TAMAYO PADILLA",2000000]
[80155849,"WILLIAM ANTONIO","CERINZA CHIVATA","WILLIAM ANTONIO CERINZA CHIVATA",1300000]
[93136982,"CARLOS","ONATRA DUCUARA","CARLOS ONATRA DUCUARA",300000]
[1033373027,"MAURICIO","MACHADO CUADRADO","MAURICIO MACHADO CUADRADO",2000000]
[1113515179,"JOSE","CARDONA ESPINOSA","JOSE CARDONA ESPINOSA",300000]
[1101175369,"EVER ALFONSO","ORTIZ GAMBOA","EVER ALFONSO ORTIZ GAMBOA",2000000]
[1007174711,"WILMAN ALBERTO","PORTO PUA","WILMAN ALBERTO PORTO PUA",1600000]
[71934086,"BELTRAN DE JESUS","VASQUEZ GONZALEZ","BELTRAN DE JESUS VASQUEZ GONZALEZ",2000000]
[75147245,"JOSE MAURICIO","GARCIA CASTRILLON","JOSE MAURICIO GARCIA CASTRILLON",2000000]
[4666493,"JESUS ARNOLD","CAMILO RODRIGUEZ","JESUS ARNOLD CAMILO RODRIGUEZ",600000]
[1057756718,"FABIAN ANTONIO","GALEANO RUIZ","FABIAN ANTONIO GALEANO RUIZ",2000000]
[16680419,"FABIO ALONSO","ORDONEZ MUNOZ","FABIO ALONSO ORDONEZ MUNOZ",300000]
[9807204,"JOSE JAMES","CEBALLOS CUERVO","JOSE JAMES CEBALLOS CUERVO",2000000]
[18925629,"JHON MARIO","ROJAS","JHON MARIO ROJAS",2000000]
[94370051,"JOSE NOLVERTO","VELEZ SANCHEZ","JOSE NOLVERTO VELEZ SANCHEZ",2000000]
[1060874791,"ARLINSON","MONTENEGRO VALENCIA","ARLINSON MONTENEGRO VALENCIA",300000]
[16464612,"CESAR AUGUSTO","FREYRE OSPINA","CESAR AUGUSTO FREYRE OSPINA",300000]
[1124007297,"VICTOR ALFONSO","RINCON PEREZ","VICTOR ALFONSO RINCON PEREZ",600000]
[1063723486,"ERVIN LUIS","ANAYA LOPEZ","ERVIN LUIS ANAYA LOPEZ",700000]
[6322938,"LUIS ALFREDO","MOSQUERA RIVAS","LUIS ALFREDO MOSQUERA RIVAS",300000]
[94424046,"NILTON ARVEY","PAPAMIJA SILVA","NILTON ARVEY PAPAMIJA SILVA",2000000]
[1113648409,"JOSE LUIS","JARAMILLO PARRA","JOSE LUIS JARAMILLO PARRA",2000000]
[1113535059,"BRAYAN STIVEN","LENIS VASQUEZ","BRAYAN STIVEN LENIS VASQUEZ",700000]
[79814576,"JULIO CESAR","ROJAS NIEVES","JULIO CESAR ROJAS NIEVES",2000000]
[1124489502,"EDILBERTO SAMUEL","IPUANA","EDILBERTO SAMUEL IPUANA",500000]
[1114480677,"VILMER FERNEY","OBANDO GIRALDO","VILMER FERNEY OBANDO GIRALDO",2000000]
[1073326235,"LUIS FERNANDO","MELENDEZ CASTRO","LUIS FERNANDO MELENDEZ CASTRO",1500000]
[1118553213,"YESID LIZANDRO","SANABRIA BECERRA","YESID LIZANDRO SANABRIA BECERRA",2000000]
[1007172653,"OMAR JOSE","SUAREZ CORTINA","OMAR JOSE SUAREZ CORTINA",300000]
[1016028125,"HOLLMAN ELIAN","VILLAMIL CAJAMARCA","HOLLMAN ELIAN VILLAMIL CAJAMARCA",800000]
[1030691825,"JOSE LUIS","SOLORZANO CORTES","JOSE LUIS SOLORZANO CORTES",300000]
[72006702,"ANTONIO MARIA","ESTRADA SALCEDO","ANTONIO MARIA ESTRADA SALCEDO",400000]
[1040516398,"JHONATAN MANUEL","CASTAÑO CARDENAS","JHONATAN MANUEL CASTAÑO CARDENAS",2000000]
[1144124051,"YADI MARCELA","FLOREZ LOPEZ","YADI MARCELA FLOREZ LOPEZ",600000]
[1061431508,"IVAN DARIO","VALENCIA RODRIGUEZ",{"$f":"_xlfn.CONCAT(B1923,\" \",C1923)","v":"IVAN DARIO VALENCIA RODRIGUEZ"},2000000]
[1059906176,"JOSE MANUEL","GONZALEZ GONZALEZ","JOSE MANUEL GONZALEZ GONZALEZ",2000000]
[1144028911,"ALVARO JOSE","BORRERO OCAMPO","ALVARO JOSE BORRERO OCAMPO",500000]
[1002270509,"JAIME DANIEL","LOPEZ BETO","JAIME DANIEL LOPEZ BETO",300000]
[1059064834,"SERGIO ANDRES","BETANCUR DELGADO","SERGIO ANDRES BETANCUR DELGADO",300000]
[1192922766,"ANDRES GIOVANNY","MONTAÑO CAICEDO","ANDRES GIOVANNY MONTAÑO CAICEDO",900000]
[1035130094,"DAVINSON DAVID","LLANO BARRIENTOS","DAVINSON DAVID LLANO BARRIENTOS",2000000]
[1096646584,"DEIBY","QUINTERO DE LOS RIOS","DEIBY QUINTERO DE LOS RIOS",2000000]
[1036964522,"LIBARDO JOSE","RODRIGUEZ ARIZAL","LIBARDO JOSE RODRIGUEZ ARIZAL",300000]
[1061719577,"DIEGO FELIPE","MACA VELASCO","DIEGO FELIPE MACA VELASCO",1000000]
[1143961106,"JHERSON DAVID","JARAMILLO BLANDON","JHERSON DAVID JARAMILLO BLANDON",400000]
[1000633823,"CRISTIAN ALEXANDER","AGUDELO PULGARIN","CRISTIAN ALEXANDER AGUDELO PULGARIN",1600000]
[1105789570,"JAIME ALEXANDER","GONZALEZ FLOREZ","JAIME ALEXANDER GONZALEZ FLOREZ",800000]
[1128326954,"WILLIAM CESAR","DE LA HOZ OROZCO","WILLIAM CESAR DE LA HOZ OROZCO",2000000]
[1143934540,"KATHERINE","GIL HURTADO","KATHERINE GIL HURTADO",600000]
[1006557137,"OSCAR JULIAN","NIETO OSORIO","OSCAR JULIAN NIETO OSORIO",2000000]
[1000921130,"JUAN JOSE","VELASQUEZ ZAPATA","JUAN JOSE VELASQUEZ ZAPATA",800000]
[80280773,"WILSON RODRIGO","CORTES LADINO","WILSON RODRIGO CORTES LADINO",800000]
[1112476768,"DEIMAR","CAMACHO PRIETO","DEIMAR CAMACHO PRIETO",300000]
[1060991562,"OLIVER","ZEMANATE GALINDEZ","OLIVER ZEMANATE GALINDEZ",300000]
[6566107,"JOHNNY","IRIARTE","JOHNNY IRIARTE",300000]
[94326995,"SILVIO","RAMIREZ CAMPIÑO","SILVIO RAMIREZ CAMPIÑO",2000000]
[1005869515,"DANIEL","MUÑOZ CERON","DANIEL MUÑOZ CERON",300000]
[9809543,"HENRY OSWALDO","OCAÑO","HENRY OSWALDO OCAÑO",300000]
[1043606034,"LEONEL","QUIROZ PACHECO","LEONEL QUIROZ PACHECO",1700000]
[94389615,"PARMENIO","CARVAJAL","PARMENIO CARVAJAL",2000000]
[16377748,"NILSON HEDER","BALTAN SOLIS","NILSON HEDER BALTAN SOLIS",300000]
[1068586514,"EDUARDO ANTONIO","GAVIRIA CARDOSO","EDUARDO ANTONIO GAVIRIA CARDOSO",400000]
[1112226043,"ENMANUEL","AMEZQUITA OTERO","ENMANUEL AMEZQUITA OTERO",300000]
[16989092,"LUIS CARLOS","RODRIGUEZ","LUIS CARLOS RODRIGUEZ",2000000]
[1002318350,"JOSE RICARDO","MEJIA LEON","JOSE RICARDO MEJIA LEON",300000]
[1069263679,"ESTEBAN","RODRIGUEZ LOPEZ","ESTEBAN RODRIGUEZ LOPEZ",300000]
[14701715,"JHONATAN ANDRES","ARCE QUINTERO","JHONATAN ANDRES ARCE QUINTERO",2000000]
[1046397944,"ANDRES MANUEL","RIVAS RUZ","ANDRES MANUEL RIVAS RUZ",300000]
[14636088,"JHORMAN","CASTILLO CABEZAS","JHORMAN CASTILLO CABEZAS",300000]
[60326980,"CARMEN CECILIA","DELGADO DELGADO","CARMEN CECILIA DELGADO DELGADO",2000000]
[1094885928,"JOSUE","LEONEL SOGAMOSO","JOSUE LEONEL SOGAMOSO",300000]
[16791899,"JUAN CARLOS","OTERO CARDONA","JUAN CARLOS OTERO CARDONA",2000000]
[1114388377,"JESUS DAVID","TALAGA MANCHABAJOY","JESUS DAVID TALAGA MANCHABAJOY",2000000]
[1130642424,"YEISON ANDRES","ESPINOSA PALADINES","YEISON ANDRES ESPINOSA PALADINES",300000]
[16939806,"WALTER","ROJAS CARDONA","WALTER ROJAS CARDONA",300000]
[66928431,"LUZ STELLA","GUTIERREZ GARCIA","LUZ STELLA GUTIERREZ GARCIA",300000]
[10346023,"HEINER","MELENDEZ OJEDA","HEINER MELENDEZ OJEDA",300000]
[16894510,"YURI","GUERRERO BERMUDEZ","YURI GUERRERO BERMUDEZ",300000]
[6404713,"DAGOBERTO","BASTIDAS BECERRA","DAGOBERTO BASTIDAS BECERRA",400000]
[79000786,"NELSON","HERNANDEZ RODRIGUEZ","NELSON HERNANDEZ RODRIGUEZ",300000]
[6481544,"ANCIZAR","VALENCIA PEREZ","ANCIZAR VALENCIA PEREZ",2000000]
[16838047,"JOHANY","ROMERO REYES","JOHANY ROMERO REYES",2000000]
[15030076,"OCARIS MIGUEL","DELABARRERA ALVAREZ","OCARIS MIGUEL DELABARRERA ALVAREZ",300000]
[10499401,"NILSON","CARABALI SANDOVAL","NILSON CARABALI SANDOVAL",2000000]
[16268858,"LUIS EDUARDO","ACOSTA ZUNIGA","LUIS EDUARDO ACOSTA ZUNIGA",2000000]
[13056118,"JORGE MACLOVIO","CASTILLO AGUIRRE","JORGE MACLOVIO CASTILLO AGUIRRE",900000]
[94524667,"VICTOR ALEJANDRO","GAMEZ VELASQUEZ","VICTOR ALEJANDRO GAMEZ VELASQUEZ",300000]
[6625724,"WILLIAM FERNANDO","CAMPO GIRALDO","WILLIAM FERNANDO CAMPO GIRALDO",700000]
[14676290,"RIGOBERTO","BOCANEGRA CAICEDO","RIGOBERTO BOCANEGRA CAICEDO",2000000]
[1068588458,"IVAN DARIO","GONZALEZ PASTRANA","IVAN DARIO GONZALEZ PASTRANA",300000]
[11275458,"ADOLFO","VELANDIA FUENTES","ADOLFO VELANDIA FUENTES",2000000]
[1006363042,"ANDERSON ELOY","MONDRAGON CUERO","ANDERSON ELOY MONDRAGON CUERO",300000]
[1075306418,"JOAN DAVID","SANCHEZ RODRIGUEZ","JOAN DAVID SANCHEZ RODRIGUEZ",1800000]
[1130671687,"DEIMER YOHAN","SANCHEZ","DEIMER YOHAN SANCHEZ",800000]
[93181297,"FABIAN RODRIGO","LOPEZ","FABIAN RODRIGO LOPEZ",1100000]
[1143991405,"AYENSITO","ALEGRIA ALEGRIA","AYENSITO ALEGRIA ALEGRIA",300000]
[1066720685,"JHON ESTITH","PEREZ CARRASCAL","JHON ESTITH PEREZ CARRASCAL",800000]
[1130648742,"LURY YULIETH","QUINTERO LOZANO","LURY YULIETH QUINTERO LOZANO",300000]
[1007451809,"DIEGO FERNANDO","MURCIA CASTELLANOS",{"$f":"_xlfn.CONCAT(B1987,\" \",C1987)","v":"DIEGO FERNANDO MURCIA CASTELLANOS"},800000]
[1007662337,"ALEXIS ANDRES","GOMEZ OBANDO","ALEXIS ANDRES GOMEZ OBANDO",800000]
[98579295,"ALEXANDER","FLOREZ","ALEXANDER FLOREZ",2000000]
[9859084,"PEDRO ROMAN","BETANCUR MUÑOZ","PEDRO ROMAN BETANCUR MUÑOZ",800000]
[1143464395,"JOSE MANUEL","PAYARES BOLAÑO","JOSE MANUEL PAYARES BOLAÑO",300000]
[1115080518,"RICARDO ESTEBAN","GONZALES MOYA","RICARDO ESTEBAN GONZALES MOYA",300000]
[1114877584,"JOSE FREDDY","CEBALLOS MUELAS","JOSE FREDDY CEBALLOS MUELAS",300000]
[1007898660,"LUIS ANGEL","BANDERAS ESCUDERO","LUIS ANGEL BANDERAS ESCUDERO",300000]
[1130945530,"ALVARITO","HURTADO MONTAÑO","ALVARITO HURTADO MONTAÑO",1300000]
[1144183451,"BRYAN DAVID","ZEMANATE ORDOÑEZ","BRYAN DAVID ZEMANATE ORDOÑEZ",300000]
[1144201564,"ESTHEFANNY","ALVAREZ BETANCOURT","ESTHEFANNY ALVAREZ BETANCOURT",1300000]
[1151959256,"EVELIN LORIET","CHOCO ORDOÑEZ","EVELIN LORIET CHOCO ORDOÑEZ",500000]
[1046902348,"JOHNNY ALEJANDRO","ECHAVARRIA DUQUE","JOHNNY ALEJANDRO ECHAVARRIA DUQUE",2000000]
[91497005,"CAMILO ANDRES","SANABRIA CORZO","CAMILO ANDRES SANABRIA CORZO",2000000]
[1007712966,"ELVIS ENRIQUE","CERRO ORTEGA","ELVIS ENRIQUE CERRO ORTEGA",300000]
[93471980,"LEONARDO","LEGRO SANCHEZ","LEONARDO LEGRO SANCHEZ",600000]
[1116872060,"JOSUE","ACEVEDO CISNEROS","JOSUE ACEVEDO CISNEROS",2000000]
[1017139137,"GUILLERMO LEON","SOSSA AGUIRRE","GUILLERMO LEON SOSSA AGUIRRE",2000000]
[1040490654,"ENDERSON EMID","TATE TEHERAN","ENDERSON EMID TATE TEHERAN",600000]
[1193259849,"SANTIAGO","PAI ESTACIO","SANTIAGO PAI ESTACIO",1000000]
[1020395387,"YEISON DANIEL","MOSQUERA ZAPATA","YEISON DANIEL MOSQUERA ZAPATA",800000]
[1018402347,"GEOVANNA","RUIZ NARVAEZ","GEOVANNA RUIZ NARVAEZ",300000]
[87948072,"JHON JANER","GUERRERO VIDAL","JHON JANER GUERRERO VIDAL",1300000]
[1062429073,"HERNAN CAMILO","ARRIETA RAMOS","HERNAN CAMILO ARRIETA RAMOS",1400000]
[94428450,"JORGE ELIECER","CRUZ GALVIZ","JORGE ELIECER CRUZ GALVIZ",2000000]
[1107090642,"JHON FABER","CALDERON","JHON FABER CALDERON",700000]
[1038101152,"LUIS ALFREDO","JARABA TORO","LUIS ALFREDO JARABA TORO",300000]
[1023024277,"HARRISON","SALAZAR MELO","HARRISON SALAZAR MELO",2000000]
[1040491162,"JAIR ALBERTO","ATENCIO PALOMINO","JAIR ALBERTO ATENCIO PALOMINO",1900000]
[1040518538,"BAYRON","PEÑA JIMENEZ","BAYRON PEÑA JIMENEZ",1400000]
[1002136559,"NOEMI","CAMARGO CORRALES","NOEMI CAMARGO CORRALES",1400000]
[1144033982,"JOSE JAIRO","GUETIO YAFUE","JOSE JAIRO GUETIO YAFUE",2000000]
[1051734979,"ANDRES FELIPE","JARABA LEGUIA","ANDRES FELIPE JARABA LEGUIA",2000000]
[72052158,"JOSE DAVID","GOMEZ RANGEL","JOSE DAVID GOMEZ RANGEL",1400000]
[1065096182,"VICTOR ALFONSO","CRUZ JOAQUI","VICTOR ALFONSO CRUZ JOAQUI",300000]
[1128403609,"CARLOS LADISLAO","GONZALEZ MORA","CARLOS LADISLAO GONZALEZ MORA",2000000]
[16693991,"ALLAN","MATTOS VEGA","ALLAN MATTOS VEGA",300000]
[16765509,"ENRIQUE","VALENCIA LUIS","ENRIQUE VALENCIA LUIS",2000000]
[16678381,"DAVID","RACINEZ BERMUDEZ","DAVID RACINEZ BERMUDEZ",700000]
[1152192897,"JUAN DAVID","ALTAMAR CARDOSI","JUAN DAVID ALTAMAR CARDOSI",2000000]
[66728361,"ISLENY","POSSO VARON","ISLENY POSSO VARON",2000000]
[11254898,"MARCO FIDEL","SUAREZ MONTOYA","MARCO FIDEL SUAREZ MONTOYA",2000000]
[1116244214,"FABIAN","MARTINEZ GIL","FABIAN MARTINEZ GIL",1400000]
[16929697,"ALEXANDER","MOSQUERA RIVAS","ALEXANDER MOSQUERA RIVAS",300000]
[16280877,"GILDARDO","VALENCIA AVENIA","GILDARDO VALENCIA AVENIA",2000000]
[3817901,"DEIVIS RUBEN","GONZALEZ ALMEIDA","DEIVIS RUBEN GONZALEZ ALMEIDA",300000]
[1113308808,"JOHNNY ALEJANDRO","SALAZAR SALAZAR","JOHNNY ALEJANDRO SALAZAR SALAZAR",300000]
[71316734,"JORGE IVAN","QUINTERO GARCIA","JORGE IVAN QUINTERO GARCIA",2000000]
[1143956113,"JHON FREDDY","SIERRA SANTIAGO","JHON FREDDY SIERRA SANTIAGO",300000]
[1098616959,"JERSON FABIAN","RODRIGUEZ RINCON","JERSON FABIAN RODRIGUEZ RINCON",2000000]
[1152214598,"LUIS ALEJANDRO","FLOREZ VILLA","LUIS ALEJANDRO FLOREZ VILLA",300000]
[1102863111,"DIEGO ARMANDO","ESTRADA FLOREZ","DIEGO ARMANDO ESTRADA FLOREZ",300000]
[1047227769,"JOSE DAVID","DIAZGRANADO SILVA","JOSE DAVID DIAZGRANADO SILVA",2000000]
[1056958045,"DYSON FERNANDO","HERNANDEZ HERNANDEZ","DYSON FERNANDO HERNANDEZ HERNANDEZ",800000]
[1058789729,"BRAYAN STIVEN","PEREZ CASTILLO","BRAYAN STIVEN PEREZ CASTILLO",300000]
[1005897308,"JOHANNE STEVEN","GUAPACHA VALDEZ","JOHANNE STEVEN GUAPACHA VALDEZ",300000]
[1234196325,"CARLOS ANDRES","GAMEZ RIVERA","CARLOS ANDRES GAMEZ RIVERA",1400000]
[1001145105,"ALEXANDER","TIRADO TIRADO","ALEXANDER TIRADO TIRADO",800000]
[1070308542,"EDGAR HERNANDO","MARTINEZ CAÑON","EDGAR HERNANDO MARTINEZ CAÑON",600000]
[1119213687,"ROBINSON","CARVAJAL RODRIGUEZ","ROBINSON CARVAJAL RODRIGUEZ",300000]
[1069467775,"MIGUEL ENRIQUE","PAYARES BARRIOS","MIGUEL ENRIQUE PAYARES BARRIOS",300000]
[79334292,"PEDRO ENRIQUE","GIL PEÑALOZA","PEDRO ENRIQUE GIL PEÑALOZA",2000000]
[94300757,"EDINSON","BRAVO RODRIGUEZ","EDINSON BRAVO RODRIGUEZ",2000000]
[4661056,"ARNULFO","GOMEZ ZAPATA","ARNULFO GOMEZ ZAPATA",300000]
[74752018,"WILSON ALBERTO","AGUILAR AMAYA",{"$f":"_xlfn.CONCAT(B2051,\" \",C2051)","v":"WILSON ALBERTO AGUILAR AMAYA"},2000000]
[1047369819,"YAIR OMAR","MENDOZA ZUÑIGA","YAIR OMAR MENDOZA ZUÑIGA",300000]
[94424884,"NESTOR URIEL","CALDERON CARVAJAL","NESTOR URIEL CALDERON CARVAJAL",2000000]
[1130594984,"YEFERSON","SANCHEZ BUESAQUILLO","YEFERSON SANCHEZ BUESAQUILLO",1300000]
[16935115,"RODOLFO","SATIZABAL MARIN","RODOLFO SATIZABAL MARIN",400000]
[1130629400,"YEHIMER CENOVIO","VIVEROS QUINTERO","YEHIMER CENOVIO VIVEROS QUINTERO",2000000]
[94551688,"JOSE PABLO","GONZALEZ GONZALEZ","JOSE PABLO GONZALEZ GONZALEZ",300000]
[1144053469,"JOJAN STIVEN","MUÑOZ TELLEZ","JOJAN STIVEN MUÑOZ TELLEZ",2000000]
[82362327,"YANIO","PALACIOS MOSQUERA","YANIO PALACIOS MOSQUERA",300000]
[6405362,"LUIS FRANSUAA","CORDOBA RODRIGUEZ","LUIS FRANSUAA CORDOBA RODRIGUEZ",2000000]
[1051744569,"LUIS DANIEL","MORA CARO","LUIS DANIEL MORA CARO",300000]

{"sheet":"Consulta","index":1,"n_rows":19,"n_cols":4,"rows_kept":19,"cut":false,"hidden":false,"merged":[[22,1,22,7],[16,1,16,7],[3,1,8,7],[17,1,17,7],[13,3,13,4],[9,4,9,6],[12,1,12,7],[18,1,21,7],[1,1,2,7],[11,1,11,7],[9,1,9,3],[13,1,13,2],[14,1,14,2],[14,3,14,4],[10,1,10,7]]}
[]
[null,"CONSULTA TU CUPO DE EXPONAVIDAD"]
[]
[]
[]
[]
[]
[]
[]
[null,"Ingresa el numero de cedula por favor :"]
[]
[null,"INFORMACIÓN"]
[]
[null,"Hola estimado asociado:",null,{"$f":"IFERROR(VLOOKUP(E10,Hoja2!A1:E2061,4,0),\"\")","v":""}]
[null,"Tienes un cupo preaprobado de:",null,{"$f":"IFERROR(VLOOKUP(E10,Hoja2!A1:E2061,5,0),\"\")","v":""}]
[]
[]
[]
[null,"Aprovecha tu cupo Exponavidad con Fodeocci.m Comunicate con nosostros a traves de whatsapp en la linea nacional 3107373942 \n\nAplican Terminos y Condicones del reglamento de crédito"]